Business Unit Description,Expense Code,Expense Code Description,GL Date,Document No.,Invoice No.,Invoiced Value,Supplier Name,Address Book No.,Proclass Details Level 1,Thomson Classification Description
SHEAF SQUARE/HOWARD ST        ,6030,REPAIRS AND MTCE - RESPONSIVE ,02/04/2014,3623453,112889,370,STEEL LINE LTD                          ,208650,Construction,STEEL FABRICATORS & ERECTORS  
GRANT DD                      ,8440,FEE EXPENSES                  ,02/04/2014,3624639,ERS INVOICE99026         ,"100,000.00",A HERRING LTD                           ,593715,Vehicles Not Buses,"COMMERCIAL VEHICLE SERVICING, "
SERVICE TENANCIES             ,8350,MISCELLANEOUS EXPENSES        ,02/04/2014,3624640,ERS INVOICE99027         ,360,REDACTED PERSONAL DATA,590840,Unclassified Non Trade,OUT OF SCOPE FOR SIC MONITORIN
GRANT DD                      ,8440,FEE EXPENSES                  ,02/04/2014,3624641,ERS INVOICE99028         ,"150,000.00",KRANTECH HOLDINGS LTD                   ,594640,Building Construction Materials,ENGINEERING MATERIALS         
GRANT DD                      ,8440,FEE EXPENSES                  ,02/04/2014,3624642,ERS INVOICE99029         ,"112,500.00",UNIPART RAIL LIMITED                    ,593298,Facilities Management,RAILWAY EQUIPMENT MNFRS       
GRANT DD                      ,8440,FEE EXPENSES                  ,02/04/2014,3624643,ERS INVOICE99030         ,"104,250.00",BETAFENCE LIMITED                       ,493244,Building Construction Materials,WIRE PRODUCTS - MNFRS         
CORPORATE ADJUSTMENTS         ,9940,CORPORATE ADJUSTMENTS TO COSTS,02/04/2014,3624718,ERS INVOICE99042         ,"1,551,933.00",SOUTH YORKSHIRE POLICE                  ,346012,Unclassified Non Trade,POLICE                        
CORPORATE ADJUSTMENTS         ,9940,CORPORATE ADJUSTMENTS TO COSTS,02/04/2014,3624719,ERS INVOICE99043         ,"1,551,933.00",SOUTH YORKSHIRE POLICE                  ,346012,Unclassified Non Trade,POLICE                        
CORPORATE ADJUSTMENTS         ,9940,CORPORATE ADJUSTMENTS TO COSTS,02/04/2014,3624720,ERS INVOICE99044         ,"1,551,933.00",SOUTH YORKSHIRE POLICE                  ,346012,Unclassified Non Trade,POLICE                        
CORPORATE ADJUSTMENTS         ,9940,CORPORATE ADJUSTMENTS TO COSTS,02/04/2014,3624721,ERS INVOICE99045         ,"1,551,933.00",SOUTH YORKSHIRE POLICE                  ,346012,Unclassified Non Trade,POLICE                        
CORPORATE ADJUSTMENTS         ,9940,CORPORATE ADJUSTMENTS TO COSTS,02/04/2014,3624722,ERS INVOICE99046         ,"1,551,933.00",SOUTH YORKSHIRE POLICE                  ,346012,Unclassified Non Trade,POLICE                        
CORPORATE ADJUSTMENTS         ,9940,CORPORATE ADJUSTMENTS TO COSTS,02/04/2014,3624723,ERS INVOICE99047         ,"1,551,933.00",SOUTH YORKSHIRE POLICE                  ,346012,Unclassified Non Trade,POLICE                        
CORPORATE ADJUSTMENTS         ,9940,CORPORATE ADJUSTMENTS TO COSTS,02/04/2014,3624724,ERS INVOICE99048         ,"1,551,933.00",SOUTH YORKSHIRE POLICE                  ,346012,Unclassified Non Trade,POLICE                        
CORPORATE ADJUSTMENTS         ,9940,CORPORATE ADJUSTMENTS TO COSTS,02/04/2014,3624725,ERS INVOICE99049         ,"1,551,933.00",SOUTH YORKSHIRE POLICE                  ,346012,Unclassified Non Trade,POLICE                        
CORPORATE ADJUSTMENTS         ,9940,CORPORATE ADJUSTMENTS TO COSTS,02/04/2014,3624726,ERS INVOICE99050         ,"1,551,933.00",SOUTH YORKSHIRE POLICE                  ,346012,Unclassified Non Trade,POLICE                        
CORPORATE ADJUSTMENTS         ,9940,CORPORATE ADJUSTMENTS TO COSTS,02/04/2014,3624727,ERS INVOICE99051         ,"1,551,933.00",SOUTH YORKSHIRE POLICE                  ,346012,Unclassified Non Trade,POLICE                        
CORPORATE ADJUSTMENTS         ,9940,CORPORATE ADJUSTMENTS TO COSTS,02/04/2014,3624728,ERS INVOICE99052         ,"1,551,933.00",SOUTH YORKSHIRE POLICE                  ,346012,Unclassified Non Trade,POLICE                        
CORPORATE ADJUSTMENTS         ,9940,CORPORATE ADJUSTMENTS TO COSTS,02/04/2014,3624729,ERS INVOICE99053         ,"1,551,931.00",SOUTH YORKSHIRE POLICE                  ,346012,Unclassified Non Trade,POLICE                        
CORPORATE ADJUSTMENTS         ,9940,CORPORATE ADJUSTMENTS TO COSTS,02/04/2014,3624730,ERS INVOICE99054         ,"680,586.00",SOUTH YORKSHIRE FIRE & RESCUE AUTHORITY ,301094,Unclassified Non Trade,FIRE STATIONS                 
CORPORATE ADJUSTMENTS         ,9940,CORPORATE ADJUSTMENTS TO COSTS,02/04/2014,3624731,ERS INVOICE99055         ,"680,586.00",SOUTH YORKSHIRE FIRE & RESCUE AUTHORITY ,301094,Unclassified Non Trade,FIRE STATIONS                 
CORPORATE ADJUSTMENTS         ,9940,CORPORATE ADJUSTMENTS TO COSTS,02/04/2014,3624732,ERS INVOICE99056         ,"680,586.00",SOUTH YORKSHIRE FIRE & RESCUE AUTHORITY ,301094,Unclassified Non Trade,FIRE STATIONS                 
CORPORATE ADJUSTMENTS         ,9940,CORPORATE ADJUSTMENTS TO COSTS,02/04/2014,3624733,ERS INVOICE99057         ,"680,586.00",SOUTH YORKSHIRE FIRE & RESCUE AUTHORITY ,301094,Unclassified Non Trade,FIRE STATIONS                 
CORPORATE ADJUSTMENTS         ,9940,CORPORATE ADJUSTMENTS TO COSTS,02/04/2014,3624734,ERS INVOICE99058         ,"680,586.00",SOUTH YORKSHIRE FIRE & RESCUE AUTHORITY ,301094,Unclassified Non Trade,FIRE STATIONS                 
CORPORATE ADJUSTMENTS         ,9940,CORPORATE ADJUSTMENTS TO COSTS,02/04/2014,3624735,ERS INVOICE99059         ,"680,586.00",SOUTH YORKSHIRE FIRE & RESCUE AUTHORITY ,301094,Unclassified Non Trade,FIRE STATIONS                 
CORPORATE ADJUSTMENTS         ,9940,CORPORATE ADJUSTMENTS TO COSTS,02/04/2014,3624736,ERS INVOICE99060         ,"680,586.00",SOUTH YORKSHIRE FIRE & RESCUE AUTHORITY ,301094,Unclassified Non Trade,FIRE STATIONS                 
CORPORATE ADJUSTMENTS         ,9940,CORPORATE ADJUSTMENTS TO COSTS,02/04/2014,3624737,ERS INVOICE99061         ,"680,586.00",SOUTH YORKSHIRE FIRE & RESCUE AUTHORITY ,301094,Unclassified Non Trade,FIRE STATIONS                 
CORPORATE ADJUSTMENTS         ,9940,CORPORATE ADJUSTMENTS TO COSTS,02/04/2014,3624738,ERS INVOICE99062         ,"680,586.00",SOUTH YORKSHIRE FIRE & RESCUE AUTHORITY ,301094,Unclassified Non Trade,FIRE STATIONS                 
GRANT DD                      ,8440,FEE EXPENSES                  ,02/04/2014,3624739,ERS INVOICE99063         ,"11,105.95",LIGHTWORK DESIGN LTD                    ,587905,Education,EDUCATIONAL TRAINING PROVIDERS
HULL - HUMBER SUB REGION HAL  ,1194,OTHER FEES                    ,02/04/2014,3624740,ERS INVOICE99064         ,"1,750.00",AQUA-FLOW PLUMBING & HEATING SPECIALISTS,590460,Construction,PLUMBERS                      
ARBOURTHORNE 5M'S REFURB      ,1143,COMPENSATION                  ,02/04/2014,3624741,ERS INVOICE99065         ,"4,680.68",REDACTED PERSONAL DATA,594604,Unclassified Non Trade,OUT OF SCOPE FOR SIC MONITORIN
PARKHILL DEMOLITION SHM (STH) ,1143,COMPENSATION                  ,02/04/2014,3624743,ERS INVOICE99067         ,"4,700.00",REDACTED PERSONAL DATA,594607,Unclassified Non Trade,OUT OF SCOPE FOR SIC MONITORIN
GRANT DD                      ,8440,FEE EXPENSES                  ,02/04/2014,3624751,ERS INVOICE99075         ,823.93,CARLTON MANUFACTURING LTD               ,588395,Building Construction Materials,BUILDERS' MERCHANTS           
SHORT BREAKS FUNDING FOR DISAB,9120,OTHER AGENCIES                ,02/04/2014,3597028,18543,"5,447.28",BURTON STREET PROJECT                   ,342774,Unclassified Non Trade,CHARITIES & VOLUNTARY ORGANISA
TRAINING                      ,5610,AGENCY STAFF                  ,02/04/2014,3604399,2100085224,"4,230.13",SHEFFIELD CARE TRUST                    ,455262,Unclassified Non Trade,CHARITIES & VOLUNTARY ORGANISA
TRAINING                      ,5610,AGENCY STAFF                  ,02/04/2014,3604401,2100085223,"4,230.13",SHEFFIELD CARE TRUST                    ,455262,Unclassified Non Trade,CHARITIES & VOLUNTARY ORGANISA
CATERING PREMISES & EQUIPMENT ,8010,EQUIPMENT PURCHASE AND REPAIR ,02/04/2014,3606627,52071,590.95,BARNSLEY CATERING SERVICES LTD          ,203262,Catering,CATERING EQUIPMENT            
PROSPECTS - YOUTH NEETS       ,9120,OTHER AGENCIES                ,02/04/2014,3615729,7219,"19,261.80",SHEFFIELD FUTURES                       ,322702,Medical ,COUNSELLING & ADVICE SERVICES 
POST 16 TRANSPORT PARTNERSHIP ,7140,PUBLIC TRANSPORT COSTS        ,02/04/2014,3617212,SL0066799                ,"1,170.00",SYPTE                                   ,208757,Transport,BUS & COACH OPERATORS & STATIO
APS - MANOR CENTRE            ,8010,EQUIPMENT PURCHASE AND REPAIR ,02/04/2014,3618183,921494320,"1,154.59",ARCO LTD                                ,203022,Clothing,SAFETY EQUIPMENT & CLOTHING   
ADULT EDUCATION ADMIN         ,8440,FEE EXPENSES                  ,02/04/2014,3619014,I0055193                 ,"3,279.00",THE SHEFFIELD COLLEGE                   ,297611,Unclassified Non Trade,SCHOOLS & COLLEGES - FURTHER E
COMMERCIAL TEAM               ,5750,TRAINING EXPENDITURE          ,02/04/2014,3621512,6155196,"1,970.00",RICARDO-AEA LTD                         ,320986,Consultancy,ENVIRONMENTAL CONSULTANTS     
LDD SPECIALIST PLACEMENTS     ,8010,EQUIPMENT PURCHASE AND REPAIR ,02/04/2014,3621824,5266,"3,275.60",TOUGH FURNITURE LIMITED                 ,441270,Furniture,FURNITURE MNFRS - HOME & OFFIC
ACCOMMODATION                 ,6020,REPAIRS AND MTCE - PROGRAMMED ,02/04/2014,3621864,98368,"1,585.67",SOLPRO MANUFACTURING LTD                ,512326,Unclassified Trade,ELECTRONIC COMPONENT MNFRS & D
SHEFFIELD HOMES TREES         ,6370,GROUNDS MTCE AND ARBORICULTURE,02/04/2014,3622004,52,"2,435.00",J B HIBBERD LIMITED                     ,510434,Environmental Services,TREE WORK & FORESTRY SERVICES 
PUBLIC HEALTH COMM DEV TEAM   ,8550,OTHER SERVICES                ,02/04/2014,3622095,21781,"1,890.00",OPEN COLLEGE NETWORK YORKSHIRE & HUMBER ,591789,Unclassified Non Trade,SCHOOLS & COLLEGES - FURTHER E
GATEWAY PROJECT               ,6210,RENTS                         ,02/04/2014,3622382,41703,657.7,TAPTON ESTATES PROPERTIES LTD           ,449360,Unclassified Trade,PROPERTY & ESTATE MANAGEMENT  
INCOME MANAGEMENT             ,8270,SUBSCRIPTIONS                 ,02/04/2014,3622447,261,600,HOUSEMARK PERFORMANCE IMPROVEMENT       ,551424,Education,EDUCATIONAL TRAINING PROVIDERS
CITY WIDE ALARMS SERVICE      ,8610,OTHER TELECOMMUNICATIONS      ,02/04/2014,3622459,INV/70064213             ,"15,582.84",TUNSTALL RESPONSE LTD                   ,574413,ICT,TELECOMMUNICATIONS EQUIPMENT &
CITY WIDE ALARMS SERVICE      ,8610,OTHER TELECOMMUNICATIONS      ,02/04/2014,3622461,INV/70064422             ,"9,118.33",TUNSTALL RESPONSE LTD                   ,574413,ICT,TELECOMMUNICATIONS EQUIPMENT &
CITY WIDE ALARMS SERVICE      ,8590,LANDLINE TELEPHONES           ,02/04/2014,3622462,INV/70064421             ,"13,497.36",TUNSTALL HEALTHCARE (UK) LIMITED        ,209178,ICT,TELECOMMUNICATIONS EQUIPMENT &
GROUNDS MAINTENANCE           ,8010,EQUIPMENT PURCHASE AND REPAIR ,02/04/2014,3622469,5379,250,ENVIRONMENTAL DRAINAGE SOLUTIONS LTD    ,373384,Environmental Services,DRAINAGE CONTRACTORS          
SCHOOLS MIS                   ,8620,COMPUTER SOFTWARE PURCHASES   ,02/04/2014,3622608,151730,475,AFD SOFTWARE LTD                        ,567836,Consultancy,COMPUTER SYSTEMS & SOFTWARE (D
CITY WIDE CHILD CARE CONTRACT ,6280,HIRE OF PREMISES              ,02/04/2014,3622619,41719,500,MANOR COMMUNITY CHILDCARE CENTRE LTD    ,311892,Social Community Care,NURSERIES & CRECHES           
CITY WIDE CHILD CARE CONTRACT ,6280,HIRE OF PREMISES              ,02/04/2014,3622620,41719,360,MANOR COMMUNITY CHILDCARE CENTRE LTD    ,311892,Social Community Care,NURSERIES & CRECHES           
ANIMAL WARDENS                ,8530,TIPPING CHARGES               ,02/04/2014,3622694,13/289                   ,302,D S COOPER LTD                          ,504392,Environmental Services,WASTE DISPOSAL SERVICES       
FOOD HYGIENE                  ,8350,MISCELLANEOUS EXPENSES        ,02/04/2014,3622787,173365,349.4,OSBORNE RICHARDSON LTD                  ,504174,Human Resources,EMPLOYMENT & RECRUITMENT AGENC
FOOD HYGIENE                  ,8350,MISCELLANEOUS EXPENSES        ,02/04/2014,3622789,173367,253.2,OSBORNE RICHARDSON LTD                  ,504174,Human Resources,EMPLOYMENT & RECRUITMENT AGENC
100 APPRENTICES               ,9120,OTHER AGENCIES                ,02/04/2014,3622836,190314,429,LITTLE ANGELS NURSERY SCHOOL            ,311885,Social Community Care,NURSERIES & CRECHES           
ADMIN & RUNNING COSTS         ,8350,MISCELLANEOUS EXPENSES        ,02/04/2014,3622904,2798,282.75,ALMEGA LIMITED                          ,492887,Stationery ,PROMOTIONAL ITEMS             
TRANSPORT FLEET MANAGEMENT    ,8070,STOCKS AND STORES             ,02/04/2014,3622916,2237604,"24,935.38",CARLTON FUELS                           ,466741,Vehicles Not Buses,FUEL DEALERS                  
VEHICLE & PLANT EFFICIENCY 13-,1182,PURCHASE OF VEHICLES          ,02/04/2014,3622918,UMT0003303               ,"48,985.37",TREKA BUS LTD                           ,571552,Vehicles Not Buses,VEHICLE CONVERSIONS           
LDD SPECIALIST PLACEMENTS     ,8010,EQUIPMENT PURCHASE AND REPAIR ,02/04/2014,3622945,41719,"1,108.33",APOLLO APPLIANCES LTD                   ,202990,Domestic Goods,DOMESTIC APPLIANCES - SERVICIN
LDD SPECIALIST PLACEMENTS     ,8010,EQUIPMENT PURCHASE AND REPAIR ,02/04/2014,3622946,41719,"1,270.84",APOLLO APPLIANCES LTD                   ,202990,Domestic Goods,DOMESTIC APPLIANCES - SERVICIN
SOUTH                         ,9120,OTHER AGENCIES                ,02/04/2014,3623158,2014-1                   ,400,LBJ COMMUNITY FORUM                     ,561515,Unclassified Non Trade,CHARITIES & VOLUNTARY ORGANISA
CITY WIDE CHILD CARE CONTRACT ,6280,HIRE OF PREMISES              ,02/04/2014,3623199,S89                      ,960,HANDSWORTH COMMUNITY NURSERY            ,325463,Social Community Care,NURSERIES & CRECHES           
HEALTH & SAFETY + LICENSING   ,5750,TRAINING EXPENDITURE          ,02/04/2014,3623394,CI11571                  ,780,NORTH NOTTINGHAMSHIRE COLLEGE           ,305524,Unclassified Non Trade,SCHOOLS & COLLEGES - ART & DES
ICAM                          ,8440,FEE EXPENSES                  ,02/04/2014,3623423,C260177                  ,"1,322.66",ROSSENDALES COLLECT LTD                 ,477656,Financial Services,BAILIFFS                      
GATEWAY PROJECT               ,8050,FURNITURE PURCHASES           ,02/04/2014,3623464,41722,REDACTED PERSONAL DATA,PHILIP READ                             ,492067,Unclassified Trade,PROPERTY & ESTATE MANAGEMENT  
APS - MANOR CENTRE            ,8010,EQUIPMENT PURCHASE AND REPAIR ,02/04/2014,3624549,921555812,"1,154.59",ARCO LTD                                ,203022,Clothing,SAFETY EQUIPMENT & CLOTHING   
BANKWOOD CHILDRENS CENTRE     ,8590,LANDLINE TELEPHONES           ,02/04/2014,3624574,108098,"3,383.92",ONE CLOUD (UK) LIMITED                  ,567657,ICT,TELECOMMUNICATIONS EQUIPMENT &
INCLUSION CENTRE              ,8380,PHOTOCOPYING                  ,02/04/2014,3624080,1112187025,447.66,KONICA MINOLTA BUSINESS SOLUTIONS (UK) L,592140,ICT,OFFICE EQUIPMENT MNFRS & DISTR
INCLUSION CENTRE              ,8380,PHOTOCOPYING                  ,02/04/2014,3624081,1112221481,916.28,KONICA MINOLTA BUSINESS SOLUTIONS EAST  ,206267,ICT,OFFICE EQUIPMENT MNFRS & DISTR
INCLUSION CENTRE              ,8380,PHOTOCOPYING                  ,02/04/2014,3624083,1112221479,918.82,KONICA MINOLTA BUSINESS SOLUTIONS EAST  ,206267,ICT,OFFICE EQUIPMENT MNFRS & DISTR
MEETING ROOMS SOUTH EAST AREA ,6190,WATER SERVICES                ,02/04/2014,3624489,8311792782,"1,132.09",SEVERN TRENT WATER LTD                  ,388402,Utilities,WATER COMPANIES               
MEETING ROOMS SOUTH EAST AREA ,6190,WATER SERVICES                ,02/04/2014,3624490,8311794520,855.36,SEVERN TRENT WATER LTD                  ,388402,Utilities,WATER COMPANIES               
SUPPORTED & TEMP ACCOM TEAM   ,6210,BED & BREAKFAST PAYMENTS      ,02/04/2014,3624410,1495,587,EARL MARSHALL GUEST HOUSE               ,391589,Facilities Management,GUEST HOUSES                  
SUPPORTED & TEMP ACCOM TEAM   ,6210,BED & BREAKFAST PAYMENTS      ,02/04/2014,3624411,353,354.8,BURNGREAVE B & B                        ,466986,Facilities Management,GUEST HOUSES                  
ADULT SOCIAL CARE PURCHASING  ,9190,DIRECT PAYMENTS               ,02/04/2014,3623929,J869534                  ,REDACTED PERSONAL DATA,REDACTED PERSONAL DATA,420601,Social Community Care,CAREFIRST DIRECT PAYMENTS     
ADULT SOCIAL CARE PURCHASING  ,9190,DIRECT PAYMENTS               ,02/04/2014,3623931,J869534                  ,REDACTED PERSONAL DATA,REDACTED PERSONAL DATA,513156,Social Community Care,CAREFIRST DIRECT PAYMENTS     
ADULT SOCIAL CARE PURCHASING  ,9190,DIRECT PAYMENTS               ,02/04/2014,3623932,J869534                  ,REDACTED PERSONAL DATA,REDACTED PERSONAL DATA,541229,Social Community Care,CAREFIRST DIRECT PAYMENTS     
ADULT SOCIAL CARE PURCHASING  ,9190,DIRECT PAYMENTS               ,02/04/2014,3623933,J869534                  ,REDACTED PERSONAL DATA,SARAH CARE LTD                          ,556288,Social Community Care,CAREFIRST DIRECT PAYMENTS     
PURCHASING                    ,9190,DIRECT PAYMENTS               ,02/04/2014,3623934,J869534                  ,REDACTED PERSONAL DATA,SHEFFIELD MIND                          ,556296,Social Community Care,CAREFIRST DIRECT PAYMENTS     
PURCHASING                    ,9190,DIRECT PAYMENTS               ,02/04/2014,3623935,J869534                  ,REDACTED PERSONAL DATA,CITIZENSHIP FIRST                       ,556890,Social Community Care,CAREFIRST DIRECT PAYMENTS     
ADULT SOCIAL CARE PURCHASING  ,9190,DIRECT PAYMENTS               ,02/04/2014,3623937,J869534                  ,REDACTED PERSONAL DATA,IDK SUPPORT 4 YOU LTD - SUPPORT PLANNING,562178,Social Community Care,CAREFIRST DIRECT PAYMENTS     
PDSI PURCHASING               ,9190,DIRECT PAYMENTS               ,02/04/2014,3623937,J869534                  ,REDACTED PERSONAL DATA,IDK SUPPORT 4 YOU LTD - SUPPORT PLANNING,562178,Social Community Care,CAREFIRST DIRECT PAYMENTS     
ADULT SOCIAL CARE PURCHASING  ,9190,DIRECT PAYMENTS               ,02/04/2014,3623941,J869534                  ,362,SY CARE & SUPPORT SHEFFIELD             ,585426,Social Community Care,CAREFIRST DIRECT PAYMENTS     
ADULT SOCIAL CARE PURCHASING  ,9190,DIRECT PAYMENTS               ,02/04/2014,3623943,J869534                  ,"1,256.38",REDACTED PERSONAL DATA,593789,Social Community Care,CAREFIRST DIRECT PAYMENTS     
PURCHASING LEARNING DISABILITI,9190,DIRECT PAYMENTS               ,02/04/2014,3623945,J869534                  ,442.34,REDACTED PERSONAL DATA,594519,Social Community Care,CAREFIRST DIRECT PAYMENTS     
ADULT SOCIAL CARE PURCHASING  ,9190,DIRECT PAYMENTS               ,02/04/2014,3623947,J869534                  ,"5,850.00",REDACTED PERSONAL DATA,594615,Social Community Care,CAREFIRST DIRECT PAYMENTS     
PURCHASING                    ,9190,DIRECT PAYMENTS               ,02/04/2014,3623948,J869534                  ,280,REDACTED PERSONAL DATA,594633,Social Community Care,CAREFIRST DIRECT PAYMENTS     
PURCHASING LEARNING DISABILITI,9190,SUPPORT PLANNING COSTS        ,02/04/2014,3623949,J869535                  ,REDACTED PERSONAL DATA,PENDERELS TRUST                         ,556454,Social Community Care,CAREFIRST DIRECT PAYMENTS     
PURCHASING LEARNING DISABILITI,9190,DIRECT PAYMENTS               ,02/04/2014,3624200,J872065                  ,REDACTED PERSONAL DATA,REDACTED PERSONAL DATA,525516,Social Community Care,CAREFIRST DIRECT PAYMENTS     
ADULT SOCIAL CARE PURCHASING  ,9190,DIRECT PAYMENTS               ,02/04/2014,3624202,J872065                  ,348.61,A4E                                     ,547567,Human Resources,TRAINING SERVICES             
ADULT SOCIAL CARE PURCHASING  ,4260,DIRECT PAYMENTS               ,02/04/2014,3624206,J872065                  ,REDACTED PERSONAL DATA,NOMAD OPENING DOORS                     ,568571,Social Community Care,HOME SUPPORT SERVICES         
ADULT SOCIAL CARE PURCHASING  ,9190,DIRECT PAYMENTS               ,02/04/2014,3624207,J872065                  ,REDACTED PERSONAL DATA,REDACTED PERSONAL DATA,573241,Social Community Care,CAREFIRST DIRECT PAYMENTS     
CARERS SPECIAL GRANT          ,9190,DIRECT PAYMENTS               ,02/04/2014,3624208,J872065                  ,REDACTED PERSONAL DATA,MY CHOICE LOCAL                         ,576122,Social Community Care,CAREFIRST DIRECT PAYMENTS     
PURCHASING                    ,9190,DIRECT PAYMENTS               ,02/04/2014,3624209,J872065                  ,"1,417.65",REDACTED PERSONAL DATA,594526,Social Community Care,CAREFIRST DIRECT PAYMENTS     
PURCHASING                    ,9190,CITYWIDE SPOT                 ,02/04/2014,3623951,NOVDECJAN                ,669.55,PARK CARE MEALS LTD                     ,341246,Social Community Care,NURSING HOMES                 
PURCHASING LEARNING DISABILITI,9190,CITYWIDE SPOT                 ,02/04/2014,3624076,33,"3,712.16",NEWFIELD VIEW SUPPORTED LIVING LTD      ,487359,Social Community Care,DISABILITY & SPECIAL NEEDS - S
PURCHASING LEARNING DISABILITI,9190,FUNDED HOME SUPPORT           ,02/04/2014,3624076,33,"1,780.60",NEWFIELD VIEW SUPPORTED LIVING LTD      ,487359,Social Community Care,DISABILITY & SPECIAL NEEDS - S
PURCHASING                    ,9230,CCSP OTHER                    ,02/04/2014,3624076,33,603.6,NEWFIELD VIEW SUPPORTED LIVING LTD      ,487359,Social Community Care,DISABILITY & SPECIAL NEEDS - S
PURCHASING LEARNING DISABILITI,9230,CCSP OTHER                    ,02/04/2014,3624076,33,"8,188.94",NEWFIELD VIEW SUPPORTED LIVING LTD      ,487359,Social Community Care,DISABILITY & SPECIAL NEEDS - S
PURCHASING LEARNING DISABILITI,9230,CCSP OTHER                    ,02/04/2014,3624077,33EP                     ,"1,849.05",NEWFIELD VIEW SUPPORTED LIVING LTD      ,487359,Social Community Care,DISABILITY & SPECIAL NEEDS - S
PURCHASING LEARNING DISABILITI,9190,FUNDED HOME SUPPORT           ,02/04/2014,3624078,34A                      ,"1,780.60",NEWFIELD VIEW SUPPORTED LIVING LTD      ,487359,Social Community Care,DISABILITY & SPECIAL NEEDS - S
PURCHASING LEARNING DISABILITI,9190,CITYWIDE SPOT                 ,02/04/2014,3624078,34A                      ,"3,712.16",NEWFIELD VIEW SUPPORTED LIVING LTD      ,487359,Social Community Care,DISABILITY & SPECIAL NEEDS - S
PURCHASING LEARNING DISABILITI,9230,CCSP OTHER                    ,02/04/2014,3624078,34A                      ,"11,154.97",NEWFIELD VIEW SUPPORTED LIVING LTD      ,487359,Social Community Care,DISABILITY & SPECIAL NEEDS - S
PURCHASING                    ,9230,CCSP OTHER                    ,02/04/2014,3624078,34A                      ,603.6,NEWFIELD VIEW SUPPORTED LIVING LTD      ,487359,Social Community Care,DISABILITY & SPECIAL NEEDS - S
PURCHASING LEARNING DISABILITI,9230,CCSP OTHER                    ,02/04/2014,3624079,34SAW                    ,"2,966.03",NEWFIELD VIEW SUPPORTED LIVING LTD      ,487359,Social Community Care,DISABILITY & SPECIAL NEEDS - S
PURCHASING LEARNING DISABILITI,9250,INDEPENDENT DAY CARE          ,02/04/2014,3624210,SB1403                   ,420,ORCHARD CARE RESIDENTIAL HOME           ,362100,Social Community Care,NURSING HOMES                 
PURCHASING LEARNING DISABILITI,9250,INDEPENDENT DAY CARE          ,02/04/2014,3624211,A06208                   ,"6,745.76",AUTISM PLUS LTD                         ,330606,Unclassified Non Trade,CHARITIES & VOLUNTARY ORGANISA
PURCHASING LEARNING DISABILITI,9250,INDEPENDENT DAY CARE          ,02/04/2014,3624212,A06212                   ,"6,745.76",AUTISM PLUS LTD                         ,330606,Unclassified Non Trade,CHARITIES & VOLUNTARY ORGANISA
PURCHASING LEARNING DISABILITI,9250,INDEPENDENT DAY CARE          ,02/04/2014,3624213,A06224                   ,"2,013.92",AUTISM PLUS LTD                         ,330606,Unclassified Non Trade,CHARITIES & VOLUNTARY ORGANISA
PURCHASING LEARNING DISABILITI,9210,FUNDED NURSING CARE (INCOME)  ,02/04/2014,3624214,A06225                   ,402.8,AUTISM PLUS LTD                         ,330606,Unclassified Non Trade,CHARITIES & VOLUNTARY ORGANISA
PURCHASING LEARNING DISABILITI,9250,INDEPENDENT DAY CARE          ,02/04/2014,3624214,A06225                   ,"1,611.12",AUTISM PLUS LTD                         ,330606,Unclassified Non Trade,CHARITIES & VOLUNTARY ORGANISA
PURCHASING LEARNING DISABILITI,9250,INDEPENDENT DAY CARE          ,02/04/2014,3624215,A06228                   ,"2,013.92",AUTISM PLUS LTD                         ,330606,Unclassified Non Trade,CHARITIES & VOLUNTARY ORGANISA
PURCHASING LEARNING DISABILITI,9250,INDEPENDENT DAY CARE          ,02/04/2014,3624216,A06229                   ,"1,749.72",AUTISM PLUS LTD                         ,330606,Unclassified Non Trade,CHARITIES & VOLUNTARY ORGANISA
ADULT SOCIAL CARE PURCHASING  ,9190,CITYWIDE SPOT                 ,02/04/2014,3624217,16553,400,SIGNATURE AT LOXLEY PARK (OPERATIONS) LT,514730,Social Community Care,RESIDENTIAL CARE HOMES        
PURCHASING LEARNING DISABILITI,9190,CITYWIDE SPOT                 ,02/04/2014,3624218,2100085642,"1,356.12",COMMUNITY HEALTH SHEFFIELD              ,361895,Unclassified Non Trade,HOSPITALS                     
PURCHASING LEARNING DISABILITI,9190,CITYWIDE SPOT                 ,02/04/2014,3624219,2100085643,"1,356.12",COMMUNITY HEALTH SHEFFIELD              ,361895,Unclassified Non Trade,HOSPITALS                     
ADULT SOCIAL CARE PURCHASING  ,9190,CITYWIDE SPOT                 ,02/04/2014,3624220,2100085644,"1,888.12",COMMUNITY HEALTH SHEFFIELD              ,361895,Unclassified Non Trade,HOSPITALS                     
PURCHASING LEARNING DISABILITI,9190,CITYWIDE SPOT                 ,02/04/2014,3624221,2100085645,713,COMMUNITY HEALTH SHEFFIELD              ,361895,Unclassified Non Trade,HOSPITALS                     
PURCHASING LEARNING DISABILITI,9190,CITYWIDE SPOT                 ,02/04/2014,3624222,210589,522,UNITED RESPONSE                         ,329604,Unclassified Non Trade,CHARITIES & VOLUNTARY ORGANISA
PURCHASING LEARNING DISABILITI,9190,CITYWIDE SPOT                 ,02/04/2014,3624223,210591,812,UNITED RESPONSE                         ,329604,Unclassified Non Trade,CHARITIES & VOLUNTARY ORGANISA
ADULT SOCIAL CARE PURCHASING  ,9190,CITYWIDE SPOT                 ,02/04/2014,3624224,210595,522,UNITED RESPONSE                         ,329604,Unclassified Non Trade,CHARITIES & VOLUNTARY ORGANISA
PURCHASING LEARNING DISABILITI,9190,CITYWIDE SPOT                 ,02/04/2014,3624226,210672/17377             ,"3,065.64",UNITED RESPONSE                         ,329604,Unclassified Non Trade,CHARITIES & VOLUNTARY ORGANISA
PURCHASING LEARNING DISABILITI,9190,CITYWIDE SPOT                 ,02/04/2014,3624227,210673/17336             ,"4,472.14",UNITED RESPONSE                         ,329604,Unclassified Non Trade,CHARITIES & VOLUNTARY ORGANISA
ADULT SOCIAL CARE PURCHASING  ,9190,FUNDED HOME SUPPORT           ,02/04/2014,3624228,SCC0027                  ,REDACTED PERSONAL DATA,BLISS SUPPORT LTD                       ,387589,Social Community Care,HOME CARE SERVICES            
ADULT SOCIAL CARE PURCHASING  ,9190,CITYWIDE SPOT                 ,02/04/2014,3624228,SCC0027                  ,REDACTED PERSONAL DATA,BLISS SUPPORT LTD                       ,387589,Social Community Care,HOME CARE SERVICES            
ADULT SOCIAL CARE PURCHASING  ,9190,CITYWIDE SPOT                 ,02/04/2014,3624229,16559,400,SIGNATURE AT LOXLEY PARK (OPERATIONS) LT,514730,Social Community Care,RESIDENTIAL CARE HOMES        
PURCHASING LEARNING DISABILITI,9190,CITYWIDE SPOT                 ,02/04/2014,3624230,210679,"1,825.16",UNITED RESPONSE                         ,329604,Unclassified Non Trade,CHARITIES & VOLUNTARY ORGANISA
PURCHASING LEARNING DISABILITI,9190,CITYWIDE SPOT                 ,02/04/2014,3624234,210777,"2,143.68",UNITED RESPONSE                         ,329604,Unclassified Non Trade,CHARITIES & VOLUNTARY ORGANISA
ADULT SOCIAL CARE PURCHASING  ,9190,CITYWIDE SPOT                 ,02/04/2014,3624235,210791,909.44,UNITED RESPONSE                         ,329604,Unclassified Non Trade,CHARITIES & VOLUNTARY ORGANISA
PURCHASING LEARNING DISABILITI,9190,CITYWIDE SPOT                 ,02/04/2014,3624236,210795,844.48,UNITED RESPONSE                         ,329604,Unclassified Non Trade,CHARITIES & VOLUNTARY ORGANISA
PURCHASING LEARNING DISABILITI,9190,CITYWIDE SPOT                 ,02/04/2014,3624237,210803,649.6,UNITED RESPONSE                         ,329604,Unclassified Non Trade,CHARITIES & VOLUNTARY ORGANISA
PDSI PURCHASING               ,9190,CITYWIDE SPOT                 ,02/04/2014,3624238,210830,812,UNITED RESPONSE                         ,329604,Unclassified Non Trade,CHARITIES & VOLUNTARY ORGANISA
PURCHASING LEARNING DISABILITI,9190,CITYWIDE SPOT                 ,02/04/2014,3624239,210831,870,UNITED RESPONSE                         ,329604,Unclassified Non Trade,CHARITIES & VOLUNTARY ORGANISA
PURCHASING LEARNING DISABILITI,9190,CITYWIDE SPOT                 ,02/04/2014,3624240,210832,"2,842.00",UNITED RESPONSE                         ,329604,Unclassified Non Trade,CHARITIES & VOLUNTARY ORGANISA
PURCHASING LEARNING DISABILITI,9190,CITYWIDE SPOT                 ,02/04/2014,3624242,210833,"1,522.50",UNITED RESPONSE                         ,329604,Unclassified Non Trade,CHARITIES & VOLUNTARY ORGANISA
PURCHASING LEARNING DISABILITI,9190,CITYWIDE SPOT                 ,02/04/2014,3624243,210834,"1,711.00",UNITED RESPONSE                         ,329604,Unclassified Non Trade,CHARITIES & VOLUNTARY ORGANISA
PURCHASING LEARNING DISABILITI,9190,CITYWIDE SPOT                 ,02/04/2014,3624244,210835,"2,349.00",UNITED RESPONSE                         ,329604,Unclassified Non Trade,CHARITIES & VOLUNTARY ORGANISA
PURCHASING LEARNING DISABILITI,9190,CITYWIDE SPOT                 ,02/04/2014,3624245,210836,"1,203.50",UNITED RESPONSE                         ,329604,Unclassified Non Trade,CHARITIES & VOLUNTARY ORGANISA
PURCHASING LEARNING DISABILITI,9190,CITYWIDE SPOT                 ,02/04/2014,3624246,210914/17335             ,"4,182.14",UNITED RESPONSE                         ,329604,Unclassified Non Trade,CHARITIES & VOLUNTARY ORGANISA
PURCHASING LEARNING DISABILITI,9190,CITYWIDE SPOT                 ,02/04/2014,3624247,210915/17375             ,"1,638.50",UNITED RESPONSE                         ,329604,Unclassified Non Trade,CHARITIES & VOLUNTARY ORGANISA
PURCHASING LEARNING DISABILITI,9190,CITYWIDE SPOT                 ,02/04/2014,3624248,210916,"1,102.00",UNITED RESPONSE                         ,329604,Unclassified Non Trade,CHARITIES & VOLUNTARY ORGANISA
PURCHASING LEARNING DISABILITI,9190,FUNDED HOME SUPPORT           ,02/04/2014,3624249,210930,729.6,UNITED RESPONSE                         ,329604,Unclassified Non Trade,CHARITIES & VOLUNTARY ORGANISA
PURCHASING LEARNING DISABILITI,9190,CITYWIDE SPOT                 ,02/04/2014,3624250,210935,290,UNITED RESPONSE                         ,329604,Unclassified Non Trade,CHARITIES & VOLUNTARY ORGANISA
PURCHASING LEARNING DISABILITI,9190,FUNDED HOME SUPPORT           ,02/04/2014,3624252,10000,"2,362.32",NEW ERA HOUSING AUTHORITY               ,505956,Unclassified Non Trade,"HOUSING ASSOCIATIONS, SOCIETIE"
PURCHASING LEARNING DISABILITI,9190,CITYWIDE SPOT                 ,02/04/2014,3624253,210972,619.6,UNITED RESPONSE                         ,329604,Unclassified Non Trade,CHARITIES & VOLUNTARY ORGANISA
PURCHASING LEARNING DISABILITI,9190,CITYWIDE SPOT                 ,02/04/2014,3624254,211033,928,UNITED RESPONSE                         ,329604,Unclassified Non Trade,CHARITIES & VOLUNTARY ORGANISA
PURCHASING LEARNING DISABILITI,9190,CITYWIDE SPOT                 ,02/04/2014,3624255,211034,928,UNITED RESPONSE                         ,329604,Unclassified Non Trade,CHARITIES & VOLUNTARY ORGANISA
PURCHASING LEARNING DISABILITI,9190,CITYWIDE SPOT                 ,02/04/2014,3624256,211036/17333             ,"2,018.00",UNITED RESPONSE                         ,329604,Unclassified Non Trade,CHARITIES & VOLUNTARY ORGANISA
PURCHASING LEARNING DISABILITI,9190,CITYWIDE SPOT                 ,02/04/2014,3624257,211037,"1,148.00",UNITED RESPONSE                         ,329604,Unclassified Non Trade,CHARITIES & VOLUNTARY ORGANISA
PURCHASING LEARNING DISABILITI,9190,CITYWIDE SPOT                 ,02/04/2014,3624258,211038/17327             ,"1,215.56",UNITED RESPONSE                         ,329604,Unclassified Non Trade,CHARITIES & VOLUNTARY ORGANISA
PURCHASING LEARNING DISABILITI,9190,FUNDED HOME SUPPORT           ,02/04/2014,3624258,211038/17327             ,396.44,UNITED RESPONSE                         ,329604,Unclassified Non Trade,CHARITIES & VOLUNTARY ORGANISA
PURCHASING LEARNING DISABILITI,9190,CITYWIDE SPOT                 ,02/04/2014,3624259,211039/17330             ,"1,612.00",UNITED RESPONSE                         ,329604,Unclassified Non Trade,CHARITIES & VOLUNTARY ORGANISA
PURCHASING LEARNING DISABILITI,9190,CITYWIDE SPOT                 ,02/04/2014,3624260,211040,464,UNITED RESPONSE                         ,329604,Unclassified Non Trade,CHARITIES & VOLUNTARY ORGANISA
PURCHASING LEARNING DISABILITI,9190,CITYWIDE SPOT                 ,02/04/2014,3624261,211041/17332             ,"1,612.00",UNITED RESPONSE                         ,329604,Unclassified Non Trade,CHARITIES & VOLUNTARY ORGANISA
PURCHASING LEARNING DISABILITI,9190,CITYWIDE SPOT                 ,02/04/2014,3624262,211042/17325             ,"1,264.00",UNITED RESPONSE                         ,329604,Unclassified Non Trade,CHARITIES & VOLUNTARY ORGANISA
PURCHASING LEARNING DISABILITI,9190,CITYWIDE SPOT                 ,02/04/2014,3624263,10001,"2,498.20",NEW ERA HOUSING AUTHORITY               ,505956,Unclassified Non Trade,"HOUSING ASSOCIATIONS, SOCIETIE"
PURCHASING LEARNING DISABILITI,9190,FUNDED HOME SUPPORT           ,02/04/2014,3624263,10001,"1,891.52",NEW ERA HOUSING AUTHORITY               ,505956,Unclassified Non Trade,"HOUSING ASSOCIATIONS, SOCIETIE"
PURCHASING LEARNING DISABILITI,9190,CITYWIDE SPOT                 ,02/04/2014,3624264,211043/17334             ,"1,148.00",UNITED RESPONSE                         ,329604,Unclassified Non Trade,CHARITIES & VOLUNTARY ORGANISA
PURCHASING LEARNING DISABILITI,9190,CITYWIDE SPOT                 ,02/04/2014,3624265,211044/17324             ,"1,148.00",UNITED RESPONSE                         ,329604,Unclassified Non Trade,CHARITIES & VOLUNTARY ORGANISA
PURCHASING LEARNING DISABILITI,9190,CITYWIDE SPOT                 ,02/04/2014,3624266,211045/17326             ,"1,264.00",UNITED RESPONSE                         ,329604,Unclassified Non Trade,CHARITIES & VOLUNTARY ORGANISA
PURCHASING LEARNING DISABILITI,9190,CITYWIDE SPOT                 ,02/04/2014,3624269,211048,812,UNITED RESPONSE                         ,329604,Unclassified Non Trade,CHARITIES & VOLUNTARY ORGANISA
PURCHASING LEARNING DISABILITI,9190,CITYWIDE SPOT                 ,02/04/2014,3624270,211049,779.52,UNITED RESPONSE                         ,329604,Unclassified Non Trade,CHARITIES & VOLUNTARY ORGANISA
PURCHASING LEARNING DISABILITI,9190,CITYWIDE SPOT                 ,02/04/2014,3624271,211060/17328             ,"1,612.00",UNITED RESPONSE                         ,329604,Unclassified Non Trade,CHARITIES & VOLUNTARY ORGANISA
PURCHASING LEARNING DISABILITI,9190,CITYWIDE SPOT                 ,02/04/2014,3624272,211100,"1,044.00",UNITED RESPONSE                         ,329604,Unclassified Non Trade,CHARITIES & VOLUNTARY ORGANISA
PURCHASING LEARNING DISABILITI,9190,CITYWIDE SPOT                 ,02/04/2014,3624273,211103/17329             ,"1,612.00",UNITED RESPONSE                         ,329604,Unclassified Non Trade,CHARITIES & VOLUNTARY ORGANISA
PURCHASING LEARNING DISABILITI,9190,FUNDED HOME SUPPORT           ,02/04/2014,3624274,10002,"7,343.84",NEW ERA HOUSING AUTHORITY               ,505956,Unclassified Non Trade,"HOUSING ASSOCIATIONS, SOCIETIE"
PDSI PURCHASING               ,9190,CITYWIDE SPOT                 ,02/04/2014,3624276,4824,REDACTED PERSONAL DATA,ONE TO ONE SUPPORT SERVICES LTD         ,518159,Social Community Care,HOME CARE SERVICES            
PURCHASING                    ,9230,CCSP EMERGENCY HOSING COSTS   ,02/04/2014,3624277,6290245,996,MIDDLESBROUGH BOROUGH COUNCIL           ,558400,Unclassified Non Trade,LOCAL GOVERNMENT              
PURCHASING LEARNING DISABILITI,9190,CITYWIDE SPOT                 ,02/04/2014,3624278,9906EM                   ,"5,248.88",NEW ERA HOUSING AUTHORITY               ,505956,Unclassified Non Trade,"HOUSING ASSOCIATIONS, SOCIETIE"
PURCHASING LEARNING DISABILITI,9190,CITYWIDE SPOT                 ,02/04/2014,3624279,9906JH                   ,"5,052.88",NEW ERA HOUSING AUTHORITY               ,505956,Unclassified Non Trade,"HOUSING ASSOCIATIONS, SOCIETIE"
PURCHASING LEARNING DISABILITI,9190,CITYWIDE SPOT                 ,02/04/2014,3624280,9906JW                   ,"4,099.60",NEW ERA HOUSING AUTHORITY               ,505956,Unclassified Non Trade,"HOUSING ASSOCIATIONS, SOCIETIE"
PURCHASING LEARNING DISABILITI,9190,CITYWIDE SPOT                 ,02/04/2014,3624281,9907GR                   ,"8,504.04",NEW ERA HOUSING AUTHORITY               ,505956,Unclassified Non Trade,"HOUSING ASSOCIATIONS, SOCIETIE"
PURCHASING LEARNING DISABILITI,9190,CITYWIDE SPOT                 ,02/04/2014,3624282,9907MW                   ,"5,446.20",NEW ERA HOUSING AUTHORITY               ,505956,Unclassified Non Trade,"HOUSING ASSOCIATIONS, SOCIETIE"
PURCHASING LEARNING DISABILITI,9190,CITYWIDE SPOT                 ,02/04/2014,3624283,9908AS                   ,"4,194.48",NEW ERA HOUSING AUTHORITY               ,505956,Unclassified Non Trade,"HOUSING ASSOCIATIONS, SOCIETIE"
PURCHASING LEARNING DISABILITI,9190,CITYWIDE SPOT                 ,02/04/2014,3624284,9908IH                   ,"4,194.48",NEW ERA HOUSING AUTHORITY               ,505956,Unclassified Non Trade,"HOUSING ASSOCIATIONS, SOCIETIE"
ADULT SOCIAL CARE PURCHASING  ,9190,CITYWIDE SPOT                 ,02/04/2014,3624285,14806,"1,760.49",SSA SOCIAL CARE & COMMUNITY SERVICES LTD,301604,Human Resources,EMPLOYMENT & RECRUITMENT AGENC
PURCHASING LEARNING DISABILITI,9190,CITYWIDE SPOT                 ,02/04/2014,3624285,14806,317.52,SSA SOCIAL CARE & COMMUNITY SERVICES LTD,301604,Human Resources,EMPLOYMENT & RECRUITMENT AGENC
PURCHASING                    ,9190,CITYWIDE SPOT                 ,02/04/2014,3624285,14806,"1,384.38",SSA SOCIAL CARE & COMMUNITY SERVICES LTD,301604,Human Resources,EMPLOYMENT & RECRUITMENT AGENC
PURCHASING LEARNING DISABILITI,9190,CITYWIDE SPOT                 ,02/04/2014,3624286,9909,"6,403.32",NEW ERA HOUSING AUTHORITY               ,505956,Unclassified Non Trade,"HOUSING ASSOCIATIONS, SOCIETIE"
PURCHASING LEARNING DISABILITI,9190,CITYWIDE SPOT                 ,02/04/2014,3624287,9910DL                   ,"4,258.28",NEW ERA HOUSING AUTHORITY               ,505956,Unclassified Non Trade,"HOUSING ASSOCIATIONS, SOCIETIE"
PURCHASING LEARNING DISABILITI,9190,FUNDED HOME SUPPORT           ,02/04/2014,3624287,9910DL                   ,"1,035.32",NEW ERA HOUSING AUTHORITY               ,505956,Unclassified Non Trade,"HOUSING ASSOCIATIONS, SOCIETIE"
PURCHASING LEARNING DISABILITI,9190,CITYWIDE SPOT                 ,02/04/2014,3624288,9910LD                   ,"4,266.36",NEW ERA HOUSING AUTHORITY               ,505956,Unclassified Non Trade,"HOUSING ASSOCIATIONS, SOCIETIE"
PURCHASING LEARNING DISABILITI,9190,CITYWIDE SPOT                 ,02/04/2014,3624289,9987,"1,291.92",NEW ERA HOUSING AUTHORITY               ,505956,Unclassified Non Trade,"HOUSING ASSOCIATIONS, SOCIETIE"
PURCHASING LEARNING DISABILITI,9190,FUNDED HOME SUPPORT           ,02/04/2014,3624290,9992,846.4,NEW ERA HOUSING AUTHORITY               ,505956,Unclassified Non Trade,"HOUSING ASSOCIATIONS, SOCIETIE"
PURCHASING LEARNING DISABILITI,9190,CITYWIDE SPOT                 ,02/04/2014,3624290,9992,"8,411.20",NEW ERA HOUSING AUTHORITY               ,505956,Unclassified Non Trade,"HOUSING ASSOCIATIONS, SOCIETIE"
PURCHASING LEARNING DISABILITI,9190,FUNDED HOME SUPPORT           ,02/04/2014,3624291,9993,"2,297.00",NEW ERA HOUSING AUTHORITY               ,505956,Unclassified Non Trade,"HOUSING ASSOCIATIONS, SOCIETIE"
PURCHASING LEARNING DISABILITI,9190,CITYWIDE SPOT                 ,02/04/2014,3624291,9993,"2,232.52",NEW ERA HOUSING AUTHORITY               ,505956,Unclassified Non Trade,"HOUSING ASSOCIATIONS, SOCIETIE"
PURCHASING LEARNING DISABILITI,9190,FUNDED HOME SUPPORT           ,02/04/2014,3624292,9994,"1,031.68",NEW ERA HOUSING AUTHORITY               ,505956,Unclassified Non Trade,"HOUSING ASSOCIATIONS, SOCIETIE"
PURCHASING LEARNING DISABILITI,9190,CITYWIDE SPOT                 ,02/04/2014,3624292,9994,"2,281.60",NEW ERA HOUSING AUTHORITY               ,505956,Unclassified Non Trade,"HOUSING ASSOCIATIONS, SOCIETIE"
PURCHASING LEARNING DISABILITI,9190,CITYWIDE SPOT                 ,02/04/2014,3624293,9995,"7,343.84",NEW ERA HOUSING AUTHORITY               ,505956,Unclassified Non Trade,"HOUSING ASSOCIATIONS, SOCIETIE"
PURCHASING LEARNING DISABILITI,9190,FUNDED HOME SUPPORT           ,02/04/2014,3624294,9996,"1,713.88",NEW ERA HOUSING AUTHORITY               ,505956,Unclassified Non Trade,"HOUSING ASSOCIATIONS, SOCIETIE"
PURCHASING LEARNING DISABILITI,9190,CITYWIDE SPOT                 ,02/04/2014,3624294,9996,"4,903.00",NEW ERA HOUSING AUTHORITY               ,505956,Unclassified Non Trade,"HOUSING ASSOCIATIONS, SOCIETIE"
PURCHASING LEARNING DISABILITI,9190,CITYWIDE SPOT                 ,02/04/2014,3624295,9997,"8,580.24",NEW ERA HOUSING AUTHORITY               ,505956,Unclassified Non Trade,"HOUSING ASSOCIATIONS, SOCIETIE"
PURCHASING LEARNING DISABILITI,9190,CITYWIDE SPOT                 ,02/04/2014,3624296,14899,317.52,SSA SOCIAL CARE & COMMUNITY SERVICES LTD,301604,Human Resources,EMPLOYMENT & RECRUITMENT AGENC
ADULT SOCIAL CARE PURCHASING  ,9190,CITYWIDE SPOT                 ,02/04/2014,3624296,14899,"1,631.88",SSA SOCIAL CARE & COMMUNITY SERVICES LTD,301604,Human Resources,EMPLOYMENT & RECRUITMENT AGENC
PURCHASING                    ,9190,CITYWIDE SPOT                 ,02/04/2014,3624296,14899,"1,380.62",SSA SOCIAL CARE & COMMUNITY SERVICES LTD,301604,Human Resources,EMPLOYMENT & RECRUITMENT AGENC
PURCHASING LEARNING DISABILITI,9190,CITYWIDE SPOT                 ,02/04/2014,3624297,9998,335.52,NEW ERA HOUSING AUTHORITY               ,505956,Unclassified Non Trade,"HOUSING ASSOCIATIONS, SOCIETIE"
PURCHASING LEARNING DISABILITI,9190,CITYWIDE SPOT                 ,02/04/2014,3624298,9999,"7,343.84",NEW ERA HOUSING AUTHORITY               ,505956,Unclassified Non Trade,"HOUSING ASSOCIATIONS, SOCIETIE"
PURCHASING LEARNING DISABILITI,9190,CITYWIDE SPOT                 ,02/04/2014,3624299,A06226                   ,"1,131.80",AUTISM PLUS LTD                         ,330606,Unclassified Non Trade,CHARITIES & VOLUNTARY ORGANISA
PURCHASING LEARNING DISABILITI,9190,FUNDED HOME SUPPORT           ,02/04/2014,3624299,A06226                   ,996.52,AUTISM PLUS LTD                         ,330606,Unclassified Non Trade,CHARITIES & VOLUNTARY ORGANISA
PURCHASING LEARNING DISABILITI,9190,FUNDED HOME SUPPORT           ,02/04/2014,3624300,A06232                   ,"5,152.00",AUTISM PLUS LTD                         ,330606,Unclassified Non Trade,CHARITIES & VOLUNTARY ORGANISA
PURCHASING LEARNING DISABILITI,9190,CITYWIDE SPOT                 ,02/04/2014,3624301,14995,334.06,SSA SOCIAL CARE & COMMUNITY SERVICES LTD,301604,Human Resources,EMPLOYMENT & RECRUITMENT AGENC
PURCHASING                    ,9190,CITYWIDE SPOT                 ,02/04/2014,3624301,14995,"1,381.56",SSA SOCIAL CARE & COMMUNITY SERVICES LTD,301604,Human Resources,EMPLOYMENT & RECRUITMENT AGENC
ADULT SOCIAL CARE PURCHASING  ,9190,CITYWIDE SPOT                 ,02/04/2014,3624301,14995,"1,740.06",SSA SOCIAL CARE & COMMUNITY SERVICES LTD,301604,Human Resources,EMPLOYMENT & RECRUITMENT AGENC
INDEPENDENT FOSTERING PLACEMEN,9270,INDEPENDENT FOSTERING         ,02/04/2014,3623899,12356,"4,294.64",ACTION FOR CHILDREN                     ,503682,Unclassified Trade,ACCOMMODATION AGENCIES - RESID
LEAVING CARE                  ,9270,INDEPENDENT FOSTERING         ,02/04/2014,3623901,143880,REDACTED PERSONAL DATA,SWIIS FOSTER CARE LTD.                  ,349291,Social Community Care,ADOPTION & FOSTERING          
INDEPENDENT FOSTERING PLACEMEN,9270,INDEPENDENT FOSTERING         ,02/04/2014,3623902,143881,REDACTED PERSONAL DATA,SWIIS FOSTER CARE LTD.                  ,349291,Social Community Care,ADOPTION & FOSTERING          
INDEPENDENT FOSTERING PLACEMEN,9270,INDEPENDENT FOSTERING         ,02/04/2014,3623903,143882,REDACTED PERSONAL DATA,SWIIS FOSTER CARE LTD.                  ,349291,Social Community Care,ADOPTION & FOSTERING          
LEAVING CARE                  ,9270,CARELEAVERS ACCOMMODATION     ,02/04/2014,3623905,14902C                   ,REDACTED PERSONAL DATA,REDACTED PERSONAL DATA,587955,Unclassified Non Trade,OUT OF SCOPE FOR SIC MONITORIN
LEAVING CARE                  ,9270,CARELEAVERS ACCOMMODATION     ,02/04/2014,3623906,18092,550,NEXT STEP CARE MANAGMENT LTD            ,586585,Social Community Care,SOCIAL SERVICES               
LEAVING CARE                  ,9270,CARELEAVERS ACCOMMODATION     ,02/04/2014,3623908,394,"2,387.28",PATHWAY 2 PROGRESS                      ,540030,Social Community Care,RESIDENTIAL CARE HOMES        
LEAVING CARE                  ,9270,CARELEAVERS ACCOMMODATION     ,02/04/2014,3623909,395,"2,527.71",PATHWAY 2 PROGRESS                      ,540030,Social Community Care,RESIDENTIAL CARE HOMES        
LEAVING CARE                  ,9270,CARELEAVERS ACCOMMODATION     ,02/04/2014,3623910,396,"3,932.00",PATHWAY 2 PROGRESS                      ,540030,Social Community Care,RESIDENTIAL CARE HOMES        
LEAVING CARE                  ,9270,CARELEAVERS ACCOMMODATION     ,02/04/2014,3623911,398,"3,932.00",PATHWAY 2 PROGRESS                      ,540030,Social Community Care,RESIDENTIAL CARE HOMES        
INDEPENDENT RES BLOCK PLACEMEN,9270,INDEPENDENT RESIDENTIAL PMENT ,02/04/2014,3623912,6602,"4,765.62",PROGRESSIVE CARE LTD                    ,343548,Social Community Care,CHILDREN'S HOMES              
UASC/ASYLUM 16-17             ,6210,RENTS                         ,02/04/2014,3623913,6603,"4,765.62",PROGRESSIVE CARE LTD                    ,343548,Social Community Care,CHILDREN'S HOMES              
INDEPENDENT RES BLOCK PLACEMEN,9270,INDEPENDENT RESIDENTIAL PMENT ,02/04/2014,3623914,6633,"7,980.00",PROGRESSIVE CARE LTD                    ,343548,Social Community Care,CHILDREN'S HOMES              
LEAVING CARE                  ,9270,CARELEAVERS ACCOMMODATION     ,02/04/2014,3623916,6688,"2,520.00",PROGRESSIVE CARE LTD                    ,343548,Social Community Care,CHILDREN'S HOMES              
LEAVING CARE                  ,9270,CARELEAVERS ACCOMMODATION     ,02/04/2014,3623918,967,REDACTED PERSONAL DATA,PENARTH HOUSE                           ,326884,Social Community Care,CHILDCARE SERVICES            
LEAVING CARE                  ,9270,CARELEAVERS ACCOMMODATION     ,02/04/2014,3623919,MUD90                    ,320.95,EARL MARSHALL GUEST HOUSE               ,391589,Facilities Management,GUEST HOUSES                  
LEAVING CARE                  ,9270,CARELEAVERS ACCOMMODATION     ,02/04/2014,3623920,1478,315,EARL MARSHALL GUEST HOUSE               ,391589,Facilities Management,GUEST HOUSES                  
LEAVING CARE                  ,9270,CARELEAVERS ACCOMMODATION     ,02/04/2014,3623922,14853B.                  ,REDACTED PERSONAL DATA,REDACTED PERSONAL DATA,573543,Social Community Care,ADOPTION & FOSTERING          
NORTH SA - CIN S17            ,9270,PAYMENTS TO RELATIVES/FRIENDS ,02/04/2014,3623923,NORTH/000616             ,"12,000.00",REDACTED PERSONAL DATA,594623,Unclassified Non Trade,OUT OF SCOPE FOR SIC MONITORIN
PREVENTION & SUPPORT - CDT    ,9270,CARELEAVERS INDEPENDENT LIVING,02/04/2014,3624075,CDT/1234                 ,REDACTED PERSONAL DATA,REDACTED PERSONAL DATA,590905,Unclassified Non Trade,OUT OF SCOPE FOR SIC MONITORIN
ADULT SOCIAL CARE PURCHASING  ,9200,CONTINUING RESIDENTIAL CARE   ,02/04/2014,3623895,J869523 300314           ,"4,175.71",SPRINGWOOD                              ,361812,Social Community Care,RESIDENTIAL CARE HOMES        
ADULT SOCIAL CARE PURCHASING  ,9210,CONTINUING NURSING CARE       ,02/04/2014,3623896,J860648 300314           ,"6,174.49",WOOD HILL GRANGE CARE HOME              ,552397,Social Community Care,RESIDENTIAL CARE HOMES        
ADULT SOCIAL CARE PURCHASING  ,9200,SHORT TERM RESIDENTIAL CARE   ,02/04/2014,3623897,J868544 020314           ,"2,118.00",BURNT TREE CROFT                        ,361793,Social Community Care,RESIDENTIAL CARE HOMES        
ADULT SOCIAL CARE PURCHASING  ,9210,SHORT TERM NURSING CARE       ,02/04/2014,3623898,J864054 020314           ,"5,244.00",BROOMGROVE TRUST NURSING                ,361755,Social Community Care,NURSING HOMES                 
PURCHASING LEARNING DISABILITI,9210,CONTINUING NURSING CARE       ,02/04/2014,3624053,J870886 270414           ,"15,131.96",ELMWOOD HOUSE NURSING HOME              ,362098,Social Community Care,NURSING HOMES                 
ADULT SOCIAL CARE PURCHASING  ,9210,CONTINUING NURSING CARE       ,02/04/2014,3624054,J870894 270414           ,"1,892.92",DERWENT LODGE                           ,362172,Social Community Care,NURSING HOMES                 
PURCHASING LEARNING DISABILITI,9200,CONTINUING RESIDENTIAL CARE   ,02/04/2014,3624055,J870904 270414           ,"9,359.20",H F TRUST LIMITED                       ,362078,Unclassified Non Trade,CHARITIES & VOLUNTARY ORGANISA
PURCHASING LEARNING DISABILITI,9200,CONTINUING RESIDENTIAL CARE   ,02/04/2014,3624056,J870910 270414           ,"1,580.00",EAGLE HOUSE CARE HOME                   ,361977,Social Community Care,RESIDENTIAL CARE HOMES        
PURCHASING                    ,9200,CONTINUING RESIDENTIAL CARE   ,02/04/2014,3624056,J870910 270414           ,"4,802.52",EAGLE HOUSE CARE HOME                   ,361977,Social Community Care,RESIDENTIAL CARE HOMES        
ADULT SOCIAL CARE PURCHASING  ,9200,CONTINUING RESIDENTIAL CARE   ,02/04/2014,3624056,J870910 270414           ,"20,691.92",EAGLE HOUSE CARE HOME                   ,361977,Social Community Care,RESIDENTIAL CARE HOMES        
PURCHASING                    ,9210,CONTINUING NURSING CARE       ,02/04/2014,3624056,J870910 270414           ,"6,099.88",EAGLE HOUSE CARE HOME                   ,361977,Social Community Care,RESIDENTIAL CARE HOMES        
ADULT SOCIAL CARE PURCHASING  ,9210,CONTINUING NURSING CARE       ,02/04/2014,3624056,J870910 270414           ,"15,165.72",EAGLE HOUSE CARE HOME                   ,361977,Social Community Care,RESIDENTIAL CARE HOMES        
ADULT SOCIAL CARE PURCHASING  ,9200,CONTINUING RESIDENTIAL CARE   ,02/04/2014,3624057,J870919 270414           ,"4,968.00",DARWIN HOUSE RESIDENTIAL CARE           ,361759,Social Community Care,RESIDENTIAL CARE HOMES        
ADULT SOCIAL CARE PURCHASING  ,9200,CONTINUING RESIDENTIAL CARE   ,02/04/2014,3624058,J870921 270414           ,"22,584.00",DARNALL VIEW RESIDENTIAL HOME           ,362170,Social Community Care,RESIDENTIAL CARE HOMES        
ADULT SOCIAL CARE PURCHASING  ,9200,CONTINUING RESIDENTIAL CARE   ,02/04/2014,3624059,J870935 270414           ,"4,531.36",NETHERMORE CARE HOME (PREVIOUSLY KILLAMA,361936,Social Community Care,REST & RETIREMENT HOMES       
ADULT SOCIAL CARE PURCHASING  ,9200,CONTINUING RESIDENTIAL CARE   ,02/04/2014,3624060,J870940 270414           ,"2,984.00",NEWFIELD NURSING HOME                   ,361980,Social Community Care,NURSING HOMES                 
ADULT SOCIAL CARE PURCHASING  ,9210,CONTINUING NURSING CARE       ,02/04/2014,3624060,J870940 270414           ,"31,834.00",NEWFIELD NURSING HOME                   ,361980,Social Community Care,NURSING HOMES                 
PURCHASING                    ,9200,CONTINUING RESIDENTIAL CARE   ,02/04/2014,3624061,J870945 270414           ,"14,215.20",FITZWILLIAM LODGE NH (PD)               ,361908,Social Community Care,NURSING HOMES                 
ADULT SOCIAL CARE PURCHASING  ,9200,CONTINUING RESIDENTIAL CARE   ,02/04/2014,3624062,J870949 270414           ,"1,848.00",DOVE COURT RESIDENTIAL HOME             ,362096,Social Community Care,RESIDENTIAL CARE HOMES        
ADULT SOCIAL CARE PURCHASING  ,9200,CONTINUING RESIDENTIAL CARE   ,02/04/2014,3624063,J870978 270414           ,"1,548.00",ECKINGTON COURT                         ,361852,Social Community Care,NURSING HOMES                 
ADULT SOCIAL CARE PURCHASING  ,9200,CONTINUING RESIDENTIAL CARE   ,02/04/2014,3624064,J870990 270414           ,"1,580.00",REASON CARE LTD T/A ELM LODGE CARE HOME ,433486,Social Community Care,NURSING HOMES                 
PURCHASING LEARNING DISABILITI,9240,SUPPORTED LIVING CARE         ,02/04/2014,3624065,J870996 270414           ,"3,843.68",WIRRAL AUTISTIC SOCIETY                 ,361894,Unclassified Non Trade,COMMUNITY PROJECTS            
PURCHASING                    ,9200,CONTINUING RESIDENTIAL CARE   ,02/04/2014,3624066,J871022 270414           ,"3,768.80",FAIRWINDS                               ,397558,Social Community Care,RESIDENTIAL CARE HOMES        
PURCHASING                    ,9210,CONTINUING NURSING CARE       ,02/04/2014,3624066,J871022 270414           ,"4,921.56",FAIRWINDS                               ,397558,Social Community Care,RESIDENTIAL CARE HOMES        
PURCHASING                    ,9210,CONTINUING NURSING CARE       ,02/04/2014,3624067,J871033 270414           ,"4,472.84",BARCHESTER HEALTHCARE                   ,424741,Social Community Care,RESIDENTIAL CARE HOMES        
ADULT SOCIAL CARE PURCHASING  ,9210,CONTINUING NURSING CARE       ,02/04/2014,3624068,J871043 270414           ,"7,384.52",DEARNEVALE                              ,444825,Social Community Care,RESIDENTIAL CARE HOMES        
ADULT SOCIAL CARE PURCHASING  ,9200,CONTINUING RESIDENTIAL CARE   ,02/04/2014,3624069,J871071 270414           ,"1,548.00",EMYVALE HOUSE                           ,517628,Social Community Care,RESIDENTIAL CARE HOMES        
ADULT SOCIAL CARE PURCHASING  ,9200,CONTINUING RESIDENTIAL CARE   ,02/04/2014,3624070,J871080 270414           ,"1,596.00",FERNDENE CARE HOME                      ,547266,Social Community Care,RESIDENTIAL CARE HOMES        
PURCHASING LEARNING DISABILITI,9210,CONTINUING NURSING CARE       ,02/04/2014,3624071,J847463 300314           ,"2,002.80",HILL HOUSE NURSING HOME                 ,362029,Social Community Care,NURSING HOMES                 
ADULT SOCIAL CARE PURCHASING  ,4260,NURSING COSTS RECOVERED       ,02/04/2014,3624072,J867994 300314           ,510.01,ECKINGTON COURT                         ,361852,Social Community Care,NURSING HOMES                 
ADULT SOCIAL CARE PURCHASING  ,4260,NURSING COSTS RECOVERED       ,02/04/2014,3624073,J869527 300314           ,774.77,NEWFIELD NURSING HOME                   ,361980,Social Community Care,NURSING HOMES                 
PURCHASING LEARNING DISABILITI,9200,CONTINUING RESIDENTIAL CARE   ,02/04/2014,3624074,J870865 270414           ,"18,767.92",NEWFIELD VIEW                           ,361863,Social Community Care,NURSING HOMES                 
ADULT SOCIAL CARE PURCHASING  ,9200,CONTINUING RESIDENTIAL CARE   ,02/04/2014,3624074,J870865 270414           ,"2,460.00",NEWFIELD VIEW                           ,361863,Social Community Care,NURSING HOMES                 
ADULT SOCIAL CARE PURCHASING  ,4260,NURSING COSTS RECOVERED       ,02/04/2014,3624101,J869528 300314           ,"2,027.99",CRAEGMOOR  - RICHMOND HEIGHTS           ,361933,Social Community Care,NURSING HOMES                 
ADULT SOCIAL CARE PURCHASING  ,4260,NURSING COSTS RECOVERED       ,02/04/2014,3624102,J869529 300314           ,610.77,SCARSDALE GRANGE N.H                    ,361915,Social Community Care,NURSING HOMES                 
ADULT SOCIAL CARE PURCHASING  ,4260,NURSING COSTS RECOVERED       ,02/04/2014,3624103,J869531 300314           ,642.21,SEVENHILLS NURSING                      ,362104,Social Community Care,NURSING HOMES                 
PURCHASING                    ,9200,CONTINUING RESIDENTIAL CARE   ,02/04/2014,3624104,J870828 270414           ,"6,600.00",SANDFORD HOUSE LTD                      ,578938,Social Community Care,RESIDENTIAL CARE HOMES        
ADULT SOCIAL CARE PURCHASING  ,9200,CONTINUING RESIDENTIAL CARE   ,02/04/2014,3624105,J870829 270414           ,"9,576.00",ROSEBERRY CARE CENTRES (YORKSHIRE) LTD  ,580595,Social Community Care,RESIDENTIAL CARE HOMES        
ADULT SOCIAL CARE PURCHASING  ,9210,CONTINUING NURSING CARE       ,02/04/2014,3624105,J870829 270414           ,"14,373.43",ROSEBERRY CARE CENTRES (YORKSHIRE) LTD  ,580595,Social Community Care,RESIDENTIAL CARE HOMES        
ADULT SOCIAL CARE PURCHASING  ,9200,CONTINUING RESIDENTIAL CARE   ,02/04/2014,3624106,J870830 270414           ,"1,476.00",PYMGATE HOUSE REST HOME                 ,580634,Social Community Care,RESIDENTIAL CARE HOMES        
PURCHASING                    ,9200,CONTINUING RESIDENTIAL CARE   ,02/04/2014,3624107,J870832 270414           ,"3,450.00",ROEFIELD SPECIALIST CARE LIMITED        ,585052,Social Community Care,RESIDENTIAL CARE HOMES        
ADULT SOCIAL CARE PURCHASING  ,9210,CONTINUING NURSING CARE       ,02/04/2014,3624108,J870835 270414           ,"1,598.64",ASH PADDOCK HOMES LTD                   ,588291,Social Community Care,RESIDENTIAL CARE HOMES        
ADULT SOCIAL CARE PURCHASING  ,9200,CONTINUING RESIDENTIAL CARE   ,02/04/2014,3624109,J870836 270414           ,"1,596.00",GRANGEWOOD LODGE RESIDENTIAL HOME       ,589034,Social Community Care,RESIDENTIAL CARE HOMES        
PURCHASING LEARNING DISABILITI,9200,CONTINUING RESIDENTIAL CARE   ,02/04/2014,3624110,J870837 270414           ,"18,503.64",BEECH CLIFFE LTD                        ,361899,Social Community Care,RESIDENTIAL CARE HOMES        
PURCHASING LEARNING DISABILITI,9200,CONTINUING RESIDENTIAL CARE   ,02/04/2014,3624111,J870838 270414           ,"3,735.96",MOORCROFT HOUSE                         ,361927,Social Community Care,RESIDENTIAL CARE HOMES        
PURCHASING                    ,9200,CONTINUING RESIDENTIAL CARE   ,02/04/2014,3624112,J870843 270414           ,"1,704.56",ASHFIELD CARE LIMITED                   ,361814,Social Community Care,NURSING HOMES                 
ADULT SOCIAL CARE PURCHASING  ,9210,CONTINUING NURSING CARE       ,02/04/2014,3624112,J870843 270414           ,"2,960.96",ASHFIELD CARE LIMITED                   ,361814,Social Community Care,NURSING HOMES                 
PURCHASING                    ,9210,CONTINUING NURSING CARE       ,02/04/2014,3624112,J870843 270414           ,"1,382.44",ASHFIELD CARE LIMITED                   ,361814,Social Community Care,NURSING HOMES                 
PURCHASING                    ,9200,CONTINUING RESIDENTIAL CARE   ,02/04/2014,3624113,J870844 270414           ,"8,117.88",CRAEGMOOR THE BIRCHES                   ,582527,Social Community Care,RESIDENTIAL CARE HOMES        
ADULT SOCIAL CARE PURCHASING  ,9200,CONTINUING RESIDENTIAL CARE   ,02/04/2014,3624114,J870866 270414           ,"8,708.00",ROSE COTTAGE CARE HOME                  ,361940,Social Community Care,NURSING HOMES                 
ADULT SOCIAL CARE PURCHASING  ,9210,CONTINUING NURSING CARE       ,02/04/2014,3624114,J870866 270414           ,"6,376.00",ROSE COTTAGE CARE HOME                  ,361940,Social Community Care,NURSING HOMES                 
ADULT SOCIAL CARE PURCHASING  ,9200,CONTINUING RESIDENTIAL CARE   ,02/04/2014,3624115,J870869 270414           ,"1,599.68",PARK LODGE CARE HOME                    ,361949,Social Community Care,RESIDENTIAL CARE HOMES        
ADULT SOCIAL CARE PURCHASING  ,9210,CONTINUING NURSING CARE       ,02/04/2014,3624116,J870871 270414           ,"16,109.20",FULWOOD LODGE NURSING HOME              ,361775,Social Community Care,NURSING HOMES                 
ADULT SOCIAL CARE PURCHASING  ,9200,CONTINUING RESIDENTIAL CARE   ,02/04/2014,3624117,J870872 270414           ,"18,792.00",ROSEBANK CARE HOME                      ,361802,Social Community Care,RESIDENTIAL CARE HOMES        
ADULT SOCIAL CARE PURCHASING  ,9200,CONTINUING RESIDENTIAL CARE   ,02/04/2014,3624118,J870876 270414           ,"2,200.00",THE GLEN PRIVATE NURSING                ,361760,Social Community Care,NURSING HOMES                 
PURCHASING LEARNING DISABILITI,9200,CONTINUING RESIDENTIAL CARE   ,02/04/2014,3624119,J870878 270414           ,"27,820.80",BEECH TREE HALL                         ,327636,Social Community Care,RESIDENTIAL CARE HOMES        
ADULT SOCIAL CARE PURCHASING  ,9200,CONTINUING RESIDENTIAL CARE   ,02/04/2014,3624120,J870879 270414           ,"4,479.55",TAPTON EDGE REST HOME LTD               ,361786,Social Community Care,REST & RETIREMENT HOMES       
PURCHASING LEARNING DISABILITI,9200,CONTINUING RESIDENTIAL CARE   ,02/04/2014,3624121,J870882 270414           ,"4,773.52",BEECHWOOD                               ,362117,Social Community Care,RESIDENTIAL CARE HOMES        
PURCHASING LEARNING DISABILITI,9210,CONTINUING NURSING CARE       ,02/04/2014,3624122,J870884 270414           ,"2,437.20",OAKWOOD (DEVON COURT)                   ,362087,Social Community Care,RESIDENTIAL CARE HOMES        
ADULT SOCIAL CARE PURCHASING  ,9200,CONTINUING RESIDENTIAL CARE   ,02/04/2014,3624123,J870889 270414           ,"7,159.40",SWALLOWNEST CARE HOME                   ,361827,Social Community Care,NURSING HOMES                 
ADULT SOCIAL CARE PURCHASING  ,9210,CONTINUING NURSING CARE       ,02/04/2014,3624123,J870889 270414           ,"9,436.00",SWALLOWNEST CARE HOME                   ,361827,Social Community Care,NURSING HOMES                 
ADULT SOCIAL CARE PURCHASING  ,9200,CONTINUING RESIDENTIAL CARE   ,02/04/2014,3624124,J870891 270414           ,"1,412.00",THE GREEN                               ,361956,Social Community Care,NURSING HOMES                 
PDSI PURCHASING               ,9200,CONTINUING RESIDENTIAL CARE   ,02/04/2014,3624125,J870895 270414           ,"1,240.68", GUINNESS NORTHERN COUNTIES             ,362173,Social Community Care,RESIDENTIAL CARE HOMES        
PURCHASING LEARNING DISABILITI,9200,CONTINUING RESIDENTIAL CARE   ,02/04/2014,3624125,J870895 270414           ,"12,928.24", GUINNESS NORTHERN COUNTIES             ,362173,Social Community Care,RESIDENTIAL CARE HOMES        
ADULT SOCIAL CARE PURCHASING  ,9210,CONTINUING NURSING CARE       ,02/04/2014,3624126,J870896 270414           ,"6,448.00",SHEFFIELD HEALTH AND SOCIAL CARE N'HS FO,361800,Social Community Care,NURSING HOMES                 
ADULT SOCIAL CARE PURCHASING  ,9200,CONTINUING RESIDENTIAL CARE   ,02/04/2014,3624127,J870903 270414           ,"37,760.00",NIGHTINGALES RES.HOME                   ,361897,Social Community Care,RESIDENTIAL CARE HOMES        
ADULT SOCIAL CARE PURCHASING  ,9200,CONTINUING RESIDENTIAL CARE   ,02/04/2014,3624128,J870905 270414           ,"11,060.00",HADDON COURT NURSING HOME               ,361916,Social Community Care,NURSING HOMES                 
ADULT SOCIAL CARE PURCHASING  ,9210,CONTINUING NURSING CARE       ,02/04/2014,3624128,J870905 270414           ,"12,848.00",HADDON COURT NURSING HOME               ,361916,Social Community Care,NURSING HOMES                 
ADULT SOCIAL CARE PURCHASING  ,9200,CONTINUING RESIDENTIAL CARE   ,02/04/2014,3624129,J870906 270414           ,"6,320.00",TAPTON COURT NURSING HOME               ,362076,Social Community Care,NURSING HOMES                 
ADULT SOCIAL CARE PURCHASING  ,9200,CONTINUING RESIDENTIAL CARE   ,02/04/2014,3624130,J870911 270414           ,"4,828.00",PRIOR BANK HOUSE                        ,361772,Social Community Care,RESIDENTIAL CARE HOMES        
ADULT SOCIAL CARE PURCHASING  ,9200,CONTINUING RESIDENTIAL CARE   ,02/04/2014,3624131,J870913 270414           ,"16,580.00",WOODBANK HOUSE CARE LTD                 ,361780,Social Community Care,REST & RETIREMENT HOMES       
ADULT SOCIAL CARE PURCHASING  ,9200,CONTINUING RESIDENTIAL CARE   ,02/04/2014,3624132,J870915 270414           ,"5,151.40",ORCHARD CARE RESIDENTIAL HOME           ,362100,Social Community Care,NURSING HOMES                 
PURCHASING LEARNING DISABILITI,9200,CONTINUING RESIDENTIAL CARE   ,02/04/2014,3624132,J870915 270414           ,"9,406.16",ORCHARD CARE RESIDENTIAL HOME           ,362100,Social Community Care,NURSING HOMES                 
ADULT SOCIAL CARE PURCHASING  ,9200,CONTINUING RESIDENTIAL CARE   ,02/04/2014,3624133,J870920 270414           ,"14,640.00",HALLAMSHIRE REST HOME                   ,362093,Social Community Care,REST & RETIREMENT HOMES       
ADULT SOCIAL CARE PURCHASING  ,9200,CONTINUING RESIDENTIAL CARE   ,02/04/2014,3624134,J870922 270414           ,"15,260.00",WHITE ROSE COURT RES HOME               ,361964,Social Community Care,RESIDENTIAL CARE HOMES        
ADULT SOCIAL CARE PURCHASING  ,9200,CONTINUING RESIDENTIAL CARE   ,02/04/2014,3624135,J870923 270414           ,"2,824.00",TREETON GRANGE                          ,362005,Social Community Care,NURSING HOMES                 
ADULT SOCIAL CARE PURCHASING  ,9200,CONTINUING RESIDENTIAL CARE   ,02/04/2014,3624136,J870924 270414           ,"22,345.71",HAZELDENE NURSING HOME                  ,340163,Social Community Care,NURSING HOMES                 
ADULT SOCIAL CARE PURCHASING  ,9210,CONTINUING NURSING CARE       ,02/04/2014,3624137,J870926 270414           ,"12,848.00",PEXTON GRANGE LTD                       ,361942,Social Community Care,NURSING HOMES                 
PURCHASING LEARNING DISABILITI,9200,CONTINUING RESIDENTIAL CARE   ,02/04/2014,3624138,J870927 270414           ,489.42,BETHANY HOUSE                           ,361787,Social Community Care,RESIDENTIAL CARE HOMES        
PURCHASING                    ,9210,CONTINUING NURSING CARE       ,02/04/2014,3624139,J870934 270414           ,"23,346.96",WILLOWBECK CARE CENTRE                  ,362132,Social Community Care,NURSING HOMES                 
ADULT SOCIAL CARE PURCHASING  ,9210,CONTINUING NURSING CARE       ,02/04/2014,3624139,J870934 270414           ,"7,416.00",WILLOWBECK CARE CENTRE                  ,362132,Social Community Care,NURSING HOMES                 
PURCHASING LEARNING DISABILITI,9210,CONTINUING NURSING CARE       ,02/04/2014,3624139,J870934 270414           ,"3,966.24",WILLOWBECK CARE CENTRE                  ,362132,Social Community Care,NURSING HOMES                 
ADULT SOCIAL CARE PURCHASING  ,9200,CONTINUING RESIDENTIAL CARE   ,02/04/2014,3624140,J870936 270414           ,"4,976.00",TAPTONHOLME                             ,208851,Social Community Care,RESIDENTIAL CARE HOMES        
ADULT SOCIAL CARE PURCHASING  ,9200,CONTINUING RESIDENTIAL CARE   ,02/04/2014,3624141,J870938 270414           ,"11,704.00",WESTBOURNE HOUSE                        ,362111,Social Community Care,NURSING HOMES                 
PURCHASING LEARNING DISABILITI,9210,CONTINUING NURSING CARE       ,02/04/2014,3624141,J870938 270414           ,"1,564.00",WESTBOURNE HOUSE                        ,362111,Social Community Care,NURSING HOMES                 
ADULT SOCIAL CARE PURCHASING  ,9210,CONTINUING NURSING CARE       ,02/04/2014,3624141,J870938 270414           ,"28,488.00",WESTBOURNE HOUSE                        ,362111,Social Community Care,NURSING HOMES                 
ADULT SOCIAL CARE PURCHASING  ,9200,CONTINUING RESIDENTIAL CARE   ,02/04/2014,3624142,J870941 270414           ,"4,508.00",NORTHFIELD NURSING HOME                 ,361770,Social Community Care,NURSING HOMES                 
ADULT SOCIAL CARE PURCHASING  ,9210,CONTINUING NURSING CARE       ,02/04/2014,3624142,J870941 270414           ,"31,328.00",NORTHFIELD NURSING HOME                 ,361770,Social Community Care,NURSING HOMES                 
ADULT SOCIAL CARE PURCHASING  ,9200,CONTINUING RESIDENTIAL CARE   ,02/04/2014,3624143,J870942 270414           ,"3,808.00",OVERDALE                                ,361771,Social Community Care,REST & RETIREMENT HOMES       
PURCHASING                    ,9200,CONTINUING RESIDENTIAL CARE   ,02/04/2014,3624144,J870944 270414           ,"4,804.80",CRAEGMOOR WOODTHORPE LODGE              ,362021,Social Community Care,NURSING HOMES                 
ADULT SOCIAL CARE PURCHASING  ,9200,CONTINUING RESIDENTIAL CARE   ,02/04/2014,3624145,J870946 270414           ,"4,372.00",CRAEGMOOR  - RICHMOND HEIGHTS           ,361933,Social Community Care,NURSING HOMES                 
ADULT SOCIAL CARE PURCHASING  ,9210,CONTINUING NURSING CARE       ,02/04/2014,3624145,J870946 270414           ,"26,001.86",CRAEGMOOR  - RICHMOND HEIGHTS           ,361933,Social Community Care,NURSING HOMES                 
PURCHASING LEARNING DISABILITI,9200,CONTINUING RESIDENTIAL CARE   ,02/04/2014,3624146,J870951 270414           ,"22,537.52",HASCOT HOUSE                            ,361808,Social Community Care,RESIDENTIAL CARE HOMES        
PURCHASING LEARNING DISABILITI,9200,CONTINUING RESIDENTIAL CARE   ,02/04/2014,3624147,J870956 270414           ,"24,157.12",WHITEGATES MANAGEMENT COMMITTEE         ,361931,Unclassified Trade,ESTATE AGENTS                 
ADULT SOCIAL CARE PURCHASING  ,9200,CONTINUING RESIDENTIAL CARE   ,02/04/2014,3624148,J870967 270414           ,"17,580.00",SILVER LODGE CARE HOME                  ,361763,Social Community Care,NURSING HOMES                 
ADULT SOCIAL CARE PURCHASING  ,9200,CONTINUING RESIDENTIAL CARE   ,02/04/2014,3624149,J870968 270414           ,"11,504.00",ALEXANDER COURT CARE HOME               ,361889,Social Community Care,RESIDENTIAL CARE HOMES        
ADULT SOCIAL CARE PURCHASING  ,9210,CONTINUING NURSING CARE       ,02/04/2014,3624149,J870968 270414           ,"28,380.14",ALEXANDER COURT CARE HOME               ,361889,Social Community Care,RESIDENTIAL CARE HOMES        
ADULT SOCIAL CARE PURCHASING  ,9200,CONTINUING RESIDENTIAL CARE   ,02/04/2014,3624150,J870972 270414           ,"1,448.00",AUTUMN GRANGE                           ,361935,Social Community Care,NURSING HOMES                 
ADULT SOCIAL CARE PURCHASING  ,9210,CONTINUING NURSING CARE       ,02/04/2014,3624150,J870972 270414           ,"1,538.56",AUTUMN GRANGE                           ,361935,Social Community Care,NURSING HOMES                 
ADULT SOCIAL CARE PURCHASING  ,9210,CONTINUING NURSING CARE       ,02/04/2014,3624151,J870976 270414           ,"1,564.00",MILLFIELD RESIDENTIAL HOME              ,362091,Social Community Care,RESIDENTIAL CARE HOMES        
ADULT SOCIAL CARE PURCHASING  ,9200,CONTINUING RESIDENTIAL CARE   ,02/04/2014,3624152,J870984 270414           ,"21,996.00",NORTH HILL RESIDENTIAL HOME             ,362254,Social Community Care,RESIDENTIAL CARE HOMES        
ADULT SOCIAL CARE PURCHASING  ,9200,CONTINUING RESIDENTIAL CARE   ,02/04/2014,3624153,J870985 270414           ,"2,984.00",SCARSDALE GRANGE N.H                    ,361915,Social Community Care,NURSING HOMES                 
ADULT SOCIAL CARE PURCHASING  ,9210,CONTINUING NURSING CARE       ,02/04/2014,3624153,J870985 270414           ,"22,352.00",SCARSDALE GRANGE N.H                    ,361915,Social Community Care,NURSING HOMES                 
ADULT SOCIAL CARE PURCHASING  ,9210,CONTINUING NURSING CARE       ,02/04/2014,3624154,J870986 270414           ,"1,732.00",CRAEGMOOR WILLOWS CHESTERFIELD PRIORY   ,361890,Social Community Care,NURSING HOMES                 
PURCHASING                    ,9200,CONTINUING RESIDENTIAL CARE   ,02/04/2014,3624155,J870987 270414           ,"2,899.56",WESTFIELD HOUSE                         ,362081,Social Community Care,RESIDENTIAL CARE HOMES        
PURCHASING LEARNING DISABILITI,9200,CONTINUING RESIDENTIAL CARE   ,02/04/2014,3624156,J870988 270414           ,"3,100.08",SHEFFIELD CHESHIRE HOME                 ,361768,Social Community Care,NURSING HOMES                 
PDSI PURCHASING               ,9210,CONTINUING NURSING CARE       ,02/04/2014,3624156,J870988 270414           ,"19,962.76",SHEFFIELD CHESHIRE HOME                 ,361768,Social Community Care,NURSING HOMES                 
ADULT SOCIAL CARE PURCHASING  ,9210,CONTINUING NURSING CARE       ,02/04/2014,3624156,J870988 270414           ,"16,087.44",SHEFFIELD CHESHIRE HOME                 ,361768,Social Community Care,NURSING HOMES                 
ADULT SOCIAL CARE PURCHASING  ,9200,CONTINUING RESIDENTIAL CARE   ,02/04/2014,3624157,J870991 270414           ,"1,580.00",SEVENHILLS NURSING                      ,362104,Social Community Care,NURSING HOMES                 
ADULT SOCIAL CARE PURCHASING  ,9210,CONTINUING NURSING CARE       ,02/04/2014,3624157,J870991 270414           ,"9,752.00",SEVENHILLS NURSING                      ,362104,Social Community Care,NURSING HOMES                 
ADULT SOCIAL CARE PURCHASING  ,9200,CONTINUING RESIDENTIAL CARE   ,02/04/2014,3624158,J871011 270414           ,"1,675.60",WATER ROYD HOUSE                        ,383521,Social Community Care,NURSING HOMES                 
PDSI PURCHASING               ,9210,CONTINUING NURSING CARE       ,02/04/2014,3624159,J871017 270414           ,"3,408.64",STOCKSBRIDGE NEURO REHAB                ,387028,Social Community Care,NURSING HOMES                 
PURCHASING LEARNING DISABILITI,9200,CONTINUING RESIDENTIAL CARE   ,02/04/2014,3624160,J871023 270414           ,"5,212.36",SHAFTESBURY HOUSE                       ,403791,Unclassified Non Trade,CHARITIES & VOLUNTARY ORGANISA
PURCHASING LEARNING DISABILITI,9200,CONTINUING RESIDENTIAL CARE   ,02/04/2014,3624161,J871025 270414           ,"12,870.36",ROSEBERRY CARE CENTRES UK LTD           ,412186,Social Community Care,RESIDENTIAL CARE HOMES        
ADULT SOCIAL CARE PURCHASING  ,9200,CONTINUING RESIDENTIAL CARE   ,02/04/2014,3624162,J871028 270414           ,"1,412.00",MEADOW SANDS                            ,417909,Social Community Care,RESIDENTIAL CARE HOMES        
ADULT SOCIAL CARE PURCHASING  ,9210,CONTINUING NURSING CARE       ,02/04/2014,3624163,J871030 270414           ,"1,564.00",WOODLAND CARE                           ,420606,Social Community Care,NURSING HOMES                 
PDSI PURCHASING               ,9200,CONTINUING RESIDENTIAL CARE   ,02/04/2014,3624164,J871032 270414           ,"4,713.48",MAYFIELD HOUSE                          ,424067,Social Community Care,NURSING HOMES                 
PURCHASING LEARNING DISABILITI,9200,CONTINUING RESIDENTIAL CARE   ,02/04/2014,3624165,J871035 270414           ,"6,184.84",PRIORY LODGE                            ,430728,Social Community Care,RESIDENTIAL CARE HOMES        
PURCHASING LEARNING DISABILITI,9200,CONTINUING RESIDENTIAL CARE   ,02/04/2014,3624166,J871040 270414           ,"7,376.84",SENSE NORTH                             ,437084,Unclassified Non Trade,CHARITIES & VOLUNTARY ORGANISA
PURCHASING LEARNING DISABILITI,9200,CONTINUING RESIDENTIAL CARE   ,02/04/2014,3624167,J871046 270414           ,"18,098.68",REDCLIFFE HOUSE                         ,446985,Facilities Management,GUEST HOUSES                  
PURCHASING LEARNING DISABILITI,9200,CONTINUING RESIDENTIAL CARE   ,02/04/2014,3624168,J871047 270414           ,"7,907.60",WOODVIEW CARE HOME                      ,456477,Social Community Care,NURSING HOMES                 
PURCHASING LEARNING DISABILITI,9210,CONTINUING NURSING CARE       ,02/04/2014,3624168,J871047 270414           ,"5,550.56",WOODVIEW CARE HOME                      ,456477,Social Community Care,NURSING HOMES                 
PURCHASING LEARNING DISABILITI,9200,CONTINUING RESIDENTIAL CARE   ,02/04/2014,3624169,J871048 270414           ,"6,475.04",VALEO LIMITED                           ,436642,Social Community Care,RESIDENTIAL CARE HOMES        
ADULT SOCIAL CARE PURCHASING  ,9200,CONTINUING RESIDENTIAL CARE   ,02/04/2014,3624170,J871049 270414           ,"1,640.00",YOLANTA HOUSE RESIDENTIAL HOME          ,461087,Social Community Care,RESIDENTIAL CARE HOMES        
PURCHASING LEARNING DISABILITI,9200,CONTINUING RESIDENTIAL CARE   ,02/04/2014,3624171,J871050 270414           ,"7,409.88",GRETTON HOUSE                           ,461869,Social Community Care,NURSING HOMES                 
ADULT SOCIAL CARE PURCHASING  ,9200,CONTINUING RESIDENTIAL CARE   ,02/04/2014,3624172,J871069 270414           ,"3,485.88",MALLARD COURT CARE HOME                 ,511603,Social Community Care,NURSING HOMES                 
ADULT SOCIAL CARE PURCHASING  ,9200,CONTINUING RESIDENTIAL CARE   ,02/04/2014,3624173,J871070 270414           ,"1,580.00",PILLING CARE HOME                       ,513118,Social Community Care,RESIDENTIAL CARE HOMES        
PURCHASING LEARNING DISABILITI,9200,CONTINUING RESIDENTIAL CARE   ,02/04/2014,3624174,J871074 270414           ,"4,616.44",THE MEWS                                ,525602,Social Community Care,RESIDENTIAL CARE HOMES        
PURCHASING                    ,9200,CONTINUING RESIDENTIAL CARE   ,02/04/2014,3624174,J871074 270414           ,"3,553.80",THE MEWS                                ,525602,Social Community Care,RESIDENTIAL CARE HOMES        
PURCHASING LEARNING DISABILITI,9200,CONTINUING RESIDENTIAL CARE   ,02/04/2014,3624175,J871075 270414           ,"7,616.20",TUNHILL HOUSE                           ,525520,Social Community Care,RESIDENTIAL CARE HOMES        
PURCHASING LEARNING DISABILITI,9200,CONTINUING RESIDENTIAL CARE   ,02/04/2014,3624176,J871079 270414           ,"3,571.40",MOORVIEW HOUSE                          ,546067,Social Community Care,RESIDENTIAL CARE HOMES        
ADULT SOCIAL CARE PURCHASING  ,9210,CONTINUING NURSING CARE       ,02/04/2014,3624177,J871084 270414           ,"1,564.00",THE POPLARS NURSING HOME                ,553979,Social Community Care,NURSING HOMES                 
ADULT SOCIAL CARE PURCHASING  ,9200,CONTINUING RESIDENTIAL CARE   ,02/04/2014,3624178,J871086 270414           ,"1,604.00",MILLFIELD                               ,557481,Social Community Care,NURSING HOMES                 
PURCHASING LEARNING DISABILITI,9200,CONTINUING RESIDENTIAL CARE   ,02/04/2014,3624179,J871091 270414           ,"13,364.40",THE MANSE T/AS KINGFIELD CARE HOME      ,559873,Social Community Care,RESIDENTIAL CARE HOMES        
ADULT SOCIAL CARE PURCHASING  ,9200,CONTINUING RESIDENTIAL CARE   ,02/04/2014,3624180,J871095 270414           ,"1,548.00",WHITE GABLES CARE HOME                  ,563260,Social Community Care,RESIDENTIAL CARE HOMES        
PURCHASING                    ,9200,CONTINUING RESIDENTIAL CARE   ,02/04/2014,3624181,J871096 270414           ,"9,739.44",WESTFIELD MEWS -                        ,563592,Social Community Care,RESIDENTIAL CARE HOMES        
PURCHASING                    ,9210,CONTINUING NURSING CARE       ,02/04/2014,3624182,J871099 270414           ,"5,373.36",PRECEPTORY LODGE                        ,565226,Social Community Care,RESIDENTIAL CARE HOMES        
ADULT SOCIAL CARE PURCHASING  ,9200,CONTINUING RESIDENTIAL CARE   ,02/04/2014,3624183,J871100 270414           ,"1,744.00",BARTON LODGE RESIDENTIAL HOME           ,566032,Social Community Care,RESIDENTIAL CARE HOMES        
ADULT SOCIAL CARE PURCHASING  ,9210,CONTINUING NURSING CARE       ,02/04/2014,3624184,J871108 270414           ,"1,614.76",SUTTON HALL & LODGE                     ,574866,Social Community Care,RESIDENTIAL CARE HOMES        
ADULT SOCIAL CARE PURCHASING  ,9200,CONTINUING RESIDENTIAL CARE   ,02/04/2014,3624185,J847351 300314           ,"1,596.00",GRANGEWOOD LODGE RESIDENTIAL HOME       ,589034,Social Community Care,RESIDENTIAL CARE HOMES        
PURCHASING LEARNING DISABILITI,9200,CONTINUING RESIDENTIAL CARE   ,02/04/2014,3624186,J847472 300314           ,"24,157.12",WHITEGATES MANAGEMENT COMMITTEE         ,361931,Unclassified Trade,ESTATE AGENTS                 
PURCHASING                    ,9200,CONTINUING RESIDENTIAL CARE   ,02/04/2014,3624187,J847611 300314           ,"4,093.88",FREEMAN COLLEGE                         ,449127,Unclassified Non Trade,SCHOOLS & COLLEGES - FURTHER E
ADULT SOCIAL CARE PURCHASING  ,4260,NURSING COSTS RECOVERED       ,02/04/2014,3624188,J855663 300314           ,803.16,TAPTON COURT NURSING HOME               ,362076,Social Community Care,NURSING HOMES                 
ADULT SOCIAL CARE PURCHASING  ,4260,RESIDENTIAL COSTS RECOVERED   ,02/04/2014,3624190,J864064 300314           ,302.7,HALLAMSHIRE REST HOME                   ,362093,Social Community Care,REST & RETIREMENT HOMES       
ADULT SOCIAL CARE PURCHASING  ,4260,RESIDENTIAL COSTS RECOVERED   ,02/04/2014,3624191,J864987 300314           ,399.21,ROSEBERRY CARE CENTRES (YORKSHIRE) LTD  ,580595,Social Community Care,RESIDENTIAL CARE HOMES        
ADULT SOCIAL CARE PURCHASING  ,4260,NURSING COSTS RECOVERED       ,02/04/2014,3624192,J867992 300314           ,"1,249.71",WESTBOURNE HOUSE                        ,362111,Social Community Care,NURSING HOMES                 
ADULT SOCIAL CARE PURCHASING  ,4260,RESIDENTIAL COSTS RECOVERED   ,02/04/2014,3624193,J869524 300314           ,588.67,ROSE COTTAGE CARE HOME                  ,361940,Social Community Care,NURSING HOMES                 
ADULT SOCIAL CARE PURCHASING  ,9200,SHORT TERM RESIDENTIAL CARE   ,02/04/2014,3624195,J870782 300314           ,"2,622.00",ROSEBERRY CARE CENTRES (YORKSHIRE) LTD  ,580595,Social Community Care,RESIDENTIAL CARE HOMES        
ADULT SOCIAL CARE PURCHASING  ,9200,SHORT TERM RESIDENTIAL CARE   ,02/04/2014,3624197,J870795 300314           ,"2,017.14",WHITE ROSE COURT RES HOME               ,361964,Social Community Care,RESIDENTIAL CARE HOMES        
PURCHASING LEARNING DISABILITI,9200,SHORT TERM RESIDENTIAL CARE   ,02/04/2014,3624198,J870804 300314           ,"5,135.00",ROSEBERRY CARE CENTRES UK LTD           ,412186,Social Community Care,RESIDENTIAL CARE HOMES        
HOUSING RELATED SUPPORT       ,9060,SUPPORTING PEOPLE PAYMENTS    ,02/04/2014,3623953,J866713 270414           ,"13,255.92",SOUTH YORKSHIRE HOUSING ASSC (SP)       ,351538,Unclassified Non Trade,"HOUSING ASSOCIATIONS, SOCIETIE"
HOUSING RELATED SUPPORT       ,9060,SUPPORTING PEOPLE PAYMENTS    ,02/04/2014,3623954,J866714 270414           ,"30,646.00",SOUTH YORKSHIRE HOUSING ASSC (SP)       ,351538,Unclassified Non Trade,"HOUSING ASSOCIATIONS, SOCIETIE"
HOUSING RELATED SUPPORT       ,9060,SUPPORTING PEOPLE PAYMENTS    ,02/04/2014,3623955,J866715 270414           ,"28,761.80",SOUTH YORKSHIRE HOUSING ASSC (SP)       ,351538,Unclassified Non Trade,"HOUSING ASSOCIATIONS, SOCIETIE"
HOUSING RELATED SUPPORT       ,9060,SUPPORTING PEOPLE PAYMENTS    ,02/04/2014,3623956,J866716 270414           ,"6,730.24",SOUTH YORKSHIRE HOUSING ASSC (SP)       ,351538,Unclassified Non Trade,"HOUSING ASSOCIATIONS, SOCIETIE"
HOUSING RELATED SUPPORT       ,9060,SUPPORTING PEOPLE PAYMENTS    ,02/04/2014,3623957,J866717 270414           ,"9,817.08",SOUTH YORKSHIRE HOUSING ASSC (SP)       ,351538,Unclassified Non Trade,"HOUSING ASSOCIATIONS, SOCIETIE"
HOUSING RELATED SUPPORT       ,9060,SUPPORTING PEOPLE PAYMENTS    ,02/04/2014,3623958,J866718 270414           ,"44,640.00",SOUTH YORKSHIRE HOUSING ASSC (SP)       ,351538,Unclassified Non Trade,"HOUSING ASSOCIATIONS, SOCIETIE"
HOUSING RELATED SUPPORT       ,9060,SUPPORTING PEOPLE PAYMENTS    ,02/04/2014,3623959,J866719 270414           ,"4,800.00",ST ANNE'S COMMUNITY SERVICES            ,351501,Unclassified Non Trade,"HOUSING ASSOCIATIONS, SOCIETIE"
HOUSING RELATED SUPPORT       ,9060,SUPPORTING PEOPLE PAYMENTS    ,02/04/2014,3623960,J866720 270414           ,"24,595.92",ST ANNE'S COMMUNITY SERVICES            ,351501,Unclassified Non Trade,"HOUSING ASSOCIATIONS, SOCIETIE"
HOUSING RELATED SUPPORT       ,9060,SUPPORTING PEOPLE PAYMENTS    ,02/04/2014,3623961,J866721 270414           ,"13,872.00",STONHAM HOUSING ASSOCIATION (SP)        ,351504,Unclassified Non Trade,"HOUSING ASSOCIATIONS, SOCIETIE"
HOUSING RELATED SUPPORT       ,9060,SUPPORTING PEOPLE PAYMENTS    ,02/04/2014,3623962,J866722 270414           ,"14,586.16",TARGET HOUSING LTD                      ,351507,Unclassified Non Trade,CHARITIES & VOLUNTARY ORGANISA
HOUSING RELATED SUPPORT       ,9060,SUPPORTING PEOPLE PAYMENTS    ,02/04/2014,3623963,J866723 270414           ,"14,640.00",TARGET HOUSING LTD                      ,351507,Unclassified Non Trade,CHARITIES & VOLUNTARY ORGANISA
HOUSING RELATED SUPPORT       ,9060,SUPPORTING PEOPLE PAYMENTS    ,02/04/2014,3623964,J866724 270414           ,"13,413.84",TARGET HOUSING LTD                      ,351507,Unclassified Non Trade,CHARITIES & VOLUNTARY ORGANISA
HOUSING RELATED SUPPORT       ,9060,SUPPORTING PEOPLE PAYMENTS    ,02/04/2014,3623965,J866725 270414           ,"13,520.00",TURNING POINT SERVICES LTD              ,482885,Unclassified Non Trade,CHARITIES & VOLUNTARY ORGANISA
HOUSING RELATED SUPPORT       ,9060,SUPPORTING PEOPLE PAYMENTS    ,02/04/2014,3623966,J866726 270414           ,"11,685.60",TURNING POINT SERVICES LTD              ,482885,Unclassified Non Trade,CHARITIES & VOLUNTARY ORGANISA
HOUSING RELATED SUPPORT       ,9060,SUPPORTING PEOPLE PAYMENTS    ,02/04/2014,3623967,J866727 270414           ,"5,496.00",YORKSHIRE HOUSING LTD                   ,362542,Unclassified Non Trade,CHARITIES & VOLUNTARY ORGANISA
HOUSING RELATED SUPPORT       ,9060,SUPPORTING PEOPLE PAYMENTS    ,02/04/2014,3623968,J866728 270414           ,"4,615.40",YORKSHIRE HOUSING LTD                   ,362542,Unclassified Non Trade,CHARITIES & VOLUNTARY ORGANISA
HOUSING RELATED SUPPORT       ,9060,SUPPORTING PEOPLE PAYMENTS    ,02/04/2014,3623969,J866729 270414           ,"12,376.00",YOUNG WOMENS HOUSING PROJECT (SP)       ,352509,Unclassified Non Trade,CHARITIES & VOLUNTARY ORGANISA
HOUSING RELATED SUPPORT       ,9060,SUPPORTING PEOPLE PAYMENTS    ,02/04/2014,3623970,J866730 270414           ,"3,072.00",SOUTH YORKSHIRE HOUSING ASSC (SP)       ,351538,Unclassified Non Trade,"HOUSING ASSOCIATIONS, SOCIETIE"
HOUSING RELATED SUPPORT       ,9060,SUPPORTING PEOPLE PAYMENTS    ,02/04/2014,3623971,J866731 270414           ,"4,320.00",SOUTH YORKSHIRE HOUSING ASSC (SP)       ,351538,Unclassified Non Trade,"HOUSING ASSOCIATIONS, SOCIETIE"
HOUSING RELATED SUPPORT       ,9060,SUPPORTING PEOPLE PAYMENTS    ,02/04/2014,3623972,J866732 270414           ,"3,606.05",STOTHARD ROAD SCHEME LTD (SP)           ,416114,Unclassified Non Trade,CHARITIES & VOLUNTARY ORGANISA
HOUSING RELATED SUPPORT       ,9060,SUPPORTING PEOPLE PAYMENTS    ,02/04/2014,3623973,J866733 270414           ,"17,010.32",SUPPORT CARE HOUSING LTD                ,351532,Social Community Care,RESIDENTIAL CARE HOMES        
HOUSING RELATED SUPPORT       ,9060,SUPPORTING PEOPLE PAYMENTS    ,02/04/2014,3623974,J866734 270414           ,"13,113.92",THE EXTRACARE CHARITABLE TRUST (SP)     ,486025,Unclassified Non Trade,CHARITIES & VOLUNTARY ORGANISA
HOUSING RELATED SUPPORT       ,9060,SUPPORTING PEOPLE PAYMENTS    ,02/04/2014,3623976,J866736 270414           ,899.23,YORKSHIRE COMMUNITY HOUSING LTD (SP)    ,351536,Unclassified Non Trade,CHARITIES & VOLUNTARY ORGANISA
HOUSING RELATED SUPPORT       ,9060,SUPPORTING PEOPLE PAYMENTS    ,02/04/2014,3623980,J866740 270414           ,"14,601.20",DISC                                    ,587726,Social Community Care,HOME SUPPORT SERVICES         
HOUSING RELATED SUPPORT       ,9060,SUPPORTING PEOPLE PAYMENTS    ,02/04/2014,3623981,J866741 270414           ,"28,384.60",DISC                                    ,587726,Social Community Care,HOME SUPPORT SERVICES         
HOUSING RELATED SUPPORT       ,9060,SUPPORTING PEOPLE PAYMENTS    ,02/04/2014,3623982,J866742 270414           ,598.08,ALPHA (RSL) LTD                         ,587980,Unclassified Non Trade,"HOUSING ASSOCIATIONS, SOCIETIE"
HOUSING RELATED SUPPORT       ,9060,SUPPORTING PEOPLE PAYMENTS    ,02/04/2014,3623983,J869536 270414           ,"26,460.00",COMMUNITY ACTION HALFWAY HOME LTD (SP)  ,351147,Unclassified Non Trade,CHARITIES & VOLUNTARY ORGANISA
HOUSING RELATED SUPPORT       ,9060,SUPPORTING PEOPLE PAYMENTS    ,02/04/2014,3623984,J869537 270414           ,"2,829.12",PLACES FOR PEOPLE INDIVIDUAL SUPPORT(SP),351159,Unclassified Non Trade,CHARITIES & VOLUNTARY ORGANISA
HOUSING RELATED SUPPORT       ,9060,SUPPORTING PEOPLE PAYMENTS    ,02/04/2014,3623985,J866645 270414           ,302.08,ABBEYFIELD CHRIST CHURCH SOC LTD (SP)   ,351508,Unclassified Non Trade,CHARITIES & VOLUNTARY ORGANISA
HOUSING RELATED SUPPORT       ,9060,SUPPORTING PEOPLE PAYMENTS    ,02/04/2014,3623986,J866646 270414           ,"13,280.00",ACTION HOUSING ASSOCIATION LIMITED (SP) ,351129,Unclassified Non Trade,CHARITIES & VOLUNTARY ORGANISA
HOUSING RELATED SUPPORT       ,9060,SUPPORTING PEOPLE PAYMENTS    ,02/04/2014,3623987,J866647 270414           ,"1,313.23",ANCHOR TRUST (SP)                       ,351515,Unclassified Non Trade,CHARITIES & VOLUNTARY ORGANISA
HOUSING RELATED SUPPORT       ,9060,SUPPORTING PEOPLE PAYMENTS    ,02/04/2014,3623988,J866648 270414           ,"5,452.56",SANCTUARY GROUP                         ,351140,Unclassified Non Trade,"HOUSING ASSOCIATIONS, SOCIETIE"
HOUSING RELATED SUPPORT       ,9060,SUPPORTING PEOPLE PAYMENTS    ,02/04/2014,3623993,J866653 270414           ,360,FIRTH'S HOMES (SP)                      ,351522,Unclassified Non Trade,CHARITIES & VOLUNTARY ORGANISA
HOUSING RELATED SUPPORT       ,9060,SUPPORTING PEOPLE PAYMENTS    ,02/04/2014,3623994,J866654 270414           ,370.88,GUINNESS PARTNERSHIP LTD (SP)           ,352940,Unclassified Non Trade,"HOUSING ASSOCIATIONS, SOCIETIE"
HOUSING RELATED SUPPORT       ,9060,SUPPORTING PEOPLE PAYMENTS    ,02/04/2014,3624003,J866663 270414           ,318.23,GUINNESS PARTNERSHIP LTD (SP)           ,352940,Unclassified Non Trade,"HOUSING ASSOCIATIONS, SOCIETIE"
HOUSING RELATED SUPPORT       ,9060,SUPPORTING PEOPLE PAYMENTS    ,02/04/2014,3624004,J866664 270414           ,520.8,GUINNESS PARTNERSHIP LTD (SP)           ,352940,Unclassified Non Trade,"HOUSING ASSOCIATIONS, SOCIETIE"
HOUSING RELATED SUPPORT       ,9060,SUPPORTING PEOPLE PAYMENTS    ,02/04/2014,3624005,J866665 270414           ,771.2,GUINNESS PARTNERSHIP LTD (SP)           ,352940,Unclassified Non Trade,"HOUSING ASSOCIATIONS, SOCIETIE"
HOUSING RELATED SUPPORT       ,9060,SUPPORTING PEOPLE PAYMENTS    ,02/04/2014,3624010,J866670 270414           ,384.16,HOUSING 21 (SP)                         ,351524,Unclassified Non Trade,"HOUSING ASSOCIATIONS, SOCIETIE"
HOUSING RELATED SUPPORT       ,9060,SUPPORTING PEOPLE PAYMENTS    ,02/04/2014,3624012,J866672 270414           ,399.88,METHODIST HOMES FOR THE AGED (SP)       ,351519,Social Community Care,RESIDENTIAL CARE HOMES        
HOUSING RELATED SUPPORT       ,9060,SUPPORTING PEOPLE PAYMENTS    ,02/04/2014,3624013,J866673 270414           ,"5,554.44",PLACES FOR PEOPLE INDIVIDUAL SUPPORT(SP),351159,Unclassified Non Trade,CHARITIES & VOLUNTARY ORGANISA
HOUSING RELATED SUPPORT       ,9060,SUPPORTING PEOPLE PAYMENTS    ,02/04/2014,3624014,J866674 270414           ,"3,360.00",PLACES FOR PEOPLE INDIVIDUAL SUPPORT(SP),351159,Unclassified Non Trade,CHARITIES & VOLUNTARY ORGANISA
HOUSING RELATED SUPPORT       ,9060,SUPPORTING PEOPLE PAYMENTS    ,02/04/2014,3624016,J866676 270414           ,"10,641.84",RETHINK (SP)                            ,351530,Unclassified Non Trade,CHARITIES & VOLUNTARY ORGANISA
HOUSING RELATED SUPPORT       ,9060,SUPPORTING PEOPLE PAYMENTS    ,02/04/2014,3624017,J866677 270414           ,REDACTED PERSONAL DATA,SANCTUARY HOME CARE (SP)                ,529524,Social Community Care,HOME CARE SERVICES            
HOUSING RELATED SUPPORT       ,9060,SUPPORTING PEOPLE PAYMENTS    ,02/04/2014,3624018,J866678 270414           ,"19,621.35",SCC COMMUNITY CARE (SP)                 ,427209,Social Community Care,SOCIAL SERVICES               
HOUSING RELATED SUPPORT       ,9060,SUPPORTING PEOPLE PAYMENTS    ,02/04/2014,3624019,J866679 270414           ,263.4,SHEFFIELD JEWISH HA LIMITED (SP)        ,352097,Unclassified Non Trade,CHARITIES & VOLUNTARY ORGANISA
HOUSING RELATED SUPPORT       ,9060,SUPPORTING PEOPLE PAYMENTS    ,02/04/2014,3624020,J866680 270414           ,616,SHEFFIELD JEWISH HA LIMITED (SP)        ,352097,Unclassified Non Trade,CHARITIES & VOLUNTARY ORGANISA
HOUSING RELATED SUPPORT       ,9060,SUPPORTING PEOPLE PAYMENTS    ,02/04/2014,3624021,J866681 270414           ,"22,000.75",SOUTH YORKSHIRE HOUSING ASSC (SP)       ,351538,Unclassified Non Trade,"HOUSING ASSOCIATIONS, SOCIETIE"
L.D HOUSING RELATED SUPPORT   ,9060,SUPPORTING PEOPLE PAYMENTS    ,02/04/2014,3624023,J866683 270414           ,265.76,SOUTH YORKSHIRE HOUSING ASSC (SP)       ,351538,Unclassified Non Trade,"HOUSING ASSOCIATIONS, SOCIETIE"
HOUSING RELATED SUPPORT       ,9060,SUPPORTING PEOPLE PAYMENTS    ,02/04/2014,3624024,J866684 270414           ,"3,288.00",ACTION HOUSING ASSOCIATION LIMITED (SP) ,351129,Unclassified Non Trade,CHARITIES & VOLUNTARY ORGANISA
HOUSING RELATED SUPPORT       ,9060,SUPPORTING PEOPLE PAYMENTS    ,02/04/2014,3624025,J866685 270414           ,"11,538.48",ACTION HOUSING ASSOCIATION LIMITED (SP) ,351129,Unclassified Non Trade,CHARITIES & VOLUNTARY ORGANISA
HOUSING RELATED SUPPORT       ,9060,SUPPORTING PEOPLE PAYMENTS    ,02/04/2014,3624026,J866686 270414           ,"12,032.00",ACTION HOUSING ASSOCIATION LIMITED (SP) ,351129,Unclassified Non Trade,CHARITIES & VOLUNTARY ORGANISA
HOUSING RELATED SUPPORT       ,9060,SUPPORTING PEOPLE PAYMENTS    ,02/04/2014,3624027,J866687 270414           ,"31,200.00",AGE CONCERN (SHEFFIELD) LTD (SP)        ,351131,Unclassified Non Trade,CHARITIES & VOLUNTARY ORGANISA
HOUSING RELATED SUPPORT       ,9060,SUPPORTING PEOPLE PAYMENTS    ,02/04/2014,3624028,J866688 270414           ,"24,167.36",CHERRYTREE SUPPORT SERVICES LTD (SP)    ,351143,Facilities Management,HOSTELS                       
HOUSING RELATED SUPPORT       ,9060,SUPPORTING PEOPLE PAYMENTS    ,02/04/2014,3624029,J866689 270414           ,"8,000.00",COMMUNITY ACTION HALFWAY HOME LTD (SP)  ,351147,Unclassified Non Trade,CHARITIES & VOLUNTARY ORGANISA
HOUSING RELATED SUPPORT       ,9060,SUPPORTING PEOPLE PAYMENTS    ,02/04/2014,3624030,J866690 270414           ,"20,275.20",GUINNESS PARTNERSHIP LTD (SP)           ,352940,Unclassified Non Trade,"HOUSING ASSOCIATIONS, SOCIETIE"
HOUSING RELATED SUPPORT       ,9060,SUPPORTING PEOPLE PAYMENTS    ,02/04/2014,3624031,J866691 270414           ,"14,553.24",NOMAD OPENING DOORS                     ,351162,Unclassified Non Trade,CHARITIES & VOLUNTARY ORGANISA
HOUSING RELATED SUPPORT       ,9060,SUPPORTING PEOPLE PAYMENTS    ,02/04/2014,3624032,J866692 270414           ,"14,016.96",PITSMOOR YOUTH HOUSING TRUST LTD. (SP)  ,351170,Unclassified Non Trade,CHARITIES & VOLUNTARY ORGANISA
HOUSING RELATED SUPPORT       ,9060,SUPPORTING PEOPLE PAYMENTS    ,02/04/2014,3624033,J866693 270414           ,"12,376.00",PLACES FOR PEOPLE INDIVIDUAL SUPPORT(SP),351159,Unclassified Non Trade,CHARITIES & VOLUNTARY ORGANISA
HOUSING RELATED SUPPORT       ,9060,SUPPORTING PEOPLE PAYMENTS    ,02/04/2014,3624034,J866694 270414           ,"4,556.20",PLACES FOR PEOPLE INDIVIDUAL SUPPORT(SP),351159,Unclassified Non Trade,CHARITIES & VOLUNTARY ORGANISA
HOUSING RELATED SUPPORT       ,9060,SUPPORTING PEOPLE PAYMENTS    ,02/04/2014,3624035,J866695 270414           ,"8,758.64",PLACES FOR PEOPLE INDIVIDUAL SUPPORT(SP),351159,Unclassified Non Trade,CHARITIES & VOLUNTARY ORGANISA
HOUSING RELATED SUPPORT       ,9060,SUPPORTING PEOPLE PAYMENTS    ,02/04/2014,3624036,J866696 270414           ,"21,896.00",ROUNDABOUT LTD (SP)                     ,351180,Facilities Management,HOSTELS                       
HOUSING RELATED SUPPORT       ,9060,SUPPORTING PEOPLE PAYMENTS    ,02/04/2014,3624037,J866697 270414           ,"7,140.96",ROUNDABOUT LTD (SP)                     ,351180,Facilities Management,HOSTELS                       
HOUSING RELATED SUPPORT       ,9060,SUPPORTING PEOPLE PAYMENTS    ,02/04/2014,3624038,J866698 270414           ,"23,058.40",ROUNDABOUT LTD (SP)                     ,351180,Facilities Management,HOSTELS                       
HOUSING RELATED SUPPORT       ,9060,SUPPORTING PEOPLE PAYMENTS    ,02/04/2014,3624039,J866699 270414           ,"25,051.40",THE SALVATION ARMY (SP)                 ,384879,Unclassified Non Trade,"HOUSING ASSOCIATIONS, SOCIETIE"
HOUSING RELATED SUPPORT       ,9060,SUPPORTING PEOPLE PAYMENTS    ,02/04/2014,3624040,J866700 270414           ,"37,249.08",KAREN HAIGH                             ,427208,Unclassified Non Trade,COMMUNITY PROJECTS            
HOUSING RELATED SUPPORT       ,9060,SUPPORTING PEOPLE PAYMENTS    ,02/04/2014,3624041,J866701 270414           ,"27,609.92",KAREN HAIGH                             ,427208,Unclassified Non Trade,COMMUNITY PROJECTS            
HOUSING RELATED SUPPORT       ,9060,SUPPORTING PEOPLE PAYMENTS    ,02/04/2014,3624042,J866702 270414           ,"3,536.00",KAREN HAIGH                             ,427208,Unclassified Non Trade,COMMUNITY PROJECTS            
HOUSING RELATED SUPPORT       ,9060,SUPPORTING PEOPLE PAYMENTS    ,02/04/2014,3624043,J866703 270414           ,"7,615.40",KAREN HAIGH                             ,427208,Unclassified Non Trade,COMMUNITY PROJECTS            
HOUSING RELATED SUPPORT       ,9060,SUPPORTING PEOPLE PAYMENTS    ,02/04/2014,3624044,J866704 270414           ,"28,149.72",SCC COMMUNITY CARE (SP)                 ,427209,Social Community Care,SOCIAL SERVICES               
HOUSING RELATED SUPPORT       ,9060,SUPPORTING PEOPLE PAYMENTS    ,02/04/2014,3624045,J866705 270414           ,"4,142.00",SACMHA LIMITED (SP)                     ,351469,Unclassified Non Trade,CHARITIES & VOLUNTARY ORGANISA
HOUSING RELATED SUPPORT       ,9060,SUPPORTING PEOPLE PAYMENTS    ,02/04/2014,3624046,J866706 270414           ,"30,769.24",SHEFFIELD WOMENS AID                    ,351478,Unclassified Non Trade,CHARITIES & VOLUNTARY ORGANISA
HOUSING RELATED SUPPORT       ,9060,SUPPORTING PEOPLE PAYMENTS    ,02/04/2014,3624047,J866707 270414           ,"13,037.92",SHEFFIELD YWCA (SP)                     ,351494,Unclassified Non Trade,CHARITIES & VOLUNTARY ORGANISA
HOUSING RELATED SUPPORT       ,9060,SUPPORTING PEOPLE PAYMENTS    ,02/04/2014,3624048,J866708 270414           ,"7,767.36",SHEFFIELD YWCA (SP)                     ,351494,Unclassified Non Trade,CHARITIES & VOLUNTARY ORGANISA
HOUSING RELATED SUPPORT       ,9060,SUPPORTING PEOPLE PAYMENTS    ,02/04/2014,3624049,J866709 270414           ,"19,364.80",SHELTER (SP)                            ,352505,Unclassified Non Trade,CHARITIES & VOLUNTARY ORGANISA
HOUSING RELATED SUPPORT       ,9060,SUPPORTING PEOPLE PAYMENTS    ,02/04/2014,3624050,J866710 270414           ,"30,000.00",SHELTER (SP)                            ,352505,Unclassified Non Trade,CHARITIES & VOLUNTARY ORGANISA
HOUSING RELATED SUPPORT       ,9060,SUPPORTING PEOPLE PAYMENTS    ,02/04/2014,3624051,J866711 270414           ,"34,653.84",SHELTER (SP)                            ,352505,Unclassified Non Trade,CHARITIES & VOLUNTARY ORGANISA
HOUSING RELATED SUPPORT       ,9060,SUPPORTING PEOPLE PAYMENTS    ,02/04/2014,3624052,J866712 270414           ,"3,106.88",MAAN SOMALI MENTAL HEALTH SHEFFIELD     ,351498,Medical ,COUNSELLING & ADVICE SERVICES 
CARE PROCEEDINGS (LEGAL FEES) ,8470,LEGAL FEES                    ,03/04/2014,3615889,886908,950,JUSTINE COLE                            ,594124,Legal Services,BARRISTERS                    
DEVELOPMENT CONTROL           ,4180,PLANS FEES                    ,03/04/2014,3625340,ERS INVOICE99089         ,"1,925.00",ASH HOUSE YORKSHIRE LTD T/A             ,594459,Unclassified Non Trade,OUT OF SCOPE FOR SIC MONITORIN
DISABLED GRANTS               ,1165,NC&A OTHER                    ,03/04/2014,3625342,ERS INVOICE99090         ,REDACTED PERSONAL DATA,REDACTED PERSONAL DATA,590651,Unclassified Non Trade,OUT OF SCOPE FOR SIC MONITORIN
MINOR WORK GRANTS             ,1165,NC&A OTHER                    ,03/04/2014,3625343,ERS INVOICE99091         ,"1,140.00", P.ANGELL BUILDER                       ,593717,Construction,ROOFING SERVICES              
ARCHIVES - ACE                ,8460,CONSULTANTS FEES              ,03/04/2014,3625344,ERS INVOICE99092         ,"2,500.00",ANDY BROWN PHOTOGRAPHY                  ,489980,Facilities Management,PHOTOGRAPHERS - GENERAL       
DISABLED GRANTS               ,1165,NC&A OTHER                    ,03/04/2014,3625346,ERS INVOICE99094         ,960,HOLMES ELECTRICAL SERVICES              ,588809,Construction,ELECTRICIANS & ELECTRICAL CONT
DISABLED GRANTS               ,1165,NC&A OTHER                    ,03/04/2014,3625347,ERS INVOICE99095         ,"4,651.00",STANNAH LIFT SERVICES LTD.              ,208625,Social Community Care,STAIRLIFTS - MNFRS & INSTALLER
DISABLED GRANTS               ,1165,NC&A OTHER                    ,03/04/2014,3625348,ERS INVOICE99096         ,"4,000.00",REDACTED PERSONAL DATA,591981,Unclassified Non Trade,OUT OF SCOPE FOR SIC MONITORIN
DISABLED GRANTS               ,1165,NC&A OTHER                    ,03/04/2014,3625349,ERS INVOICE99097         ,"1,706.00",STANNAH LIFT SERVICES LTD.              ,208625,Social Community Care,STAIRLIFTS - MNFRS & INSTALLER
DISABLED GRANTS               ,1165,NC&A OTHER                    ,03/04/2014,3625350,ERS INVOICE99098         ,"4,442.39",STANNAH LIFT SERVICES LTD.              ,208625,Social Community Care,STAIRLIFTS - MNFRS & INSTALLER
ESTATE & ENVIORMENTAL SERVICES,6370,PLAYGROUND MAINTENANCE        ,03/04/2014,3625351,ERS INVOICE99099         ,"1,878.51",VIRIDOR WASTE MANAGEMENT LIMITED        ,541141,Environmental Services,WASTE DISPOSAL SERVICES       
IN HOUSE FOSTER PLACEMENT     ,9270,IN-HOUSE FOSTERING            ,03/04/2014,3625352,ERS INVOICE99100         ,"6,914.00",REDACTED PERSONAL DATA,594593,Social Community Care,ADOPTION & FOSTERING          
IN HOUSE FOSTER PLACEMENT     ,9270,IN-HOUSE FOSTERING            ,03/04/2014,3625353,ERS INVOICE99101         ,"1,123.45",REDACTED PERSONAL DATA,594263,Social Community Care,ADOPTION & FOSTERING          
IN HOUSE FOSTER PLACEMENT     ,9270,IN-HOUSE FOSTERING            ,03/04/2014,3625354,ERS INVOICE99102         ,REDACTED PERSONAL DATA,REDACTED PERSONAL DATA,462682,Social Community Care,ADOPTION & FOSTERING          
GRANT DD                      ,8440,FEE EXPENSES                  ,03/04/2014,3625496,ERS INVOICE99114         ,"95,000.00",ABBEY GLEN LAUNDRY CO LTD               ,202696,Cleaning and Janitorial,LAUNDRIES & LAUNDERETTES      
GRANT DD                      ,8440,FEE EXPENSES                  ,03/04/2014,3625497,ERS INVOICE99115         ,"15,616.23",PROPER PASTY COMPANY LTD                ,366335,Catering,BAKERS' SHOPS                 
GRANT DD                      ,8440,FEE EXPENSES                  ,03/04/2014,3625498,ERS INVOICE99116         ,"14,472.00",JGW TRAINING LTD T/A SKILLS FOR CAREERS ,589320,Human Resources,TRAINING CENTRES              
GRANT DD                      ,8440,FEE EXPENSES                  ,03/04/2014,3625499,ERS INVOICE99117         ,"74,990.28",WILLIAM BECKETT PLASTICS LTD            ,209533,Unclassified Trade,PLASTICS - INJECTION MOULDING 
GRANT DD                      ,8440,FEE EXPENSES                  ,03/04/2014,3625500,ERS INVOICE99118         ,"198,817.74",TINSLEY BRIDGE (HOLDINGS) LIMITED       ,592316,Building Construction Materials,ENGINEERING MATERIALS         
GRANT DD                      ,8440,FEE EXPENSES                  ,03/04/2014,3625501,ERS INVOICE99119         ,"344,150.00", SCX SPECIAL PROJECTS LTD               ,594638,Consultancy,MECHANICAL HANDLING ENGINEERS 
GRANT DD                      ,8440,FEE EXPENSES                  ,03/04/2014,3625502,ERS INVOICE99120         ,"86,111.65",POWERTHERM CONTRACT SERVICES LTD        ,592830,Construction,INSULATION INSTALLERS         
MINOR WORKS & ADAPTATIONS     ,6030,REPAIRS AND MTCE - RESPONSIVE ,03/04/2014,3625504,ERS INVOICE99122         ,REDACTED PERSONAL DATA,NEIL MARRISON                           ,459864,Construction,BUILDING SERVICES             
ALDINE HOUSE                  ,7060,EXTERNAL VEHICLE HIRE         ,03/04/2014,3608570,QC11285                  ,300,QUAYSIDE CARE                           ,317889,Social Community Care,SOCIAL SERVICES               
ADULT SOCIAL CARE PURCHASING  ,8490,OTHER PROFESSIONAL FEES       ,03/04/2014,3612064,JC/OCT/2013/01           ,360,REFLECT BSL                             ,557738,Human Resources,TRANSLATORS & INTERPRETERS    
SUCCESSFUL FAMILIES PROGRAMME ,8440,FEE EXPENSES                  ,03/04/2014,3612219,228,"6,341.83",MANOR CASTLE DEVELOPMENT TRUST          ,451957,Unclassified Non Trade,DEVELOPMENT AGENCIES          
LANSDOWNE AND HANOVER CLADDING,1157,DWELLINGS MAIN CONTRACT       ,03/04/2014,3617215,47741,REDACTED PERSONAL DATA,CHRISTOPHER  BAKER                      ,576759,Legal Services,SOLICITORS MARKETING SERVICES 
PLAYGROUND MAINTENANCE & INSPE,8010,EQUIPMENT PURCHASE AND REPAIR ,03/04/2014,3618109,4188,"2,616.00",DURA-SPORT LTD                          ,372165,Construction,TENNIS COURTS & SPORTS SURFACE
PUPIL ADMISSIONS              ,8490,TRANSLATN/SIGN/INTERPRET FEES ,03/04/2014,3618378,54940,615,LANGUAGELINE SOLUTIONS                  ,206348,Human Resources,TRANSLATORS & INTERPRETERS    
PLAYGROUND MAINTENANCE & INSPE,8010,EQUIPMENT PURCHASE AND REPAIR ,03/04/2014,3618389,14797,"1,250.00",LIGHTMAIN COMPANY LTD                   ,377849,Sports & Playground,PLAYGROUND EQUIPMENT          
PLAYGROUND MAINTENANCE & INSPE,8010,EQUIPMENT PURCHASE AND REPAIR ,03/04/2014,3618390,14695,750,LIGHTMAIN COMPANY LTD                   ,377849,Sports & Playground,PLAYGROUND EQUIPMENT          
27) COMM ST SMOK - SOUTH & OLL,9030,HEALTH                        ,03/04/2014,3621592,SOARCO/1223              ,"7,621.50",SOAR COMMUNITY (SMOKING)                ,581267,Social Community Care,PUBLIC HEALTH SUPPLIERS       
CATERING PREMISES & EQUIPMENT ,8010,EQUIPMENT PURCHASE AND REPAIR ,03/04/2014,3622089,13_41882                 ,784,NORSEMAN DIRECT                         ,320977,Unclassified Trade,"TROLLEY, TRUCK & BARROW MAKERS"
TREE PLANTING                 ,8440,FEE EXPENSES                  ,03/04/2014,3622491,9000172340,500,BARNSLEY MBC                            ,414839,Unclassified Non Trade,LOCAL GOVERNMENT              
CREMATORIA                    ,6020,REPAIRS AND MTCE - PROGRAMMED ,03/04/2014,3622680,006UK/14                 ,430,IFZW MAINTENANCE LTD                    ,563612,Cemetery & Crematorium ,CEMETERIES & CREMATORIA       
COMMUNICATIONS                ,9120,OTHER AGENCIES                ,03/04/2014,3622750,210885,618,B AND B PRESS (PARKGATE) LTD            ,203168,Facilities Management,PRINTERS                      
COMMUNICATIONS                ,9120,OTHER AGENCIES                ,03/04/2014,3622752,210884,627,B AND B PRESS (PARKGATE) LTD            ,203168,Facilities Management,PRINTERS                      
FOOD HYGIENE                  ,8350,MISCELLANEOUS EXPENSES        ,03/04/2014,3622791,173369,382.9,OSBORNE RICHARDSON LTD                  ,504174,Human Resources,EMPLOYMENT & RECRUITMENT AGENC
FOOD HYGIENE                  ,8350,MISCELLANEOUS EXPENSES        ,03/04/2014,3622794,173370,339.25,OSBORNE RICHARDSON LTD                  ,504174,Human Resources,EMPLOYMENT & RECRUITMENT AGENC
FOOD HYGIENE                  ,8350,MISCELLANEOUS EXPENSES        ,03/04/2014,3622808,173572,416,OSBORNE RICHARDSON LTD                  ,504174,Human Resources,EMPLOYMENT & RECRUITMENT AGENC
FOOD HYGIENE                  ,8350,MISCELLANEOUS EXPENSES        ,03/04/2014,3622810,173573,472.4,OSBORNE RICHARDSON LTD                  ,504174,Human Resources,EMPLOYMENT & RECRUITMENT AGENC
COMMUNICATIONS                ,9120,OTHER AGENCIES                ,03/04/2014,3622955,13991,500,BLIND MICE MEDIA LTD                    ,554813,Facilities Management,ADVERTISING - MEDIA           
OFF STREET CAR PARKS          ,6210,RENTS                         ,03/04/2014,3623147,S0010485                 ,"16,250.00",HOMES & COMMUNITIES AGENCY              ,320560,Unclassified Non Trade,DEVELOPMENT AGENCIES          
CAR PARKING MANAGEMENT        ,6390,STREET CLEANING               ,03/04/2014,3623176,90-098612                ,"1,881.00",D H MANSFIELD LIMITED                   ,578011,Vehicles Not Buses,CAR BREAKDOWN & RECOVERY SERVI
ACCES2NATURE                  ,8260,WOODLAND DEVELOPMENT EXPENSES ,03/04/2014,3623186,8090,462.66,MUDDY FACES LTD                         ,470667,Leisure Services,OUTDOOR PURSUIT ORGANISERS & E
SERVICE OVERHEADS             ,6280,HIRE OF PREMISES              ,03/04/2014,3623193,3031331,700,7 HILLS LEISURE TRUST                   ,566500,Leisure Services,SPORTS GROUND & STADIUM CONTRA
CARE PROCEEDINGS (LEGAL FEES) ,8470,LEGAL FEES                    ,03/04/2014,3623385,2839,331.72,FORENSIC TESTING SERVICE LTD            ,557750,Medical ,MEDICAL & DENTAL LABORATORIES 
OTHER REPAIRS & FEES          ,6030,REPAIRS AND MTCE - RESPONSIVE ,03/04/2014,3623414,15549,580,AMBER VALLEY WATER SERVICES             ,386647,Environmental Services,WATER TREATMENT EQUIPMENT & SE
COMMUNITY YOUTH TEAMS         ,8440,FEE EXPENSES                  ,03/04/2014,3623426,CEXLLSC0314              ,300,COLLINS-DONNELLY CONSULTANCY            ,504223,Human Resources,TRAINING CONSULTANTS          
CAR PARKING MANAGEMENT        ,8010,EQUIPMENT PURCHASE AND REPAIR ,03/04/2014,3623427,2031378,382,PROBIKE LTD                             ,533143,Vehicles Not Buses,MOTOR CYCLE PARTS & ACCESSORIE
GROUNDS MAINTENANCE           ,8010,EQUIPMENT PURCHASE AND REPAIR ,03/04/2014,3623436,5366/234                 ,600,ENVIRONMENTAL DRAINAGE SOLUTIONS LTD    ,373384,Environmental Services,DRAINAGE CONTRACTORS          
THE MOOR INDOOR MARKET        ,6090,WASTE DISPOSAL                ,03/04/2014,3623437,MO245B                   ,600,R L DEAR (WASTE MERCHANTS) LTD          ,360135,Environmental Services,WASTE MERCHANTS               
CARE PROCEEDINGS (LEGAL FEES) ,8470,LEGAL FEES                    ,03/04/2014,3623458,242564,350,MISS FARZANA TAI                        ,566437,Legal Services,BARRISTERS                    
SUPPORTED HOUSING             ,6020,VOID PAINTING INITIATIVE      ,03/04/2014,3623461,L10391                   ,854,BELL GROUP (LEEDS)                      ,441427,Construction,PAINTERS & DECORATORS         
SUPPORTED HOUSING             ,6020,VOID PAINTING INITIATIVE      ,03/04/2014,3623462,L10392                   ,584,BELL GROUP (LEEDS)                      ,441427,Construction,PAINTERS & DECORATORS         
ALDINE HOUSE                  ,8130,CATERING SUPPLIES             ,03/04/2014,3623645,256958147,382.81,YORKSHIRE PURCHASING ORGANISATION       ,295997,Unclassified Trade,PURCHASING SERVICES           
LEARNING SUPPORT              ,8040,LEARNING RESOURCES            ,03/04/2014,3623679,2100157362,"1,329.50",SHEFFIELD CHILDRENS HOSPITAL NHS  TRUST ,332785,Unclassified Non Trade,HOSPITALS                     
GRAVES PARK - ANIMAL FARM INC ,8060,MATERIALS AND SUPPLIES GENERAL,03/04/2014,3623691,285338,519.08,ARGO FEEDS LTD                          ,203028,Unclassified Trade,PET FOODS & ANIMAL FEEDS      
COMMUNICATIONS                ,9120,OTHER AGENCIES                ,03/04/2014,3623702,INV165246                ,809.22,A PINDER LTD                            ,202627,Facilities Management,COPYING & DUPLICATING SERVICES
COMMUNICATIONS                ,9120,OTHER AGENCIES                ,03/04/2014,3623705,INV165315                ,439.2,A PINDER LTD                            ,202627,Facilities Management,COPYING & DUPLICATING SERVICES
GATEWAY PROJECT               ,8050,FURNITURE PURCHASES           ,03/04/2014,3623707,24325,972.58,MAKEPORT 2001 LTD                       ,350362,Furniture,FURNISHERS                    
SHELTERED PAYMENTS TO TENANTS ,6060,DECANTING/REMOVAL COSTS       ,03/04/2014,3624095,673056,397.82,PICKFORDS                               ,573763,Transport,REMOVALS - OVERSEAS           
VACANTS                       ,8050,FURNITURE PURCHASES           ,03/04/2014,3624097,INV0104701               ,326.2,POSTURITE (UK) LTD.                     ,207615,Consultancy,ERGONOMICS                    
OTHER REPAIRS & FEES          ,6030,PURCHASE OF KEYS / SACKS      ,03/04/2014,3624098,30677,309,TELEQUIP C & SS LTD                     ,408050,Facilities Management,SECURITY SERVICES             
FULFILMENT TEAM               ,8350,MISCELLANEOUS EXPENSES        ,03/04/2014,3624395,J0713                    ,462,RADAR KEY COMPANY                       ,364216,Facilities Management,KEY CUTTING                   
SHORT BREAKS FUNDING FOR DISAB,9120,OTHER AGENCIES                ,03/04/2014,3624400,25943,278.78,SPECTRUM SOCIAL CARE LTD                ,328608,Human Resources,EMPLOYMENT & RECRUITMENT AGENC
SHORT BREAKS FUNDING FOR DISAB,9120,OTHER AGENCIES                ,03/04/2014,3624403,307,497.31,MASKK                                   ,386161,Unclassified Non Trade,CHARITIES & VOLUNTARY ORGANISA
COMMUNICATIONS                ,9120,OTHER AGENCIES                ,03/04/2014,3624418,3788,692,NEW LEAF SIGN & DESIGN LTD              ,549524,Facilities Management,SIGN & POSTER WRITERS         
COMMUNICATIONS                ,9120,OTHER AGENCIES                ,03/04/2014,3624425,3783,288.5,NEW LEAF SIGN & DESIGN LTD              ,549524,Facilities Management,SIGN & POSTER WRITERS         
COMMUNICATIONS                ,9120,OTHER AGENCIES                ,03/04/2014,3624426,3779,332.5,NEW LEAF SIGN & DESIGN LTD              ,549524,Facilities Management,SIGN & POSTER WRITERS         
COMMUNICATIONS                ,9120,OTHER AGENCIES                ,03/04/2014,3624427,3780,288.5,NEW LEAF SIGN & DESIGN LTD              ,549524,Facilities Management,SIGN & POSTER WRITERS         
COMMUNICATIONS                ,9120,OTHER AGENCIES                ,03/04/2014,3624428,3787,748.49,NEW LEAF SIGN & DESIGN LTD              ,549524,Facilities Management,SIGN & POSTER WRITERS         
COMMUNICATIONS                ,9120,OTHER AGENCIES                ,03/04/2014,3624431,3781,509.12,NEW LEAF SIGN & DESIGN LTD              ,549524,Facilities Management,SIGN & POSTER WRITERS         
COMMUNICATIONS                ,9120,OTHER AGENCIES                ,03/04/2014,3624433,3784,"2,217.60",NEW LEAF SIGN & DESIGN LTD              ,549524,Facilities Management,SIGN & POSTER WRITERS         
COMMUNICATIONS                ,9120,OTHER AGENCIES                ,03/04/2014,3624434,3774,288.5,NEW LEAF SIGN & DESIGN LTD              ,549524,Facilities Management,SIGN & POSTER WRITERS         
FOOD HYGIENE                  ,8350,MISCELLANEOUS EXPENSES        ,03/04/2014,3624472,173770,371.4,OSBORNE RICHARDSON LTD                  ,504174,Human Resources,EMPLOYMENT & RECRUITMENT AGENC
FOOD HYGIENE                  ,8350,MISCELLANEOUS EXPENSES        ,03/04/2014,3624473,173771,261.6,OSBORNE RICHARDSON LTD                  ,504174,Human Resources,EMPLOYMENT & RECRUITMENT AGENC
OUT OF CITY GUM               ,9030,HEALTH                        ,03/04/2014,3624512,H0099415                 ,"1,182.00", IMPERIAL COLLEGE HEALTH NHS TRUST      ,593270,Facilities Management,PUBLIC HEALTH SUPPLIERS       
INCLUSION CENTRE              ,8550,OTHER SERVICES                ,03/04/2014,3624521,93/F14                   ,320,FURNIVAL BURNGREAVE COMMUNITY PROJECTS  ,410738,Unclassified Non Trade,COMMUNITY PROJECTS            
THE MOOR INDOOR MARKET        ,8550,OTHER SERVICES                ,03/04/2014,3624522,R016609                  ,250,SPECIALISED MOVERS                      ,303661,Transport,REMOVALS - INDUSTRIAL & BUSINE
INCLUSION CENTRE              ,8490,OTHER PROFESSIONAL FEES       ,03/04/2014,3624523,169,"9,333.00",INTERCHANGE SHEFFIELD CIC               ,578950,Medical ,COUNSELLING & ADVICE SERVICES 
LDD SPECIALIST PLACEMENTS     ,5610,AGENCY STAFF                  ,03/04/2014,3624527,226411618,263.67,REED                                    ,341818,Human Resources,EMPLOYMENT & RECRUITMENT AGENC
GATEWAY 2A-E                  ,8440,FEE EXPENSES                  ,03/04/2014,3624544,56350,795,LANGUAGELINE SOLUTIONS                  ,206348,Human Resources,TRANSLATORS & INTERPRETERS    
LDD SPECIALIST PLACEMENTS     ,5610,AGENCY STAFF                  ,03/04/2014,3624556,226411617,263.67,REED                                    ,341818,Human Resources,EMPLOYMENT & RECRUITMENT AGENC
SHORT BREAKS FUNDING FOR DISAB,9120,OTHER AGENCIES                ,03/04/2014,3624581,18980,752,BURTON STREET PROJECT                   ,342774,Unclassified Non Trade,CHARITIES & VOLUNTARY ORGANISA
MOORFOOT LEARNING CENTRE      ,8440,FEE EXPENSES                  ,03/04/2014,3624582,113605348,350,ROTHERHAM MBC                           ,329721,Unclassified Non Trade,LOCAL GOVERNMENT              
PLAYGROUND MAINTENANCE & INSPE,8010,EQUIPMENT PURCHASE AND REPAIR ,03/04/2014,3624588,SI145035                 ,654.72,FLEET (LINE MARKERS) LTD                ,204890,Sports & Playground,SPORTS EQUIPMENT MNFRS & DISTR
FORGE CENTRE                  ,4080,FEES & CHARGES                ,03/04/2014,3624612,678793,619.44,PICKFORDS                               ,573763,Transport,REMOVALS - OVERSEAS           
ENHANCED SERVICE - IMPLANON   ,9030,HEALTH                        ,03/04/2014,3624677,[100]                    ,425,PAGE HALL MEDICAL CENTRE                ,585534,Facilities Management,PUBLIC HEALTH SUPPLIERS       
MADE IN SHEFFIELD             ,9120,OTHER AGENCIES                ,03/04/2014,3624682,1169,"1,800.00",THE SOURCE AT MEADOWHALL                ,350485,Human Resources,TRAINING CENTRES              
WORK CHOICE                   ,8440,FEE EXPENSES                  ,03/04/2014,3624683,5180,356.8,IRLEN CENTRE NORTH EAST                 ,554354,Unclassified Non Trade,EDUCATION AGENCIES & AUTHORITI
WORK CHOICE                   ,8440,FEE EXPENSES                  ,03/04/2014,3624684,5181,356.8,IRLEN CENTRE NORTH EAST                 ,554354,Unclassified Non Trade,EDUCATION AGENCIES & AUTHORITI
ENHANCED SERVICE - IUCDS      ,9030,HEALTH                        ,03/04/2014,3624696,3,560,THE SLOAN PRACTICE (MEDICAL CENTRE)     ,582268,Facilities Management,PUBLIC HEALTH SUPPLIERS       
ENHANCED SERVICE - IMPLANON   ,9030,HEALTH                        ,03/04/2014,3624696,3,"2,750.00",THE SLOAN PRACTICE (MEDICAL CENTRE)     ,582268,Facilities Management,PUBLIC HEALTH SUPPLIERS       
OUT OF CITY GUM               ,9030,HEALTH                        ,03/04/2014,3624699,231090,627, CENTRAL MANCHESTER UNIVERSITY HOSPITALS,590015,Facilities Management,PUBLIC HEALTH SUPPLIERS       
25) COMM ST SMOK - SHARROW    ,9030,HEALTH                        ,03/04/2014,3624939,1970,"4,659.00",SHARROW COMMUNITY FORUM                 ,318379,Unclassified Non Trade,SCHOOLS - LOCAL AUTHORITY     
ALDINE HOUSE                  ,7060,EXTERNAL VEHICLE HIRE         ,03/04/2014,3625157,QC11286                  ,375,QUAYSIDE CARE                           ,317889,Social Community Care,SOCIAL SERVICES               
COMMUNICATIONS                ,9120,OTHER AGENCIES                ,03/04/2014,3625182,41590,"2,003.00",EVOLUTION PRINT LTD                     ,455374,Facilities Management,PRINTERS                      
LANSDOWNE AND HANOVER CLADDING,1161,NC&A MAIN CONTRACT            ,03/04/2014,3625201,SH03083/28               ,"107,200.00",APOLLO PROPERTY SERVICES GROUP          ,551467,Construction,BUILDERS                      
POP'N GROWTH PHS 2 - F&DESIGN ,1161,NC&A MAIN CONTRACT            ,03/04/2014,3625204,ED03777/2                ,"116,580.10",INTERSERVE CONSTRUCTION LIMITED         ,547901,Construction,BUILDERS                      
COMMUNICATIONS                ,9120,OTHER AGENCIES                ,03/04/2014,3625208,35449,642,BAKES AND LORD LTD                      ,576330,Facilities Management,PRINTERS                      
COMMUNICATIONS                ,9120,OTHER AGENCIES                ,03/04/2014,3625225,SI-4010                  ,488,BLUECHIP PRINT (YORKSHIRE) LTD          ,594223,Facilities Management,PRINTERS                      
SCHOOLS LIBRARY SERVICE       ,8080,LIBRARY MATERIALS             ,03/04/2014,3625246,1914970,341.84,BERTRAM LIBRARY SERVICES                ,418929,Education,EDUCATIONAL EQUIPMENT & SUPPLI
BOOKS & OTHER MATERIALS       ,8080,LIBRARY MATERIALS             ,03/04/2014,3625259,1915909,468.71,BERTRAM LIBRARY SERVICES                ,418929,Education,EDUCATIONAL EQUIPMENT & SUPPLI
COMMUNICATIONS                ,9120,OTHER AGENCIES                ,03/04/2014,3625282,82324,500,SPLINTER ( C )  LIMITED                 ,593722,Facilities Management,DESIGN CONSULTANTS            
VEHICLE & PLANT EFFICIENCY 13-,1182,PURCHASE OF VEHICLES          ,03/04/2014,3625289,UMT0003328               ,"48,985.37",TREKA BUS LTD                           ,571552,Vehicles Not Buses,VEHICLE CONVERSIONS           
BOOKS & OTHER MATERIALS       ,8080,MEDIA                         ,03/04/2014,3625297,1916616,701.67,BERTRAM LIBRARY SERVICES                ,418929,Education,EDUCATIONAL EQUIPMENT & SUPPLI
BOOKS & OTHER MATERIALS       ,8080,LIBRARY MATERIALS             ,03/04/2014,3625419,1914433,376.72,BERTRAM LIBRARY SERVICES                ,418929,Education,EDUCATIONAL EQUIPMENT & SUPPLI
OLDER PERSONS LIVING          ,6150,ELECTRICITY                   ,03/04/2014,3625150,8.50E+11,252.99,BRITISH GAS                             ,443401,Utilities,GAS COMPANIES                 
INTELLIGENT TRANSPORT SYSTEMS ,6390,NETWORK COMMUNICATIONS        ,03/04/2014,3625175,VP98220270M14001R4       ,361.07,BRITISH TELECOMMUNICATIONS PLC          ,295860,ICT,TELECOMMUNICATION SERVICES    
PURCHASING LEARNING DISABILITI,9190,FUNDED HOME SUPPORT           ,03/04/2014,3625031,J873433                  ,REDACTED PERSONAL DATA,REDACTED PERSONAL DATA,543944,Social Community Care,CAREFIRST DIRECT PAYMENTS     
ADULT SOCIAL CARE PURCHASING  ,9190,DIRECT PAYMENTS               ,03/04/2014,3625032,J873433                  ,"1,160.08",A4E                                     ,547567,Human Resources,TRAINING SERVICES             
PURCHASING                    ,9190,DIRECT PAYMENTS               ,03/04/2014,3625033,J873433                  ,REDACTED PERSONAL DATA,REDACTED PERSONAL DATA,549671,Social Community Care,CAREFIRST DIRECT PAYMENTS     
ADULT SOCIAL CARE PURCHASING  ,9190,DIRECT PAYMENTS               ,03/04/2014,3625034,J873433                  ,REDACTED PERSONAL DATA,REDACTED PERSONAL DATA,555084,Social Community Care,CAREFIRST DIRECT PAYMENTS     
PURCHASING LEARNING DISABILITI,9190,DIRECT PAYMENTS               ,03/04/2014,3625035,J873433                  ,REDACTED PERSONAL DATA,CITIZENSHIP FIRST                       ,556890,Social Community Care,CAREFIRST DIRECT PAYMENTS     
ADULT SOCIAL CARE PURCHASING  ,9190,DIRECT PAYMENTS               ,03/04/2014,3625036,J873433                  ,REDACTED PERSONAL DATA,REDACTED PERSONAL DATA,557512,Social Community Care,CAREFIRST DIRECT PAYMENTS     
ADULT SOCIAL CARE PURCHASING  ,9190,DIRECT PAYMENTS               ,03/04/2014,3625038,J873433                  ,"1,563.91",THE ROWAN ORGANISATION MANAGED ACCOUNTS ,585750,Social Community Care,CAREFIRST DIRECT PAYMENTS     
PURCHASING LEARNING DISABILITI,9190,DIRECT PAYMENTS               ,03/04/2014,3625039,J873433                  ,"1,840.70",REDACTED PERSONAL DATA,594524,Social Community Care,CAREFIRST DIRECT PAYMENTS     
PURCHASING LEARNING DISABILITI,9190,SUPPORT PLANNING COSTS        ,03/04/2014,3625040,J873434                  ,REDACTED PERSONAL DATA,ITS MY LIFE LTD                         ,558028,Social Community Care,HOME HELP SERVICES - PRIVATE  
ADULT SOCIAL CARE PURCHASING  ,9190,SUPPORT PLANNING COSTS        ,03/04/2014,3625041,J873434                  ,REDACTED PERSONAL DATA,AGE UK                                  ,568628,Social Community Care,CAREFIRST DIRECT PAYMENTS     
ADULT SOCIAL CARE PURCHASING  ,9190,CITYWIDE SPOT                 ,03/04/2014,3625043,38286-38302              ,"1,407.33",TLC HOMECARE LTD                        ,573940,Social Community Care,RESIDENTIAL CARE HOMES        
ADULT SOCIAL CARE PURCHASING  ,9190,CITYWIDE SPOT                 ,03/04/2014,3625046,876,364,DOMUS HEALTHCARE (ROTHERHAM) LIMITED    ,574392,Social Community Care,RESIDENTIAL CARE HOMES        
ADULT SOCIAL CARE PURCHASING  ,9190,CITYWIDE SPOT                 ,03/04/2014,3625047,877,450.64,DOMUS HEALTHCARE (ROTHERHAM) LIMITED    ,574392,Social Community Care,RESIDENTIAL CARE HOMES        
ADULT SOCIAL CARE PURCHASING  ,9190,CITYWIDE SPOT                 ,03/04/2014,3625048,878,292.5,DOMUS HEALTHCARE (ROTHERHAM) LIMITED    ,574392,Social Community Care,RESIDENTIAL CARE HOMES        
PURCHASING LEARNING DISABILITI,9190,CITYWIDE SPOT                 ,03/04/2014,3625049,879,708.5,DOMUS HEALTHCARE (ROTHERHAM) LIMITED    ,574392,Social Community Care,RESIDENTIAL CARE HOMES        
ADULT SOCIAL CARE PURCHASING  ,9190,FUNDED HOME SUPPORT           ,03/04/2014,3625050,880,393.76,DOMUS HEALTHCARE (ROTHERHAM) LIMITED    ,574392,Social Community Care,RESIDENTIAL CARE HOMES        
ADULT SOCIAL CARE PURCHASING  ,9190,CITYWIDE SPOT                 ,03/04/2014,3625050,880,402.47,DOMUS HEALTHCARE (ROTHERHAM) LIMITED    ,574392,Social Community Care,RESIDENTIAL CARE HOMES        
ADULT SOCIAL CARE PURCHASING  ,9190,CITYWIDE SPOT                 ,03/04/2014,3625051,881,303.36,DOMUS HEALTHCARE (ROTHERHAM) LIMITED    ,574392,Social Community Care,RESIDENTIAL CARE HOMES        
ADULT SOCIAL CARE PURCHASING  ,9190,CITYWIDE SPOT                 ,03/04/2014,3625055,884,"1,072.50",DOMUS HEALTHCARE (ROTHERHAM) LIMITED    ,574392,Social Community Care,RESIDENTIAL CARE HOMES        
ADULT SOCIAL CARE PURCHASING  ,9190,CITYWIDE SPOT                 ,03/04/2014,3625056,885,364,DOMUS HEALTHCARE (ROTHERHAM) LIMITED    ,574392,Social Community Care,RESIDENTIAL CARE HOMES        
ADULT SOCIAL CARE PURCHASING  ,9190,CITYWIDE SPOT                 ,03/04/2014,3625058,887,"1,716.00",DOMUS HEALTHCARE (ROTHERHAM) LIMITED    ,574392,Social Community Care,RESIDENTIAL CARE HOMES        
ADULT SOCIAL CARE PURCHASING  ,9190,CITYWIDE SPOT                 ,03/04/2014,3625059,888,338,DOMUS HEALTHCARE (ROTHERHAM) LIMITED    ,574392,Social Community Care,RESIDENTIAL CARE HOMES        
ADULT SOCIAL CARE PURCHASING  ,9190,CITYWIDE SPOT                 ,03/04/2014,3625061,890,615.36,DOMUS HEALTHCARE (ROTHERHAM) LIMITED    ,574392,Social Community Care,RESIDENTIAL CARE HOMES        
ADULT SOCIAL CARE PURCHASING  ,9190,CITYWIDE SPOT                 ,03/04/2014,3625062,891,554.67,DOMUS HEALTHCARE (ROTHERHAM) LIMITED    ,574392,Social Community Care,RESIDENTIAL CARE HOMES        
ADULT SOCIAL CARE PURCHASING  ,9190,CITYWIDE SPOT                 ,03/04/2014,3625063,892,338,DOMUS HEALTHCARE (ROTHERHAM) LIMITED    ,574392,Social Community Care,RESIDENTIAL CARE HOMES        
ADULT SOCIAL CARE PURCHASING  ,9190,CITYWIDE SPOT                 ,03/04/2014,3625065,893,606.64,DOMUS HEALTHCARE (ROTHERHAM) LIMITED    ,574392,Social Community Care,RESIDENTIAL CARE HOMES        
ADULT SOCIAL CARE PURCHASING  ,9190,CITYWIDE SPOT                 ,03/04/2014,3625070,37294-37311              ,"1,540.54",TLC HOMECARE LTD                        ,573940,Social Community Care,RESIDENTIAL CARE HOMES        
ADULT SOCIAL CARE PURCHASING  ,9190,CITYWIDE SPOT                 ,03/04/2014,3625071,37622-37639              ,"1,555.28",TLC HOMECARE LTD                        ,573940,Social Community Care,RESIDENTIAL CARE HOMES        
ADULT SOCIAL CARE PURCHASING  ,9190,CITYWIDE SPOT                 ,03/04/2014,3625072,37952-37968              ,"1,415.70",TLC HOMECARE LTD                        ,573940,Social Community Care,RESIDENTIAL CARE HOMES        
ADULT SOCIAL CARE PURCHASING  ,9200,CONTINUING RESIDENTIAL CARE   ,03/04/2014,3624942,J871001 270414           ,"1,564.00",CLUMBER COURT CARE HOME                 ,368325,Social Community Care,RESIDENTIAL CARE HOMES        
ADULT SOCIAL CARE PURCHASING  ,9200,CONTINUING RESIDENTIAL CARE   ,03/04/2014,3624943,J871021 270414           ,"1,548.00",HIGHGROVE CARE HOME                     ,397555,Social Community Care,RESIDENTIAL CARE HOMES        
PURCHASING                    ,9200,CONTINUING RESIDENTIAL CARE   ,03/04/2014,3624944,J871031 270414           ,"13,945.72",CHURCH VIEW RESIDENTIAL N/H             ,424064,Unclassified Non Trade,PLACES OF WORSHIP             
ADULT SOCIAL CARE PURCHASING  ,9200,CONTINUING RESIDENTIAL CARE   ,03/04/2014,3624945,J871036 270414           ,"1,580.00",BRAILSFORD HOUSE RESIDENTIAL HOME       ,430727,Social Community Care,RESIDENTIAL CARE HOMES        
PURCHASING                    ,9210,CONTINUING NURSING CARE       ,03/04/2014,3624946,J871037 270414           ,REDACTED PERSONAL DATA,IVY MEAD                                ,433430,Social Community Care,NURSING HOMES                 
PDSI PURCHASING               ,9200,CONTINUING RESIDENTIAL CARE   ,03/04/2014,3624947,J871051 270414           ,"3,636.72",CLARO ROAD                              ,463335,Social Community Care,DISABILITY & SPECIAL NEEDS - S
PURCHASING LEARNING DISABILITI,9200,CONTINUING RESIDENTIAL CARE   ,03/04/2014,3624948,J871053 270414           ,"3,571.24",HOLLY HOUSE                             ,464393,Social Community Care,RESIDENTIAL CARE HOMES        
PURCHASING LEARNING DISABILITI,9200,CONTINUING RESIDENTIAL CARE   ,03/04/2014,3624949,J871055 270414           ,"7,732.56",THE GLADES HEALTH CARE LTD              ,475753,Social Community Care,NURSING HOMES                 
PURCHASING LEARNING DISABILITI,9200,CONTINUING RESIDENTIAL CARE   ,03/04/2014,3624950,J871060 270414           ,"13,745.16",JANE HOUSE  LTD                         ,492184,Social Community Care,RESIDENTIAL CARE HOMES        
ADULT SOCIAL CARE PURCHASING  ,9200,CONTINUING RESIDENTIAL CARE   ,03/04/2014,3624951,J871072 270414           ,"1,616.80",TRUST CARE LTD                          ,519365,Social Community Care,RESIDENTIAL CARE HOMES        
PURCHASING LEARNING DISABILITI,9200,CONTINUING RESIDENTIAL CARE   ,03/04/2014,3624952,J871078 270414           ,"6,616.88",THE LODGE (CARETECH)                    ,543663,Social Community Care,RESIDENTIAL CARE HOMES        
PURCHASING                    ,9200,CONTINUING RESIDENTIAL CARE   ,03/04/2014,3624953,J871081 270414           ,"2,951.60",ICON CARE LTD T/A CHAMWOOD              ,550309,Social Community Care,RESIDENTIAL CARE HOMES        
PURCHASING LEARNING DISABILITI,9200,CONTINUING RESIDENTIAL CARE   ,03/04/2014,3624953,J871081 270414           ,"6,716.88",ICON CARE LTD T/A CHAMWOOD              ,550309,Social Community Care,RESIDENTIAL CARE HOMES        
PURCHASING                    ,9200,CONTINUING RESIDENTIAL CARE   ,03/04/2014,3624954,J871088 270414           ,"1,660.36",KINGSBURY HOUSE                         ,559159,Social Community Care,RESIDENTIAL CARE HOMES        
PURCHASING                    ,9200,CONTINUING RESIDENTIAL CARE   ,03/04/2014,3624955,J871090 270414           ,"2,370.16",BIRMINGHAM CITY COUNCIL                 ,560253,Unclassified Non Trade,COUNCILS                      
ADULT SOCIAL CARE PURCHASING  ,9210,CONTINUING NURSING CARE       ,03/04/2014,3624956,J871097 270414           ,"2,004.00", PATHFINDERS CARE (OLLERTON) LIMITED    ,564758,Social Community Care,NURSING HOMES                 
PURCHASING LEARNING DISABILITI,9200,CONTINUING RESIDENTIAL CARE   ,03/04/2014,3624957,J871104 270414           ,"6,400.00",CARLTON HOUSE RESIDENTIAL CARE          ,570047,Social Community Care,RESIDENTIAL CARE HOMES        
PURCHASING LEARNING DISABILITI,9200,CONTINUING RESIDENTIAL CARE   ,03/04/2014,3624958,J873432 270414           ,"3,500.00",THE MANSE T/AS KINGFIELD CARE HOME      ,559873,Social Community Care,RESIDENTIAL CARE HOMES        
ADULT SOCIAL CARE PURCHASING  ,9200,CONTINUING RESIDENTIAL CARE   ,03/04/2014,3624959,J855662 300314           ,"2,625.29",SHEFFCARE LTD                           ,361801,Social Community Care,RESIDENTIAL CARE HOMES        
ADULT SOCIAL CARE PURCHASING  ,4260,RESIDENTIAL COSTS RECOVERED   ,03/04/2014,3624960,J861772 300314           ,295.07,KERSAL MOUNT NURSING HOME               ,361765,Social Community Care,NURSING HOMES                 
ADULT SOCIAL CARE PURCHASING  ,9210,CONTINUING NURSING CARE       ,03/04/2014,3624960,J861772 300314           ,"2,960.43",KERSAL MOUNT NURSING HOME               ,361765,Social Community Care,NURSING HOMES                 
ADULT SOCIAL CARE PURCHASING  ,4260,RESIDENTIAL COSTS RECOVERED   ,03/04/2014,3624961,J866378 300314           ,964.35,ROSEBERRY CARE CENTRES GB LTD           ,361904,Social Community Care,NURSING HOMES                 
ADULT SOCIAL CARE PURCHASING  ,4260,NURSING COSTS RECOVERED       ,03/04/2014,3624961,J866378 300314           ,629.23,ROSEBERRY CARE CENTRES GB LTD           ,361904,Social Community Care,NURSING HOMES                 
ADULT SOCIAL CARE PURCHASING  ,9200,CONTINUING RESIDENTIAL CARE   ,03/04/2014,3624962,J867187 300314           ,"36,788.29",SHEFFCARE LTD                           ,361798,Social Community Care,RESIDENTIAL CARE HOMES        
ADULT SOCIAL CARE PURCHASING  ,4260,NURSING COSTS RECOVERED       ,03/04/2014,3624963,J867188 300314           ,633.7,LONGLEY PARK VIEW                       ,361928,Social Community Care,NURSING HOMES                 
ADULT SOCIAL CARE PURCHASING  ,9210,CONTINUING NURSING CARE       ,03/04/2014,3624964,J867190 300314           ,"4,692.00",HENLEIGH HALL                           ,362109,Social Community Care,NURSING HOMES                 
ADULT SOCIAL CARE PURCHASING  ,9200,CONTINUING RESIDENTIAL CARE   ,03/04/2014,3624965,J867192 300314           ,"2,223.00",HEELEY BANK CARE HOME                   ,362923,Social Community Care,RESIDENTIAL CARE HOMES        
ADULT SOCIAL CARE PURCHASING  ,4260,RESIDENTIAL COSTS RECOVERED   ,03/04/2014,3624966,J867989 300314           ,363.2,THE LODGE CARE CENTRE                   ,362092,Social Community Care,NURSING HOMES                 
PURCHASING LEARNING DISABILITI,4260,RESIDENTIAL COSTS RECOVERED   ,03/04/2014,3624967,J867997 300314           ,370.6,ICON CARE LTD T/A CHAMWOOD              ,550309,Social Community Care,RESIDENTIAL CARE HOMES        
ADULT SOCIAL CARE PURCHASING  ,4260,RESIDENTIAL COSTS RECOVERED   ,03/04/2014,3624968,J868410 300314           ,494.02,COUMES BROOK                            ,362149,Social Community Care,RESIDENTIAL CARE HOMES        
ADULT SOCIAL CARE PURCHASING  ,4260,RESIDENTIAL COSTS RECOVERED   ,03/04/2014,3624969,J868412 300314           ,382.33,BEECHY KNOLL                            ,362144,Social Community Care,RESIDENTIAL CARE HOMES        
PURCHASING LEARNING DISABILITI,9200,CONTINUING RESIDENTIAL CARE   ,03/04/2014,3624970,J868563 300314           ,"12,250.00",THE MANSE T/AS KINGFIELD CARE HOME      ,559873,Social Community Care,RESIDENTIAL CARE HOMES        
PURCHASING                    ,4260,RESIDENTIAL COSTS RECOVERED   ,03/04/2014,3624971,J869530 300314           ,468.64,WESTBOURNE HOUSE                        ,361791,Social Community Care,NURSING HOMES                 
PURCHASING LEARNING DISABILITI,9200,CONTINUING RESIDENTIAL CARE   ,03/04/2014,3624972,J870834 270414           ,"2,242.96",CAMPHILL BLAIR DRUMMOND TRUST LTD       ,587568,Social Community Care,RESIDENTIAL CARE HOMES        
PURCHASING                    ,9200,CONTINUING RESIDENTIAL CARE   ,03/04/2014,3624973,J870839 270414           ,"20,040.16",SANDFORD HOUSE                          ,361790,Social Community Care,RESIDENTIAL CARE HOMES        
ADULT SOCIAL CARE PURCHASING  ,9200,CONTINUING RESIDENTIAL CARE   ,03/04/2014,3624973,J870839 270414           ,"5,911.48",SANDFORD HOUSE                          ,361790,Social Community Care,RESIDENTIAL CARE HOMES        
ADULT SOCIAL CARE PURCHASING  ,9200,CONTINUING RESIDENTIAL CARE   ,03/04/2014,3624974,J870840 270414           ,"21,327.57",ASH HOUSE RESIDENTIAL HOME              ,361901,Social Community Care,RESIDENTIAL CARE HOMES        
ADULT SOCIAL CARE PURCHASING  ,9200,CONTINUING RESIDENTIAL CARE   ,03/04/2014,3624975,J870841 270414           ,"1,904.00",COUMES BROOK                            ,362149,Social Community Care,RESIDENTIAL CARE HOMES        
ADULT SOCIAL CARE PURCHASING  ,9200,CONTINUING RESIDENTIAL CARE   ,03/04/2014,3624976,J870854 270414           ,"2,984.00",SHEFFCARE LTD                           ,361801,Social Community Care,RESIDENTIAL CARE HOMES        
PDSI PURCHASING               ,9200,CONTINUING RESIDENTIAL CARE   ,03/04/2014,3624977,J870870 270414           ,"3,484.04",CARRWOOD HOUSE HOME                     ,362165,Social Community Care,RESIDENTIAL CARE HOMES        
PURCHASING LEARNING DISABILITI,9200,CONTINUING RESIDENTIAL CARE   ,03/04/2014,3624977,J870870 270414           ,"4,220.96",CARRWOOD HOUSE HOME                     ,362165,Social Community Care,RESIDENTIAL CARE HOMES        
PURCHASING                    ,9200,CONTINUING RESIDENTIAL CARE   ,03/04/2014,3624977,J870870 270414           ,"13,042.20",CARRWOOD HOUSE HOME                     ,362165,Social Community Care,RESIDENTIAL CARE HOMES        
PURCHASING LEARNING DISABILITI,9210,CONTINUING NURSING CARE       ,03/04/2014,3624978,J870874 270414           ,"11,056.24",HAVENFIELD LODGE                        ,361919,Social Community Care,NURSING HOMES                 
PDSI PURCHASING               ,9210,CONTINUING NURSING CARE       ,03/04/2014,3624978,J870874 270414           ,"4,023.72",HAVENFIELD LODGE                        ,361919,Social Community Care,NURSING HOMES                 
ADULT SOCIAL CARE PURCHASING  ,9210,CONTINUING NURSING CARE       ,03/04/2014,3624979,J870877 270414           ,"40,030.43",CHATSWORTH GRANGE EMI N HOME            ,362033,Social Community Care,NURSING HOMES                 
PURCHASING LEARNING DISABILITI,9200,CONTINUING RESIDENTIAL CARE   ,03/04/2014,3624980,J870883 270414           ,"7,191.96",CEDAR LODGE RH                          ,362171,Social Community Care,RESIDENTIAL CARE HOMES        
PURCHASING LEARNING DISABILITI,9200,CONTINUING RESIDENTIAL CARE   ,03/04/2014,3624981,J870887 270414           ,"6,835.20",BROOMHOUSE                              ,362002,Social Community Care,NURSING HOMES                 
ADULT SOCIAL CARE PURCHASING  ,9200,CONTINUING RESIDENTIAL CARE   ,03/04/2014,3624982,J870888 270414           ,"14,020.00",TWELVETREES RESIDENTIAL HOME            ,361849,Social Community Care,RESIDENTIAL CARE HOMES        
ADULT SOCIAL CARE PURCHASING  ,9200,CONTINUING RESIDENTIAL CARE   ,03/04/2014,3624983,J870890 270414           ,"1,668.00",THE LODGE CARE CENTRE                   ,362092,Social Community Care,NURSING HOMES                 
ADULT SOCIAL CARE PURCHASING  ,9200,CONTINUING RESIDENTIAL CARE   ,03/04/2014,3624984,J870898 270414           ,"12,768.00",LOXLEY COURT                            ,362146,Social Community Care,NURSING HOMES                 
ADULT SOCIAL CARE PURCHASING  ,9210,CONTINUING NURSING CARE       ,03/04/2014,3624984,J870898 270414           ,"22,661.56",LOXLEY COURT                            ,362146,Social Community Care,NURSING HOMES                 
ADULT SOCIAL CARE PURCHASING  ,9200,CONTINUING RESIDENTIAL CARE   ,03/04/2014,3624985,J870900 270414           ,"16,444.00",KERSAL MOUNT NURSING HOME               ,361765,Social Community Care,NURSING HOMES                 
ADULT SOCIAL CARE PURCHASING  ,9210,CONTINUING NURSING CARE       ,03/04/2014,3624985,J870900 270414           ,"9,400.00",KERSAL MOUNT NURSING HOME               ,361765,Social Community Care,NURSING HOMES                 
PURCHASING                    ,9210,CONTINUING NURSING CARE       ,03/04/2014,3624985,J870900 270414           ,"1,564.00",KERSAL MOUNT NURSING HOME               ,361765,Social Community Care,NURSING HOMES                 
ADULT SOCIAL CARE PURCHASING  ,9200,CONTINUING RESIDENTIAL CARE   ,03/04/2014,3624986,J870902 270414           ,"15,136.00",CROFT ACRES                             ,361758,Social Community Care,RESIDENTIAL CARE HOMES        
ADULT SOCIAL CARE PURCHASING  ,9200,CONTINUING RESIDENTIAL CARE   ,03/04/2014,3624987,J870908 270414           ,"3,268.00",REDACTED PERSONAL DATA,361944,Social Community Care,RESIDENTIAL CARE HOMES        
ADULT SOCIAL CARE PURCHASING  ,9210,CONTINUING NURSING CARE       ,03/04/2014,3624987,J870908 270414           ,"3,176.00",REDACTED PERSONAL DATA,361944,Social Community Care,RESIDENTIAL CARE HOMES        
ADULT SOCIAL CARE PURCHASING  ,9200,CONTINUING RESIDENTIAL CARE   ,03/04/2014,3624988,J870918 270414           ,"3,652.00",KINGFIELD HOLT                          ,361766,Social Community Care,RESIDENTIAL CARE HOMES        
ADULT SOCIAL CARE PURCHASING  ,9200,CONTINUING RESIDENTIAL CARE   ,03/04/2014,3624989,J870928 270414           ,"24,467.86",HARTWELL HOUSE                          ,361785,Social Community Care,NURSING HOMES                 
ADULT SOCIAL CARE PURCHASING  ,9210,CONTINUING NURSING CARE       ,03/04/2014,3624990,J870929 270414           ,"5,684.84",BROOMCROFT HOUSE                        ,361960,Social Community Care,NURSING HOMES                 
ADULT SOCIAL CARE PURCHASING  ,9200,CONTINUING RESIDENTIAL CARE   ,03/04/2014,3624991,J870932 270414           ,"2,022.80",ALPINE HEALTHCARE                       ,362125,Social Community Care,NURSING HOMES                 
ADULT SOCIAL CARE PURCHASING  ,9210,CONTINUING NURSING CARE       ,03/04/2014,3624991,J870932 270414           ,"25,770.40",ALPINE HEALTHCARE                       ,362125,Social Community Care,NURSING HOMES                 
PDSI PURCHASING               ,9210,CONTINUING NURSING CARE       ,03/04/2014,3624992,J870933 270414           ,"1,667.20",LONGLEY PARK VIEW                       ,361928,Social Community Care,NURSING HOMES                 
ADULT SOCIAL CARE PURCHASING  ,9210,CONTINUING NURSING CARE       ,03/04/2014,3624992,J870933 270414           ,"23,996.00",LONGLEY PARK VIEW                       ,361928,Social Community Care,NURSING HOMES                 
PURCHASING                    ,9210,CONTINUING NURSING CARE       ,03/04/2014,3624992,J870933 270414           ,"5,874.80",LONGLEY PARK VIEW                       ,361928,Social Community Care,NURSING HOMES                 
PURCHASING LEARNING DISABILITI,9200,CONTINUING RESIDENTIAL CARE   ,03/04/2014,3624993,J870950 270414           ,"13,277.48",CRAGSIDE HOUSE RES. HOME                ,361926,Social Community Care,RESIDENTIAL CARE HOMES        
ADULT SOCIAL CARE PURCHASING  ,9200,CONTINUING RESIDENTIAL CARE   ,03/04/2014,3624994,J870954 270414           ,"50,304.00",BALMORAL NURSING HOME                   ,361851,Social Community Care,NURSING HOMES                 
ADULT SOCIAL CARE PURCHASING  ,9210,CONTINUING NURSING CARE       ,03/04/2014,3624994,J870954 270414           ,"21,896.00",BALMORAL NURSING HOME                   ,361851,Social Community Care,NURSING HOMES                 
ADULT SOCIAL CARE PURCHASING  ,9200,CONTINUING RESIDENTIAL CARE   ,03/04/2014,3624995,J870955 270414           ,"3,160.00",BROADACRES CARE HOME                    ,522768,Social Community Care,RESIDENTIAL CARE HOMES        
PURCHASING                    ,9200,CONTINUING RESIDENTIAL CARE   ,03/04/2014,3624996,J870971 270414           ,"23,785.96",TOGETHER                                ,361880,Unclassified Non Trade,CHARITIES & VOLUNTARY ORGANISA
ADULT SOCIAL CARE PURCHASING  ,9200,CONTINUING RESIDENTIAL CARE   ,03/04/2014,3624997,J870973 270414           ,"38,752.00",BEECHY KNOLL                            ,362144,Social Community Care,RESIDENTIAL CARE HOMES        
ADULT SOCIAL CARE PURCHASING  ,9210,CONTINUING NURSING CARE       ,03/04/2014,3624998,J870977 270414           ,"15,124.00",HOLMWOOD CARE HOME                      ,331238,Social Community Care,NURSING HOMES                 
PURCHASING                    ,9200,CONTINUING RESIDENTIAL CARE   ,03/04/2014,3624999,J870980 270414           ,"3,143.32",ROSEBERRY CARE CENTRES GB LTD           ,362099,Social Community Care,RESIDENTIAL CARE HOMES        
ADULT SOCIAL CARE PURCHASING  ,9200,CONTINUING RESIDENTIAL CARE   ,03/04/2014,3624999,J870980 270414           ,"55,984.00",ROSEBERRY CARE CENTRES GB LTD           ,362099,Social Community Care,RESIDENTIAL CARE HOMES        
PURCHASING LEARNING DISABILITI,9200,CONTINUING RESIDENTIAL CARE   ,03/04/2014,3624999,J870980 270414           ,"2,540.00",ROSEBERRY CARE CENTRES GB LTD           ,362099,Social Community Care,RESIDENTIAL CARE HOMES        
ADULT SOCIAL CARE PURCHASING  ,9210,CONTINUING NURSING CARE       ,03/04/2014,3624999,J870980 270414           ,"56,358.77",ROSEBERRY CARE CENTRES GB LTD           ,362099,Social Community Care,RESIDENTIAL CARE HOMES        
PDSI PURCHASING               ,9210,CONTINUING NURSING CARE       ,03/04/2014,3624999,J870980 270414           ,"16,469.96",ROSEBERRY CARE CENTRES GB LTD           ,362099,Social Community Care,RESIDENTIAL CARE HOMES        
PURCHASING                    ,9210,CONTINUING NURSING CARE       ,03/04/2014,3624999,J870980 270414           ,"8,361.92",ROSEBERRY CARE CENTRES GB LTD           ,362099,Social Community Care,RESIDENTIAL CARE HOMES        
ADULT SOCIAL CARE PURCHASING  ,9200,CONTINUING RESIDENTIAL CARE   ,03/04/2014,3625000,J870981 270414           ,"15,960.00",ROSEBERRY CARE CENTRES GB LTD           ,361904,Social Community Care,NURSING HOMES                 
ADULT SOCIAL CARE PURCHASING  ,9210,CONTINUING NURSING CARE       ,03/04/2014,3625000,J870981 270414           ,"10,260.00",ROSEBERRY CARE CENTRES GB LTD           ,361904,Social Community Care,NURSING HOMES                 
PURCHASING                    ,9200,CONTINUING RESIDENTIAL CARE   ,03/04/2014,3625001,J870989 270414           ,"6,333.80",WESTBOURNE HOUSE                        ,361791,Social Community Care,NURSING HOMES                 
PURCHASING LEARNING DISABILITI,9200,CONTINUING RESIDENTIAL CARE   ,03/04/2014,3625001,J870989 270414           ,"2,824.00",WESTBOURNE HOUSE                        ,361791,Social Community Care,NURSING HOMES                 
ADULT SOCIAL CARE PURCHASING  ,9200,CONTINUING RESIDENTIAL CARE   ,03/04/2014,3625001,J870989 270414           ,"2,852.00",WESTBOURNE HOUSE                        ,361791,Social Community Care,NURSING HOMES                 
ADULT SOCIAL CARE PURCHASING  ,9200,CONTINUING RESIDENTIAL CARE   ,03/04/2014,3625002,J870992 270414           ,"10,676.00",CAIRN HOME                              ,368330,Social Community Care,RESIDENTIAL CARE HOMES        
ADULT SOCIAL CARE PURCHASING  ,9200,CONTINUING RESIDENTIAL CARE   ,03/04/2014,3625003,J870995 270414           ,"1,740.00",BROOKLANDS                              ,368344,Social Community Care,RESIDENTIAL CARE HOMES        
ADULT SOCIAL CARE PURCHASING  ,9200,CONTINUING RESIDENTIAL CARE   ,03/04/2014,3625004,J870999 270414           ,"4,508.00",BLENHEIM COURT                          ,368328,Social Community Care,NURSING HOMES                 
ADULT SOCIAL CARE PURCHASING  ,9210,CONTINUING NURSING CARE       ,03/04/2014,3625004,J870999 270414           ,"29,827.71",BLENHEIM COURT                          ,368328,Social Community Care,NURSING HOMES                 
ADULT SOCIAL CARE PURCHASING  ,9200,SHORT TERM RESIDENTIAL CARE   ,03/04/2014,3625005,J872064 300314           ,710,ROSEBERRY CARE CENTRES GB LTD           ,361953,Social Community Care,NURSING HOMES                 
ADULT SOCIAL CARE PURCHASING  ,9200,SHORT TERM RESIDENTIAL CARE   ,03/04/2014,3625006,J863284 020314           ,"7,607.15",GRANGE CRESCENT                         ,361898,Social Community Care,RESIDENTIAL CARE HOMES        
ADULT SOCIAL CARE PURCHASING  ,9200,SHORT TERM RESIDENTIAL CARE   ,03/04/2014,3625007,J863285 020314           ,620.71,HOUSTEADS                               ,361860,Social Community Care,RESIDENTIAL CARE HOMES        
ADULT SOCIAL CARE PURCHASING  ,9200,SHORT TERM RESIDENTIAL CARE   ,03/04/2014,3625008,J864052 020314           ,"1,523.57",CROFT ACRES                             ,361758,Social Community Care,RESIDENTIAL CARE HOMES        
ADULT SOCIAL CARE PURCHASING  ,9200,SHORT TERM RESIDENTIAL CARE   ,03/04/2014,3625009,J866345 020314           ,"2,793.00",LOWER BOWSHAW VIEW NH                   ,362101,Social Community Care,NURSING HOMES                 
ADULT SOCIAL CARE PURCHASING  ,9200,SHORT TERM RESIDENTIAL CARE   ,03/04/2014,3625011,J866627 020314           ,"1,944.00",COUNTRY CARE HOMES LTD                  ,361754,Social Community Care,RESIDENTIAL CARE HOMES        
ADULT SOCIAL CARE PURCHASING  ,9200,SHORT TERM RESIDENTIAL CARE   ,03/04/2014,3625012,J867128 020314           ,"3,216.42",HADDON COURT NURSING HOME               ,361916,Social Community Care,NURSING HOMES                 
ADULT SOCIAL CARE PURCHASING  ,9200,SHORT TERM RESIDENTIAL CARE   ,03/04/2014,3625013,J867130 020314           ,969,DARNALL VIEW RESIDENTIAL HOME           ,362170,Social Community Care,RESIDENTIAL CARE HOMES        
ADULT SOCIAL CARE PURCHASING  ,9200,SHORT TERM RESIDENTIAL CARE   ,03/04/2014,3625014,J870783 300314           ,"1,217.14",GRANGE CRESCENT                         ,361898,Social Community Care,RESIDENTIAL CARE HOMES        
ADULT SOCIAL CARE PURCHASING  ,9200,SHORT TERM RESIDENTIAL CARE   ,03/04/2014,3625015,J870784 300314           ,746,SHEFFCARE LTD                           ,361801,Social Community Care,RESIDENTIAL CARE HOMES        
ADULT SOCIAL CARE PURCHASING  ,9200,SHORT TERM RESIDENTIAL CARE   ,03/04/2014,3625016,J870785 300314           ,943.29,HOUSTEADS                               ,361860,Social Community Care,RESIDENTIAL CARE HOMES        
ADULT SOCIAL CARE PURCHASING  ,9200,SHORT TERM RESIDENTIAL CARE   ,03/04/2014,3625018,J870787 300314           ,540,COUNTRY CARE HOMES LTD                  ,361754,Social Community Care,RESIDENTIAL CARE HOMES        
ADULT SOCIAL CARE PURCHASING  ,9200,SHORT TERM RESIDENTIAL CARE   ,03/04/2014,3625019,J870789 300314           ,"1,580.00",LEAHYRST RESIDENTIAL CARE HOME          ,361842,Social Community Care,RESIDENTIAL CARE HOMES        
ADULT SOCIAL CARE PURCHASING  ,9200,SHORT TERM RESIDENTIAL CARE   ,03/04/2014,3625020,J870790 300314           ,"1,580.00",CROFT ACRES                             ,361758,Social Community Care,RESIDENTIAL CARE HOMES        
ADULT SOCIAL CARE PURCHASING  ,9200,SHORT TERM RESIDENTIAL CARE   ,03/04/2014,3625021,J870794 300314           ,570,DARNALL VIEW RESIDENTIAL HOME           ,362170,Social Community Care,RESIDENTIAL CARE HOMES        
ADULT SOCIAL CARE PURCHASING  ,9200,SHORT TERM RESIDENTIAL CARE   ,03/04/2014,3625023,J870798 300314           ,798,BROOMGROVE TRUST NURSING                ,361755,Social Community Care,NURSING HOMES                 
ADULT SOCIAL CARE PURCHASING  ,9210,SHORT TERM NURSING CARE       ,03/04/2014,3625023,J870798 300314           ,798,BROOMGROVE TRUST NURSING                ,361755,Social Community Care,NURSING HOMES                 
ADULT SOCIAL CARE PURCHASING  ,9200,SHORT TERM RESIDENTIAL CARE   ,03/04/2014,3625024,J870799 300314           ,353,HARTWELL HOUSE                          ,361785,Social Community Care,NURSING HOMES                 
ADULT SOCIAL CARE PURCHASING  ,9200,SHORT TERM RESIDENTIAL CARE   ,03/04/2014,3625025,J870800 300314           ,620.72,BEECHY KNOLL                            ,362144,Social Community Care,RESIDENTIAL CARE HOMES        
ADULT SOCIAL CARE PURCHASING  ,9200,SHORT TERM RESIDENTIAL CARE   ,03/04/2014,3625026,J870801 300314           ,353,ABBEY GRANGE RESIDENTIAL HOME           ,361753,Social Community Care,RESIDENTIAL CARE HOMES        
ADULT SOCIAL CARE PURCHASING  ,9210,SHORT TERM NURSING CARE       ,03/04/2014,3625027,J870802 300314           ,"1,227.00",ROSEBERRY CARE CENTRES GB LTD           ,362099,Social Community Care,RESIDENTIAL CARE HOMES        
PARENTING STRATEGY            ,5750,TRAINING EXPENDITURE          ,04/04/2014,3623710,4076,450,FAMILY RIGHTS GROUP                     ,449796,Medical ,COUNSELLING & ADVICE SERVICES 
INCLUSION CENTRE              ,5610,AGENCY STAFF - INVOICE        ,04/04/2014,3625300,3408907,876.2,RANDSTAD EDUCATION LIMITED              ,208294,Human Resources,EMPLOYMENT & RECRUITMENT AGENC
SHEAF TRAINING                ,8490,EXAM FEES                     ,04/04/2014,3625310,803272593,949,CITY & GUILDS                           ,424267,Education,EXAMINATION BOARDS            
IN HOUSE FOSTER PLACEMENT     ,9270,IN-HOUSE FOSTERING            ,04/04/2014,3625709,100069 20140403 45279    ,REDACTED PERSONAL DATA,REDACTED PERSONAL DATA,333449,Social Community Care,ADOPTION & FOSTERING          
ADOPTION ALLOWANCES           ,9270,ADOPTION ALLOWANCES           ,04/04/2014,3625709,100069 20140403 45279    ,REDACTED PERSONAL DATA,REDACTED PERSONAL DATA,333449,Social Community Care,ADOPTION & FOSTERING          
IN HOUSE FOSTER PLACEMENT     ,9270,IN-HOUSE FOSTERING            ,04/04/2014,3625712,149394 20140403 45279    ,REDACTED PERSONAL DATA,REDACTED PERSONAL DATA,453957,Social Community Care,ADOPTION & FOSTERING          
CARELEAVER IN HOUSE FOSTERING ,9270,IN-HOUSE FOSTERING            ,04/04/2014,3625712,149394 20140403 45279    ,REDACTED PERSONAL DATA,REDACTED PERSONAL DATA,453957,Social Community Care,ADOPTION & FOSTERING          
IN HOUSE FOSTER PLACEMENT     ,9270,IN-HOUSE FOSTERING            ,04/04/2014,3625713,149405 20140403 45279    ,REDACTED PERSONAL DATA,REDACTED PERSONAL DATA,408920,Social Community Care,ADOPTION & FOSTERING          
RESIDENCE ORDERS              ,9270,RESIDENCE ORDERS              ,04/04/2014,3625714,150147 20140403 45279    ,REDACTED PERSONAL DATA,REDACTED PERSONAL DATA,410525,Social Community Care,ADOPTION & FOSTERING          
IN HOUSE FOSTER PLACEMENT     ,9270,IN-HOUSE FOSTERING            ,04/04/2014,3625715,15052 20140403 45279     ,REDACTED PERSONAL DATA,REDACTED PERSONAL DATA,564456,Unclassified Non Trade,OUT OF SCOPE FOR SIC MONITORIN
ADOPTION ALLOWANCES           ,9270,ADOPTION ALLOWANCES           ,04/04/2014,3625716,150723 20140403 45279    ,REDACTED PERSONAL DATA,REDACTED PERSONAL DATA,507002,Social Community Care,ADOPTION & FOSTERING          
IN HOUSE FOSTER PLACEMENT     ,9270,IN-HOUSE FOSTERING            ,04/04/2014,3625718,151365 20140403 45279    ,REDACTED PERSONAL DATA,REDACTED PERSONAL DATA,442473,Social Community Care,ADOPTION & FOSTERING          
ADOPTION SERVICE              ,9270,ADOPTION ALLOWANCES           ,04/04/2014,3625720,152049 20140403 45279    ,REDACTED PERSONAL DATA,REDACTED PERSONAL DATA,512161,Social Community Care,ADOPTION & FOSTERING          
IN HOUSE FOSTER PLACEMENT     ,9270,IN-HOUSE FOSTERING            ,04/04/2014,3625722,156226 20140403 45279    ,REDACTED PERSONAL DATA,REDACTED PERSONAL DATA,549255,Social Community Care,ADOPTION & FOSTERING          
ADOPTION ALLOWANCES           ,9270,ADOPTION ALLOWANCES           ,04/04/2014,3625724,156682 20140403 45279    ,REDACTED PERSONAL DATA,REDACTED PERSONAL DATA,447568,Social Community Care,ADOPTION & FOSTERING          
ADOPTION ALLOWANCES           ,9270,ADOPTION ALLOWANCES           ,04/04/2014,3625727,158578 20140403 45279    ,REDACTED PERSONAL DATA,REDACTED PERSONAL DATA,435732,Social Community Care,ADOPTION & FOSTERING          
RESIDENCE ORDERS              ,9270,RESIDENCE ORDERS              ,04/04/2014,3625729,159404 20140403 45279    ,REDACTED PERSONAL DATA,REDACTED PERSONAL DATA,418360,Social Community Care,ADOPTION & FOSTERING          
IN HOUSE FOSTER PLACEMENT     ,9270,IN-HOUSE FOSTERING            ,04/04/2014,3625731,160246 20140403 45279    ,REDACTED PERSONAL DATA,REDACTED PERSONAL DATA,459061,Social Community Care,ADOPTION & FOSTERING          
ADOPTION ALLOWANCES           ,9270,ADOPTION ALLOWANCES           ,04/04/2014,3625732,10618 20140403 45279     ,REDACTED PERSONAL DATA,REDACTED PERSONAL DATA,332987,Social Community Care,ADOPTION & FOSTERING          
ADOPTION ALLOWANCES           ,9270,ADOPTION ALLOWANCES           ,04/04/2014,3625734,161306 20140403 45279    ,REDACTED PERSONAL DATA,REDACTED PERSONAL DATA,563893,Social Community Care,ADOPTION & FOSTERING          
IN HOUSE FOSTER PLACEMENT     ,9270,IN-HOUSE FOSTERING            ,04/04/2014,3625735,16180 20140403 45279     ,REDACTED PERSONAL DATA,REDACTED PERSONAL DATA,333718,Social Community Care,ADOPTION & FOSTERING          
IN HOUSE FOSTER PLACEMENT     ,9270,IN-HOUSE FOSTERING            ,04/04/2014,3625736,161854 20140403 45279    ,REDACTED PERSONAL DATA,REDACTED PERSONAL DATA,502396,Social Community Care,ADOPTION & FOSTERING          
ADOPTION ALLOWANCES           ,9270,ADOPTION ALLOWANCES           ,04/04/2014,3625736,161854 20140403 45279    ,REDACTED PERSONAL DATA,REDACTED PERSONAL DATA,502396,Social Community Care,ADOPTION & FOSTERING          
SPECIAL GUARDIANSHIP          ,9270,RESIDENCE ORDERS              ,04/04/2014,3625737,161862 20140403 45279    ,REDACTED PERSONAL DATA,REDACTED PERSONAL DATA,569794,Unclassified Non Trade,OUT OF SCOPE FOR SIC MONITORIN
IN HOUSE FOSTER PLACEMENT     ,9270,IN-HOUSE FOSTERING            ,04/04/2014,3625739,162076 20140403 45279    ,REDACTED PERSONAL DATA,REDACTED PERSONAL DATA,561473,Social Community Care,ADOPTION & FOSTERING          
ADOPTION ALLOWANCES           ,9270,ADOPTION ALLOWANCES           ,04/04/2014,3625741,162287 20140403 45279    ,REDACTED PERSONAL DATA,REDACTED PERSONAL DATA,437597,Social Community Care,ADOPTION & FOSTERING          
ADOPTION ALLOWANCES           ,9270,ADOPTION ALLOWANCES           ,04/04/2014,3625744,162684 20140403 45279    ,REDACTED PERSONAL DATA,REDACTED PERSONAL DATA,384639,Social Community Care,ADOPTION & FOSTERING          
ADOPTION ALLOWANCES           ,9270,ADOPTION ALLOWANCES           ,04/04/2014,3625745,162716 20140403 45279    ,REDACTED PERSONAL DATA,REDACTED PERSONAL DATA,405479,Social Community Care,ADOPTION & FOSTERING          
ADOPTION ALLOWANCES           ,9270,ADOPTION ALLOWANCES           ,04/04/2014,3625746,162820 20140403 45279    ,REDACTED PERSONAL DATA,REDACTED PERSONAL DATA,420593,Social Community Care,ADOPTION & FOSTERING          
ADOPTION ALLOWANCES           ,9270,ADOPTION ALLOWANCES           ,04/04/2014,3625747,162849 20140403 45279    ,REDACTED PERSONAL DATA,REDACTED PERSONAL DATA,383481,Social Community Care,ADOPTION & FOSTERING          
ADOPTION ALLOWANCES           ,9270,ADOPTION ALLOWANCES           ,04/04/2014,3625750,162997 20140403 45279    ,REDACTED PERSONAL DATA,REDACTED PERSONAL DATA,420205,Social Community Care,ADOPTION & FOSTERING          
ADOPTION ALLOWANCES           ,9270,ADOPTION ALLOWANCES           ,04/04/2014,3625751,163018 20140403 45279    ,REDACTED PERSONAL DATA,REDACTED PERSONAL DATA,397573,Social Community Care,ADOPTION & FOSTERING          
ADOPTION ALLOWANCES           ,9270,ADOPTION ALLOWANCES           ,04/04/2014,3625752,163138 20140403 45279    ,REDACTED PERSONAL DATA,REDACTED PERSONAL DATA,400697,Social Community Care,ADOPTION & FOSTERING          
RESIDENCE ORDERS              ,9270,RESIDENCE ORDERS              ,04/04/2014,3625753,163652 20140403 45279    ,413.87,REDACTED PERSONAL DATA,511448,Social Community Care,ADOPTION & FOSTERING          
RESIDENCE ORDERS              ,9270,RESIDENCE ORDERS              ,04/04/2014,3625754,106563 20140403 45279    ,REDACTED PERSONAL DATA,REDACTED PERSONAL DATA,503013,Social Community Care,ADOPTION & FOSTERING          
ADOPTION ALLOWANCES           ,9270,ADOPTION ALLOWANCES           ,04/04/2014,3625756,165811 20140403 45279    ,REDACTED PERSONAL DATA,REDACTED PERSONAL DATA,366214,Social Community Care,ADOPTION & FOSTERING          
IN HOUSE FOSTER PLACEMENT     ,9270,IN-HOUSE FOSTERING            ,04/04/2014,3625759,167097 20140403 45279    ,REDACTED PERSONAL DATA,REDACTED PERSONAL DATA,424791,Social Community Care,ADOPTION & FOSTERING          
IN HOUSE FOSTER PLACEMENT     ,9270,IN-HOUSE FOSTERING            ,04/04/2014,3625760,168513 20140403 45279    ,REDACTED PERSONAL DATA,REDACTED PERSONAL DATA,546743,Social Community Care,ADOPTION & FOSTERING          
ADOPTION ALLOWANCES           ,9270,ADOPTION ALLOWANCES           ,04/04/2014,3625763,169136 20140403 45279    ,REDACTED PERSONAL DATA,REDACTED PERSONAL DATA,478793,Social Community Care,ADOPTION & FOSTERING          
ADOPTION ALLOWANCES           ,9270,ADOPTION ALLOWANCES           ,04/04/2014,3625764,169337 20140403 45279    ,REDACTED PERSONAL DATA,REDACTED PERSONAL DATA,529676,Social Community Care,ADOPTION & FOSTERING          
ADOPTION ALLOWANCES           ,9270,ADOPTION ALLOWANCES           ,04/04/2014,3625766,169390 20140403 45279    ,REDACTED PERSONAL DATA,REDACTED PERSONAL DATA,391015,Social Community Care,ADOPTION & FOSTERING          
RESIDENCE ORDERS              ,9270,RESIDENCE ORDERS              ,04/04/2014,3625769,170383 20140403 45279    ,REDACTED PERSONAL DATA,REDACTED PERSONAL DATA,478426,Social Community Care,ADOPTION & FOSTERING          
ADOPTION ALLOWANCES           ,9270,ADOPTION ALLOWANCES           ,04/04/2014,3625774,175100 20140403 45279    ,583.1,REDACTED PERSONAL DATA,592070,Unclassified Non Trade,OUT OF SCOPE FOR SIC MONITORIN
RESIDENCE ORDERS              ,9270,RESIDENCE ORDERS              ,04/04/2014,3625776,108769 20140403 45279    ,REDACTED PERSONAL DATA,REDACTED PERSONAL DATA,584042,Unclassified Non Trade,OUT OF SCOPE FOR SIC MONITORIN
ADOPTION ALLOWANCES           ,9270,ADOPTION ALLOWANCES           ,04/04/2014,3625780,179524 20140403 45279    ,REDACTED PERSONAL DATA,REDACTED PERSONAL DATA,338804,Social Community Care,ADOPTION & FOSTERING          
RESIDENCE ORDERS              ,9270,RESIDENCE ORDERS              ,04/04/2014,3625958,218170 20140403 45279    ,268.4,REDACTED PERSONAL DATA,333469,Social Community Care,ADOPTION & FOSTERING          
SPECIAL GUARDIANSHIP          ,9270,RESIDENCE ORDERS              ,04/04/2014,3625781,179550 20140403 45279    ,REDACTED PERSONAL DATA,REDACTED PERSONAL DATA,455209,Social Community Care,ADOPTION & FOSTERING          
IN HOUSE FOSTER PLACEMENT     ,9270,IN-HOUSE FOSTERING            ,04/04/2014,3625782,179693 20140403 45279    ,REDACTED PERSONAL DATA,REDACTED PERSONAL DATA,521983,Social Community Care,ADOPTION & FOSTERING          
SPECIAL GUARDIANSHIP          ,9270,RESIDENCE ORDERS              ,04/04/2014,3625785,180012 20140403 45279    ,REDACTED PERSONAL DATA,REDACTED PERSONAL DATA,551185,Social Community Care,ADOPTION & FOSTERING          
ADOPTION ALLOWANCES           ,9270,ADOPTION ALLOWANCES           ,04/04/2014,3625787,108779 20140403 45279    ,REDACTED PERSONAL DATA,REDACTED PERSONAL DATA,445176,Social Community Care,ADOPTION & FOSTERING          
SPECIAL GUARDIANSHIP          ,9270,RESIDENCE ORDERS              ,04/04/2014,3625793,183203 20140403 45279    ,REDACTED PERSONAL DATA,REDACTED PERSONAL DATA,514674,Social Community Care,ADOPTION & FOSTERING          
IN HOUSE FOSTER PLACEMENT     ,9270,IN-HOUSE FOSTERING            ,04/04/2014,3625795,18403 20140403 45279     ,REDACTED PERSONAL DATA,REDACTED PERSONAL DATA,333624,Social Community Care,ADOPTION & FOSTERING          
RESIDENCE ORDERS              ,9270,RESIDENCE ORDERS              ,04/04/2014,3625797,184267 20140403 45279    ,REDACTED PERSONAL DATA,REDACTED PERSONAL DATA,455207,Social Community Care,ADOPTION & FOSTERING          
RESIDENCE ORDERS              ,9270,RESIDENCE ORDERS              ,04/04/2014,3625799,184501 20140403 45279    ,REDACTED PERSONAL DATA,REDACTED PERSONAL DATA,401269,Social Community Care,ADOPTION & FOSTERING          
ADOPTION ALLOWANCES           ,9270,ADOPTION ALLOWANCES           ,04/04/2014,3625800,184782 20140403 45279    ,REDACTED PERSONAL DATA,REDACTED PERSONAL DATA,373269,Social Community Care,ADOPTION & FOSTERING          
IN HOUSE FOSTER PLACEMENT     ,9270,IN-HOUSE FOSTERING            ,04/04/2014,3625802,185556 20140403 45279    ,REDACTED PERSONAL DATA,REDACTED PERSONAL DATA,462682,Social Community Care,ADOPTION & FOSTERING          
RESIDENCE ORDERS              ,9270,RESIDENCE ORDERS              ,04/04/2014,3625804,186377 20140403 45279    ,REDACTED PERSONAL DATA,REDACTED PERSONAL DATA,487461,Social Community Care,ADOPTION & FOSTERING          
RESIDENCE ORDERS              ,9270,RESIDENCE ORDERS              ,04/04/2014,3625807,187151 20140403 45279    ,REDACTED PERSONAL DATA,REDACTED PERSONAL DATA,547122,Social Community Care,CAREFIRST DIRECT PAYMENTS     
RESIDENCE ORDERS              ,9270,RESIDENCE ORDERS              ,04/04/2014,3625808,187601 20140403 45279    ,REDACTED PERSONAL DATA,REDACTED PERSONAL DATA,429150,Social Community Care,ADOPTION & FOSTERING          
RESIDENCE ORDERS              ,9270,RESIDENCE ORDERS              ,04/04/2014,3625809,109853 20140403 45279    ,REDACTED PERSONAL DATA,REDACTED PERSONAL DATA,368099,Social Community Care,ADOPTION & FOSTERING          
IN HOUSE FOSTER PLACEMENT     ,9270,IN-HOUSE FOSTERING            ,04/04/2014,3625811,187984 20140403 45279    ,REDACTED PERSONAL DATA,REDACTED PERSONAL DATA,467299,Social Community Care,ADOPTION & FOSTERING          
IN HOUSE FOSTER PLACEMENT     ,9270,IN-HOUSE FOSTERING            ,04/04/2014,3625814,189523 20140403 45279    ,REDACTED PERSONAL DATA,REDACTED PERSONAL DATA,464101,Social Community Care,ADOPTION & FOSTERING          
RESIDENCE ORDERS              ,9270,RESIDENCE ORDERS              ,04/04/2014,3625816,189972 20140403 45279    ,REDACTED PERSONAL DATA,REDACTED PERSONAL DATA,561897,Unclassified Non Trade,OUT OF SCOPE FOR SIC MONITORIN
RESIDENCE ORDERS              ,9270,RESIDENCE ORDERS              ,04/04/2014,3625817,190942 20140403 45279    ,REDACTED PERSONAL DATA,REDACTED PERSONAL DATA,566337,Social Community Care,ADOPTION & FOSTERING          
ADOPTION ALLOWANCES           ,9270,ADOPTION ALLOWANCES           ,04/04/2014,3625818,190991 20140403 45279    ,REDACTED PERSONAL DATA,REDACTED PERSONAL DATA,505899,Social Community Care,ADOPTION & FOSTERING          
SPECIAL GUARDIANSHIP          ,9270,RESIDENCE ORDERS              ,04/04/2014,3625819,191065 20140403 45279    ,REDACTED PERSONAL DATA,REDACTED PERSONAL DATA,444008,Social Community Care,ADOPTION & FOSTERING          
IN HOUSE FOSTER PLACEMENT     ,9270,IN-HOUSE FOSTERING            ,04/04/2014,3625820,100191 20140403 45279    ,REDACTED PERSONAL DATA,REDACTED PERSONAL DATA,332848,Social Community Care,ADOPTION & FOSTERING          
IN HOUSE FOSTER PLACEMENT     ,9270,IN-HOUSE FOSTERING            ,04/04/2014,3625822,191176 20140403 45279    ,REDACTED PERSONAL DATA,REDACTED PERSONAL DATA,585529,Unclassified Non Trade,OUT OF SCOPE FOR SIC MONITORIN
RESIDENCE ORDERS              ,9270,RESIDENCE ORDERS              ,04/04/2014,3625823,191303 20140403 45279    ,REDACTED PERSONAL DATA,REDACTED PERSONAL DATA,588855,Social Community Care,ADOPTION & FOSTERING          
SPECIAL GUARDIANSHIP          ,9270,RESIDENCE ORDERS              ,04/04/2014,3625824,191415 20140403 45279    ,REDACTED PERSONAL DATA,REDACTED PERSONAL DATA,567597,Social Community Care,ADOPTION & FOSTERING          
RESIDENCE ORDERS              ,9270,RESIDENCE ORDERS              ,04/04/2014,3625826,191514 20140403 45279    ,REDACTED PERSONAL DATA,REDACTED PERSONAL DATA,450449,Social Community Care,ADOPTION & FOSTERING          
SPECIAL GUARDIANSHIP          ,9270,RESIDENCE ORDERS              ,04/04/2014,3625827,191801 20140403 45279    ,REDACTED PERSONAL DATA,REDACTED PERSONAL DATA,492572,Social Community Care,ADOPTION & FOSTERING          
IN HOUSE FOSTER PLACEMENT     ,9270,IN-HOUSE FOSTERING            ,04/04/2014,3625828,191832 20140403 45279    ,REDACTED PERSONAL DATA,REDACTED PERSONAL DATA,473384,Social Community Care,ADOPTION & FOSTERING          
IN HOUSE FOSTER PLACEMENT     ,9270,IN-HOUSE FOSTERING            ,04/04/2014,3625829,192252 20140403 45279    ,REDACTED PERSONAL DATA,REDACTED PERSONAL DATA,365784,Social Community Care,ADOPTION & FOSTERING          
IN HOUSE FOSTER PLACEMENT     ,9270,IN-HOUSE FOSTERING            ,04/04/2014,3625830,193350 20140403 45279    ,REDACTED PERSONAL DATA,REDACTED PERSONAL DATA,471003,Social Community Care,ADOPTION & FOSTERING          
CARELEAVER IN HOUSE FOSTERING ,9270,IN-HOUSE FOSTERING            ,04/04/2014,3625831,193537 20140403 45279    ,REDACTED PERSONAL DATA,REDACTED PERSONAL DATA,525359,Social Community Care,CHILDCARE SERVICES            
ADOPTION ALLOWANCES           ,9270,ADOPTION ALLOWANCES           ,04/04/2014,3625833,193819 20140403 45279    ,REDACTED PERSONAL DATA,REDACTED PERSONAL DATA,368040,Social Community Care,ADOPTION & FOSTERING          
ADOPTION ALLOWANCES           ,9270,ADOPTION ALLOWANCES           ,04/04/2014,3625834,193850 20140403 45279    ,REDACTED PERSONAL DATA,REDACTED PERSONAL DATA,368088,Social Community Care,ADOPTION & FOSTERING          
ADOPTION ALLOWANCES           ,9270,ADOPTION ALLOWANCES           ,04/04/2014,3625837,194685 20140403 45279    ,REDACTED PERSONAL DATA,REDACTED PERSONAL DATA,440691,Social Community Care,ADOPTION & FOSTERING          
ADOPTION ALLOWANCES           ,9270,ADOPTION ALLOWANCES           ,04/04/2014,3625838,194971 20140403 45279    ,REDACTED PERSONAL DATA,REDACTED PERSONAL DATA,480781,Social Community Care,ADOPTION & FOSTERING          
ADOPTION ALLOWANCES           ,9270,ADOPTION ALLOWANCES           ,04/04/2014,3625840,195074 20140403 45279    ,REDACTED PERSONAL DATA,REDACTED PERSONAL DATA,333341,Social Community Care,ADOPTION & FOSTERING          
ADOPTION ALLOWANCES           ,9270,ADOPTION ALLOWANCES           ,04/04/2014,3625841,195134 20140403 45279    ,REDACTED PERSONAL DATA,REDACTED PERSONAL DATA,332998,Social Community Care,ADOPTION & FOSTERING          
SPECIAL GUARDIANSHIP          ,9270,RESIDENCE ORDERS              ,04/04/2014,3625843,110569 20140403 45279    ,REDACTED PERSONAL DATA,REDACTED PERSONAL DATA,552284,Unclassified Non Trade,OUT OF SCOPE FOR SIC MONITORIN
IN HOUSE FOSTER PLACEMENT     ,9270,IN-HOUSE FOSTERING            ,04/04/2014,3625844,19623 20140403 45279     ,REDACTED PERSONAL DATA,REDACTED PERSONAL DATA,333147,Social Community Care,ADOPTION & FOSTERING          
SPECIAL GUARDIANSHIP          ,9270,RESIDENCE ORDERS              ,04/04/2014,3625844,19623 20140403 45279     ,REDACTED PERSONAL DATA,REDACTED PERSONAL DATA,333147,Social Community Care,ADOPTION & FOSTERING          
IN HOUSE FOSTER PLACEMENT     ,9270,IN-HOUSE FOSTERING            ,04/04/2014,3625846,196541 20140403 45279    ,REDACTED PERSONAL DATA,REDACTED PERSONAL DATA,515242,Social Community Care,ADOPTION & FOSTERING          
ADOPTION ALLOWANCES           ,9270,ADOPTION ALLOWANCES           ,04/04/2014,3625853,199041 20140403 45279    ,REDACTED PERSONAL DATA,REDACTED PERSONAL DATA,459717,Social Community Care,ADOPTION & FOSTERING          
CARELEAVER IN HOUSE FOSTERING ,9270,IN-HOUSE FOSTERING            ,04/04/2014,3625855,199243 20140403 45279    ,REDACTED PERSONAL DATA,REDACTED PERSONAL DATA,577465,Social Community Care,ADOPTION & FOSTERING          
IN HOUSE FOSTER PLACEMENT     ,9270,IN-HOUSE FOSTERING            ,04/04/2014,3625856,199287 20140403 45279    ,REDACTED PERSONAL DATA,REDACTED PERSONAL DATA,568498,Unclassified Non Trade,OUT OF SCOPE FOR SIC MONITORIN
ADOPTION ALLOWANCES           ,9270,ADOPTION ALLOWANCES           ,04/04/2014,3625857,199392 20140403 45279    ,REDACTED PERSONAL DATA,REDACTED PERSONAL DATA,518473,Social Community Care,ADOPTION & FOSTERING          
RESIDENCE ORDERS              ,9270,RESIDENCE ORDERS              ,04/04/2014,3625859,199936 20140403 45279    ,REDACTED PERSONAL DATA,REDACTED PERSONAL DATA,450523,Social Community Care,ADOPTION & FOSTERING          
IN HOUSE FOSTER PLACEMENT     ,9270,IN-HOUSE FOSTERING            ,04/04/2014,3625865,11170 20140403 45279     ,REDACTED PERSONAL DATA,REDACTED PERSONAL DATA,587757,Unclassified Non Trade,OUT OF SCOPE FOR SIC MONITORIN
IN HOUSE FOSTER PLACEMENT     ,9270,IN-HOUSE FOSTERING            ,04/04/2014,3625866,202495 20140403 45279    ,REDACTED PERSONAL DATA,REDACTED PERSONAL DATA,489499,Social Community Care,ADOPTION & FOSTERING          
SPECIAL GUARDIANSHIP          ,9270,RESIDENCE ORDERS              ,04/04/2014,3625868,203296 20140403 45279    ,REDACTED PERSONAL DATA,REDACTED PERSONAL DATA,463795,Social Community Care,ADOPTION & FOSTERING          
IN HOUSE FOSTER PLACEMENT     ,9270,IN-HOUSE FOSTERING            ,04/04/2014,3625870,203957 20140403 45279    ,REDACTED PERSONAL DATA,REDACTED PERSONAL DATA,569169,Social Community Care,ADOPTION & FOSTERING          
IN HOUSE FOSTER PLACEMENT     ,9270,IN-HOUSE FOSTERING            ,04/04/2014,3625871,204113 20140403 45279    ,REDACTED PERSONAL DATA,REDACTED PERSONAL DATA,479993,Social Community Care,ADOPTION & FOSTERING          
SPECIAL GUARDIANSHIP          ,9270,RESIDENCE ORDERS              ,04/04/2014,3625872,204229 20140403 45279    ,REDACTED PERSONAL DATA,REDACTED PERSONAL DATA,527409,Social Community Care,ADOPTION & FOSTERING          
CARELEAVER IN HOUSE FOSTERING ,9270,IN-HOUSE FOSTERING            ,04/04/2014,3625873,204642 20140403 45279    ,REDACTED PERSONAL DATA,REDACTED PERSONAL DATA,584573,Social Community Care,ADOPTION & FOSTERING          
ADOPTION ALLOWANCES           ,9270,ADOPTION ALLOWANCES           ,04/04/2014,3625874,205558 20140403 45279    ,REDACTED PERSONAL DATA,REDACTED PERSONAL DATA,537889,Social Community Care,ADOPTION & FOSTERING          
IN HOUSE FOSTER PLACEMENT     ,9270,IN-HOUSE FOSTERING            ,04/04/2014,3625876,111911 20140403 45279    ,REDACTED PERSONAL DATA,REDACTED PERSONAL DATA,338765,Social Community Care,ADOPTION & FOSTERING          
SPECIAL GUARDIANSHIP          ,9270,RESIDENCE ORDERS              ,04/04/2014,3625879,207629 20140403 45279    ,REDACTED PERSONAL DATA,REDACTED PERSONAL DATA,487226,Social Community Care,ADOPTION & FOSTERING          
ADOPTION ALLOWANCES           ,9270,ADOPTION ALLOWANCES           ,04/04/2014,3625881,207975 20140403 45279    ,REDACTED PERSONAL DATA,REDACTED PERSONAL DATA,474647,Social Community Care,ADOPTION & FOSTERING          
IN HOUSE FOSTER PLACEMENT     ,9270,IN-HOUSE FOSTERING            ,04/04/2014,3625882,20809 20140403 45279     ,REDACTED PERSONAL DATA,REDACTED PERSONAL DATA,333830,Social Community Care,ADOPTION & FOSTERING          
IN HOUSE FOSTER PLACEMENT     ,9270,IN-HOUSE FOSTERING            ,04/04/2014,3625884,208267 20140403 45279    ,REDACTED PERSONAL DATA,REDACTED PERSONAL DATA,485929,Social Community Care,ADOPTION & FOSTERING          
RESIDENCE ORDERS              ,9270,RESIDENCE ORDERS              ,04/04/2014,3625887,11214 20140403 45279     ,REDACTED PERSONAL DATA,REDACTED PERSONAL DATA,328124,Social Community Care,ADOPTION & FOSTERING          
IN HOUSE FOSTER PLACEMENT     ,9270,IN-HOUSE FOSTERING            ,04/04/2014,3625888,210431 20140403 45279    ,REDACTED PERSONAL DATA,REDACTED PERSONAL DATA,502737,Social Community Care,ADOPTION & FOSTERING          
IN HOUSE FOSTER PLACEMENT     ,9270,IN-HOUSE FOSTERING            ,04/04/2014,3625889,210508 20140403 45279    ,REDACTED PERSONAL DATA,REDACTED PERSONAL DATA,493410,Social Community Care,ADOPTION & FOSTERING          
IN HOUSE FOSTER PLACEMENT     ,9270,IN-HOUSE FOSTERING            ,04/04/2014,3625891,211112 20140403 45279    ,REDACTED PERSONAL DATA,REDACTED PERSONAL DATA,525029,Social Community Care,ADOPTION & FOSTERING          
SPECIAL GUARDIANSHIP          ,9270,RESIDENCE ORDERS              ,04/04/2014,3625892,212008 20140403 45279    ,REDACTED PERSONAL DATA,REDACTED PERSONAL DATA,555120,Unclassified Non Trade,OUT OF SCOPE FOR SIC MONITORIN
SPECIAL GUARDIANSHIP          ,9270,RESIDENCE ORDERS              ,04/04/2014,3625895,212910 20140403 45279    ,REDACTED PERSONAL DATA,REDACTED PERSONAL DATA,566648,Social Community Care,ADOPTION & FOSTERING          
IN HOUSE FOSTER PLACEMENT     ,9270,IN-HOUSE FOSTERING            ,04/04/2014,3625896,21312 20140403 45279     ,REDACTED PERSONAL DATA,REDACTED PERSONAL DATA,333655,Social Community Care,ADOPTION & FOSTERING          
SPECIAL GUARDIANSHIP          ,9270,RESIDENCE ORDERS              ,04/04/2014,3625897,213411 20140403 45279    ,REDACTED PERSONAL DATA,REDACTED PERSONAL DATA,502164,Social Community Care,ADOPTION & FOSTERING          
IN HOUSE FOSTER PLACEMENT     ,9270,IN-HOUSE FOSTERING            ,04/04/2014,3625902,21439 20140403 45279     ,REDACTED PERSONAL DATA,REDACTED PERSONAL DATA,338747,Social Community Care,ADOPTION & FOSTERING          
ADOPTION SERVICE              ,9270,ADOPTION ALLOWANCES           ,04/04/2014,3625902,21439 20140403 45279     ,REDACTED PERSONAL DATA,REDACTED PERSONAL DATA,338747,Social Community Care,ADOPTION & FOSTERING          
RESIDENCE ORDERS              ,9270,RESIDENCE ORDERS              ,04/04/2014,3625905,214697 20140403 45279    ,REDACTED PERSONAL DATA,REDACTED PERSONAL DATA,509060,Social Community Care,CHILDCARE SERVICES            
SPECIAL GUARDIANSHIP          ,9270,RESIDENCE ORDERS              ,04/04/2014,3625907,215348 20140403 45279    ,REDACTED PERSONAL DATA,REDACTED PERSONAL DATA,477472,Social Community Care,ADOPTION & FOSTERING          
ADOPTION ALLOWANCES           ,9270,ADOPTION ALLOWANCES           ,04/04/2014,3625908,215467 20140403 45279    ,REDACTED PERSONAL DATA,REDACTED PERSONAL DATA,485770,Social Community Care,ADOPTION & FOSTERING          
IN HOUSE FOSTER PLACEMENT     ,9270,IN-HOUSE FOSTERING            ,04/04/2014,3625910,113481 20140403 45279    ,REDACTED PERSONAL DATA,REDACTED PERSONAL DATA,333743,Social Community Care,ADOPTION & FOSTERING          
ADOPTION ALLOWANCES           ,9270,ADOPTION ALLOWANCES           ,04/04/2014,3625913,216508 20140403 45279    ,REDACTED PERSONAL DATA,REDACTED PERSONAL DATA,332926,Social Community Care,ADOPTION & FOSTERING          
ADOPTION ALLOWANCES           ,9270,ADOPTION ALLOWANCES           ,04/04/2014,3625916,216631 20140403 45279    ,REDACTED PERSONAL DATA,REDACTED PERSONAL DATA,333047,Social Community Care,ADOPTION & FOSTERING          
ADOPTION ALLOWANCES           ,9270,ADOPTION ALLOWANCES           ,04/04/2014,3625917,216870 20140403 45279    ,REDACTED PERSONAL DATA,REDACTED PERSONAL DATA,333164,Social Community Care,ADOPTION & FOSTERING          
ADOPTION ALLOWANCES           ,9270,ADOPTION ALLOWANCES           ,04/04/2014,3625918,216934 20140403 45279    ,REDACTED PERSONAL DATA,REDACTED PERSONAL DATA,333296,Social Community Care,ADOPTION & FOSTERING          
RESIDENCE ORDERS              ,9270,RESIDENCE ORDERS              ,04/04/2014,3625919,217370 20140403 45279    ,REDACTED PERSONAL DATA,REDACTED PERSONAL DATA,537668,Social Community Care,ADOPTION & FOSTERING          
RESIDENCE ORDERS              ,9270,RESIDENCE ORDERS              ,04/04/2014,3625921,114288 20140403 45279    ,REDACTED PERSONAL DATA,REDACTED PERSONAL DATA,368110,Social Community Care,ADOPTION & FOSTERING          
RESIDENCE ORDERS              ,9270,RESIDENCE ORDERS              ,04/04/2014,3625931,217912 20140403 45279    ,REDACTED PERSONAL DATA,REDACTED PERSONAL DATA,333717,Social Community Care,ADOPTION & FOSTERING          
RESIDENCE ORDERS              ,9270,RESIDENCE ORDERS              ,04/04/2014,3625932,217936 20140403 45279    ,REDACTED PERSONAL DATA,REDACTED PERSONAL DATA,368015,Social Community Care,ADOPTION & FOSTERING          
SPECIAL GUARDIANSHIP          ,9270,RESIDENCE ORDERS              ,04/04/2014,3625933,10113 20140403 45279     ,REDACTED PERSONAL DATA,REDACTED PERSONAL DATA,371949,Social Community Care,ADOPTION & FOSTERING          
RESIDENCE ORDERS              ,9270,RESIDENCE ORDERS              ,04/04/2014,3625935,217937 20140403 45279    ,REDACTED PERSONAL DATA,REDACTED PERSONAL DATA,395005,Social Community Care,ADOPTION & FOSTERING          
RESIDENCE ORDERS              ,9270,RESIDENCE ORDERS              ,04/04/2014,3625938,217943 20140403 45279    ,REDACTED PERSONAL DATA,REDACTED PERSONAL DATA,472721,Social Community Care,ADOPTION & FOSTERING          
SPECIAL GUARDIANSHIP          ,9270,RESIDENCE ORDERS              ,04/04/2014,3625939,217957 20140403 45279    ,REDACTED PERSONAL DATA,REDACTED PERSONAL DATA,450972,Social Community Care,ADOPTION & FOSTERING          
IN HOUSE FOSTER PLACEMENT     ,9270,IN-HOUSE FOSTERING            ,04/04/2014,3625945,11584 20140403 45279     ,REDACTED PERSONAL DATA,REDACTED PERSONAL DATA,338799,Social Community Care,ADOPTION & FOSTERING          
RESIDENCE ORDERS              ,9270,RESIDENCE ORDERS              ,04/04/2014,3625946,217984 20140403 45279    ,REDACTED PERSONAL DATA,REDACTED PERSONAL DATA,466697,Social Community Care,ADOPTION & FOSTERING          
RESIDENCE ORDERS              ,9270,RESIDENCE ORDERS              ,04/04/2014,3625948,218032 20140403 45279    ,REDACTED PERSONAL DATA,REDACTED PERSONAL DATA,406111,Social Community Care,ADOPTION & FOSTERING          
RESIDENCE ORDERS              ,9270,RESIDENCE ORDERS              ,04/04/2014,3625950,218044 20140403 45279    ,REDACTED PERSONAL DATA,REDACTED PERSONAL DATA,368091,Social Community Care,ADOPTION & FOSTERING          
RESIDENCE ORDERS              ,9270,RESIDENCE ORDERS              ,04/04/2014,3625951,218047 20140403 45279    ,REDACTED PERSONAL DATA,REDACTED PERSONAL DATA,455957,Social Community Care,ADOPTION & FOSTERING          
RESIDENCE ORDERS              ,9270,RESIDENCE ORDERS              ,04/04/2014,3625953,218156 20140403 45279    ,REDACTED PERSONAL DATA,REDACTED PERSONAL DATA,349185,Social Community Care,ADOPTION & FOSTERING          
RESIDENCE ORDERS              ,9270,RESIDENCE ORDERS              ,04/04/2014,3625962,218270 20140403 45279    ,REDACTED PERSONAL DATA,REDACTED PERSONAL DATA,431040,Social Community Care,ADOPTION & FOSTERING          
RESIDENCE ORDERS              ,9270,RESIDENCE ORDERS              ,04/04/2014,3625964,218299 20140403 45279    ,REDACTED PERSONAL DATA,REDACTED PERSONAL DATA,425879,Social Community Care,ADOPTION & FOSTERING          
IN HOUSE FOSTER PLACEMENT     ,9270,IN-HOUSE FOSTERING            ,04/04/2014,3625967,118120 20140403 45279    ,REDACTED PERSONAL DATA,REDACTED PERSONAL DATA,333453,Social Community Care,ADOPTION & FOSTERING          
RESIDENCE ORDERS              ,9270,RESIDENCE ORDERS              ,04/04/2014,3625968,218882 20140403 45279    ,REDACTED PERSONAL DATA,REDACTED PERSONAL DATA,559304,Social Community Care,HOME CARE SERVICES            
IN HOUSE FOSTER PLACEMENT     ,9270,IN-HOUSE FOSTERING            ,04/04/2014,3625975,220492 20140403 45279    ,REDACTED PERSONAL DATA,REDACTED PERSONAL DATA,505305,Social Community Care,ADOPTION & FOSTERING          
ADOPTION ALLOWANCES           ,9270,ADOPTION ALLOWANCES           ,04/04/2014,3625977,221155 20140403 45279    ,REDACTED PERSONAL DATA,REDACTED PERSONAL DATA,333786,Social Community Care,ADOPTION & FOSTERING          
ADOPTION ALLOWANCES           ,9270,ADOPTION ALLOWANCES           ,04/04/2014,3625981,221634 20140403 45279    ,REDACTED PERSONAL DATA,REDACTED PERSONAL DATA,525512,Social Community Care,ADOPTION & FOSTERING          
RESIDENCE ORDERS              ,9270,RESIDENCE ORDERS              ,04/04/2014,3625985,223602 20140403 45279    ,REDACTED PERSONAL DATA,REDACTED PERSONAL DATA,514074,Social Community Care,ADOPTION & FOSTERING          
RESIDENCE ORDERS              ,9270,RESIDENCE ORDERS              ,04/04/2014,3625986,223954 20140403 45279    ,REDACTED PERSONAL DATA,REDACTED PERSONAL DATA,506535,Social Community Care,ADOPTION & FOSTERING          
SPECIAL GUARDIANSHIP          ,9270,RESIDENCE ORDERS              ,04/04/2014,3625987,224122 20140403 45279    ,REDACTED PERSONAL DATA,REDACTED PERSONAL DATA,487228,Social Community Care,ADOPTION & FOSTERING          
ADOPTION ALLOWANCES           ,9270,ADOPTION ALLOWANCES           ,04/04/2014,3625989,119121 20140403 45279    ,REDACTED PERSONAL DATA,REDACTED PERSONAL DATA,368042,Social Community Care,ADOPTION & FOSTERING          
IN HOUSE FOSTER PLACEMENT     ,9270,IN-HOUSE FOSTERING            ,04/04/2014,3625991,224702 20140403 45279    ,REDACTED PERSONAL DATA,REDACTED PERSONAL DATA,545493,Unclassified Non Trade,OUT OF SCOPE FOR SIC MONITORIN
IN HOUSE FOSTER PLACEMENT     ,9270,IN-HOUSE FOSTERING            ,04/04/2014,3625992,224962 20140403 45279    ,REDACTED PERSONAL DATA,REDACTED PERSONAL DATA,505290,Social Community Care,ADOPTION & FOSTERING          
IN HOUSE FOSTER PLACEMENT     ,9270,IN-HOUSE FOSTERING            ,04/04/2014,3625993,225284 20140403 45279    ,REDACTED PERSONAL DATA,REDACTED PERSONAL DATA,521455,Social Community Care,ADOPTION & FOSTERING          
RESIDENCE ORDERS              ,9270,RESIDENCE ORDERS              ,04/04/2014,3625994,226140 20140403 45279    ,REDACTED PERSONAL DATA,REDACTED PERSONAL DATA,507229,Social Community Care,CHILDCARE SERVICES            
SPECIAL GUARDIANSHIP          ,9270,RESIDENCE ORDERS              ,04/04/2014,3625995,226347 20140403 45279    ,REDACTED PERSONAL DATA,REDACTED PERSONAL DATA,504346,Social Community Care,ADOPTION & FOSTERING          
IN HOUSE FOSTER PLACEMENT     ,9270,IN-HOUSE FOSTERING            ,04/04/2014,3625996,226624 20140403 45279    ,REDACTED PERSONAL DATA,REDACTED PERSONAL DATA,511885,Social Community Care,ADOPTION & FOSTERING          
SPECIAL GUARDIANSHIP          ,9270,RESIDENCE ORDERS              ,04/04/2014,3625997,227720 20140403 45279    ,REDACTED PERSONAL DATA,REDACTED PERSONAL DATA,490065,Social Community Care,ADOPTION & FOSTERING          
SPECIAL GUARDIANSHIP          ,9270,RESIDENCE ORDERS              ,04/04/2014,3626001,229718 20140403 45279    ,REDACTED PERSONAL DATA,REDACTED PERSONAL DATA,489391,Social Community Care,ADOPTION & FOSTERING          
IN HOUSE FOSTER PLACEMENT     ,9270,IN-HOUSE FOSTERING            ,04/04/2014,3626002,23 20140403 45279        ,REDACTED PERSONAL DATA,REDACTED PERSONAL DATA,333139,Social Community Care,ADOPTION & FOSTERING          
IN HOUSE FOSTER PLACEMENT     ,9270,IN-HOUSE FOSTERING            ,04/04/2014,3626006,232766 20140403 45279    ,REDACTED PERSONAL DATA,REDACTED PERSONAL DATA,518348,Social Community Care,ADOPTION & FOSTERING          
IN HOUSE FOSTER PLACEMENT     ,9270,IN-HOUSE FOSTERING            ,04/04/2014,3626007,233079 20140403 45279    ,REDACTED PERSONAL DATA,REDACTED PERSONAL DATA,520205,Social Community Care,ADOPTION & FOSTERING          
ADOPTION ALLOWANCES           ,9270,ADOPTION ALLOWANCES           ,04/04/2014,3626008,233644 20140403 45279    ,REDACTED PERSONAL DATA,REDACTED PERSONAL DATA,534018,Social Community Care,ADOPTION & FOSTERING          
IN HOUSE FOSTER PLACEMENT     ,9270,IN-HOUSE FOSTERING            ,04/04/2014,3626009,233714 20140403 45279    ,REDACTED PERSONAL DATA,REDACTED PERSONAL DATA,564806,Unclassified Non Trade,OUT OF SCOPE FOR SIC MONITORIN
IN HOUSE FOSTER PLACEMENT     ,9270,IN-HOUSE FOSTERING            ,04/04/2014,3626010,234568 20140403 45279    ,REDACTED PERSONAL DATA,REDACTED PERSONAL DATA,530876,Social Community Care,ADOPTION & FOSTERING          
RESIDENCE ORDERS              ,9270,RESIDENCE ORDERS              ,04/04/2014,3626011,119821 20140403 45279    ,REDACTED PERSONAL DATA,REDACTED PERSONAL DATA,371948,Social Community Care,ADOPTION & FOSTERING          
IN HOUSE FOSTER PLACEMENT     ,9270,IN-HOUSE FOSTERING            ,04/04/2014,3626012,23503 20140403 45279     ,REDACTED PERSONAL DATA,REDACTED PERSONAL DATA,328023,Social Community Care,ADOPTION & FOSTERING          
ADOPTION ALLOWANCES           ,9270,ADOPTION ALLOWANCES           ,04/04/2014,3626014,238174 20140403 45279    ,REDACTED PERSONAL DATA,REDACTED PERSONAL DATA,556456,Unclassified Non Trade,OUT OF SCOPE FOR SIC MONITORIN
ADOPTION ALLOWANCES           ,9270,ADOPTION ALLOWANCES           ,04/04/2014,3626015,23882 20140403 45279     ,REDACTED PERSONAL DATA,REDACTED PERSONAL DATA,333142,Social Community Care,ADOPTION & FOSTERING          
IN HOUSE FOSTER PLACEMENT     ,9270,IN-HOUSE FOSTERING            ,04/04/2014,3626015,23882 20140403 45279     ,REDACTED PERSONAL DATA,REDACTED PERSONAL DATA,333142,Social Community Care,ADOPTION & FOSTERING          
IN HOUSE FOSTER PLACEMENT     ,9270,IN-HOUSE FOSTERING            ,04/04/2014,3626020,24220 20140403 45279     ,REDACTED PERSONAL DATA,REDACTED PERSONAL DATA,333435,Social Community Care,ADOPTION & FOSTERING          
ADOPTION ALLOWANCES           ,9270,ADOPTION ALLOWANCES           ,04/04/2014,3626026,246767 20140403 45279    ,REDACTED PERSONAL DATA,REDACTED PERSONAL DATA,506032,Social Community Care,ADOPTION & FOSTERING          
SPECIAL GUARDIANSHIP          ,9270,RESIDENCE ORDERS              ,04/04/2014,3626029,249843 20140403 45279    ,REDACTED PERSONAL DATA,REDACTED PERSONAL DATA,566432,Social Community Care,ADOPTION & FOSTERING          
IN HOUSE FOSTER PLACEMENT     ,9270,IN-HOUSE FOSTERING            ,04/04/2014,3626031,250606 20140403 45279    ,REDACTED PERSONAL DATA,REDACTED PERSONAL DATA,544195,Social Community Care,ADOPTION & FOSTERING          
RESIDENCE ORDERS              ,9270,RESIDENCE ORDERS              ,04/04/2014,3626032,251291 20140403 45279    ,REDACTED PERSONAL DATA,REDACTED PERSONAL DATA,506065,Social Community Care,ADOPTION & FOSTERING          
IN HOUSE FOSTER PLACEMENT     ,9270,IN-HOUSE FOSTERING            ,04/04/2014,3626034,252805 20140403 45279    ,REDACTED PERSONAL DATA,REDACTED PERSONAL DATA,547773,Social Community Care,ADOPTION & FOSTERING          
ADOPTION ALLOWANCES           ,9270,ADOPTION ALLOWANCES           ,04/04/2014,3626036,254717 20140403 45279    ,REDACTED PERSONAL DATA,REDACTED PERSONAL DATA,549766,Social Community Care,ADOPTION & FOSTERING          
ADOPTION ALLOWANCES           ,9270,ADOPTION ALLOWANCES           ,04/04/2014,3626037,256631 20140403 45279    ,REDACTED PERSONAL DATA,REDACTED PERSONAL DATA,510230,Social Community Care,ADOPTION & FOSTERING          
RESIDENCE ORDERS              ,9270,RESIDENCE ORDERS              ,04/04/2014,3626038,257849 20140403 45279    ,REDACTED PERSONAL DATA,REDACTED PERSONAL DATA,580276,Unclassified Non Trade,OUT OF SCOPE FOR SIC MONITORIN
ADOPTION ALLOWANCES           ,9270,ADOPTION ALLOWANCES           ,04/04/2014,3626040,257969 20140403 45279    ,REDACTED PERSONAL DATA,REDACTED PERSONAL DATA,577580,Unclassified Non Trade,OUT OF SCOPE FOR SIC MONITORIN
IN HOUSE FOSTER PLACEMENT     ,9270,IN-HOUSE FOSTERING            ,04/04/2014,3626042,26212 20140403 45279     ,REDACTED PERSONAL DATA,REDACTED PERSONAL DATA,333838,Social Community Care,ADOPTION & FOSTERING          
ADOPTION ALLOWANCES           ,9270,ADOPTION ALLOWANCES           ,04/04/2014,3626043,262762 20140403 45279    ,REDACTED PERSONAL DATA,REDACTED PERSONAL DATA,543941,Social Community Care,ADOPTION & FOSTERING          
SPECIAL GUARDIANSHIP          ,9270,RESIDENCE ORDERS              ,04/04/2014,3626044,102670 20140403 45279    ,REDACTED PERSONAL DATA,REDACTED PERSONAL DATA,333247,Social Community Care,ADOPTION & FOSTERING          
IN HOUSE FOSTER PLACEMENT     ,9270,IN-HOUSE FOSTERING            ,04/04/2014,3626045,121470 20140403 45279    ,REDACTED PERSONAL DATA,REDACTED PERSONAL DATA,453239,Social Community Care,ADOPTION & FOSTERING          
IN HOUSE FOSTER PLACEMENT     ,9270,IN-HOUSE FOSTERING            ,04/04/2014,3626047,26454 20140403 45279     ,REDACTED PERSONAL DATA,REDACTED PERSONAL DATA,333025,Social Community Care,ADOPTION & FOSTERING          
SPECIAL GUARDIANSHIP          ,9270,RESIDENCE ORDERS              ,04/04/2014,3626049,267388 20140403 45279    ,REDACTED PERSONAL DATA,REDACTED PERSONAL DATA,526295,Social Community Care,ADOPTION & FOSTERING          
SPECIAL GUARDIANSHIP          ,9270,RESIDENCE ORDERS              ,04/04/2014,3626050,267945 20140403 45279    ,REDACTED PERSONAL DATA,REDACTED PERSONAL DATA,516258,Social Community Care,ADOPTION & FOSTERING          
IN HOUSE FOSTER PLACEMENT     ,9270,IN-HOUSE FOSTERING            ,04/04/2014,3626052,27047 20140403 45279     ,REDACTED PERSONAL DATA,REDACTED PERSONAL DATA,338866,Social Community Care,ADOPTION & FOSTERING          
IN HOUSE FOSTER PLACEMENT     ,9270,IN-HOUSE FOSTERING            ,04/04/2014,3626054,271426 20140403 45279    ,REDACTED PERSONAL DATA,REDACTED PERSONAL DATA,527967,Social Community Care,ADOPTION & FOSTERING          
IN HOUSE FOSTER PLACEMENT     ,9270,IN-HOUSE FOSTERING            ,04/04/2014,3626055,272643 20140403 45279    ,REDACTED PERSONAL DATA,REDACTED PERSONAL DATA,574519,Unclassified Non Trade,OUT OF SCOPE FOR SIC MONITORIN
SPECIAL GUARDIANSHIP          ,9270,RESIDENCE ORDERS              ,04/04/2014,3626056,274362 20140403 45279    ,REDACTED PERSONAL DATA,REDACTED PERSONAL DATA,539000,Social Community Care,ADOPTION & FOSTERING          
ADOPTION ALLOWANCES           ,9270,ADOPTION ALLOWANCES           ,04/04/2014,3626057,121610 20140403 45279    ,REDACTED PERSONAL DATA,REDACTED PERSONAL DATA,333116,Social Community Care,ADOPTION & FOSTERING          
ADOPTION ALLOWANCES           ,9270,ADOPTION ALLOWANCES           ,04/04/2014,3626062,279838 20140403 45279    ,REDACTED PERSONAL DATA,REDACTED PERSONAL DATA,549009,Social Community Care,ADOPTION & FOSTERING          
IN HOUSE FOSTER PLACEMENT     ,9270,IN-HOUSE FOSTERING            ,04/04/2014,3626063,279870 20140403 45279    ,REDACTED PERSONAL DATA,REDACTED PERSONAL DATA,586460,Unclassified Non Trade,OUT OF SCOPE FOR SIC MONITORIN
IN HOUSE FOSTER PLACEMENT     ,9270,IN-HOUSE FOSTERING            ,04/04/2014,3626064,280289 20140403 45279    ,REDACTED PERSONAL DATA,REDACTED PERSONAL DATA,565988,Unclassified Non Trade,OUT OF SCOPE FOR SIC MONITORIN
IN HOUSE FOSTER PLACEMENT     ,9270,IN-HOUSE FOSTERING            ,04/04/2014,3626065,280294 20140403 45279    ,REDACTED PERSONAL DATA,REDACTED PERSONAL DATA,534615,Social Community Care,ADOPTION & FOSTERING          
ADOPTION ALLOWANCES           ,9270,ADOPTION ALLOWANCES           ,04/04/2014,3626066,280499 20140403 45279    ,REDACTED PERSONAL DATA,REDACTED PERSONAL DATA,540124,Unclassified Non Trade,OUT OF SCOPE FOR SIC MONITORIN
SPECIAL GUARDIANSHIP          ,9270,RESIDENCE ORDERS              ,04/04/2014,3626070,284355 20140403 45279    ,REDACTED PERSONAL DATA,REDACTED PERSONAL DATA,515224,Social Community Care,ADOPTION & FOSTERING          
ADOPTION ALLOWANCES           ,9270,ADOPTION ALLOWANCES           ,04/04/2014,3626071,284855 20140403 45279    ,REDACTED PERSONAL DATA,REDACTED PERSONAL DATA,519590,Social Community Care,ADOPTION & FOSTERING          
SPECIAL GUARDIANSHIP          ,9270,RESIDENCE ORDERS              ,04/04/2014,3626072,286117 20140403 45279    ,REDACTED PERSONAL DATA,REDACTED PERSONAL DATA,571619,Unclassified Non Trade,OUT OF SCOPE FOR SIC MONITORIN
SPECIAL GUARDIANSHIP          ,9270,RESIDENCE ORDERS              ,04/04/2014,3626073,286786 20140403 45279    ,REDACTED PERSONAL DATA,REDACTED PERSONAL DATA,518761,Social Community Care,ADOPTION & FOSTERING          
RESIDENCE ORDERS              ,9270,RESIDENCE ORDERS              ,04/04/2014,3626074,28798 20140403 45279     ,REDACTED PERSONAL DATA,REDACTED PERSONAL DATA,456399,Social Community Care,ADOPTION & FOSTERING          
SPECIAL GUARDIANSHIP          ,9270,RESIDENCE ORDERS              ,04/04/2014,3626075,289356 20140403 45279    ,REDACTED PERSONAL DATA,REDACTED PERSONAL DATA,529812,Social Community Care,ADOPTION & FOSTERING          
SPECIAL GUARDIANSHIP          ,9270,RESIDENCE ORDERS              ,04/04/2014,3626076,294439 20140403 45279    ,REDACTED PERSONAL DATA,REDACTED PERSONAL DATA,567626,Unclassified Non Trade,OUT OF SCOPE FOR SIC MONITORIN
SPECIAL GUARDIANSHIP          ,9270,RESIDENCE ORDERS              ,04/04/2014,3626077,29473 20140403 45279     ,REDACTED PERSONAL DATA,REDACTED PERSONAL DATA,557434,Unclassified Non Trade,OUT OF SCOPE FOR SIC MONITORIN
ADOPTION ALLOWANCES           ,9270,ADOPTION ALLOWANCES           ,04/04/2014,3626078,294818 20140403 45279    ,REDACTED PERSONAL DATA,REDACTED PERSONAL DATA,522818,Social Community Care,ADOPTION & FOSTERING          
IN HOUSE FOSTER PLACEMENT     ,9270,IN-HOUSE FOSTERING            ,04/04/2014,3626080,294952 20140403 45279    ,REDACTED PERSONAL DATA,REDACTED PERSONAL DATA,541183,Social Community Care,ADOPTION & FOSTERING          
ADOPTION SERVICE              ,9270,ADOPTION ALLOWANCES           ,04/04/2014,3626081,295330 20140403 45279    ,REDACTED PERSONAL DATA,REDACTED PERSONAL DATA,539221,Social Community Care,ADOPTION & FOSTERING          
IN HOUSE FOSTER PLACEMENT     ,9270,IN-HOUSE FOSTERING            ,04/04/2014,3626081,295330 20140403 45279    ,REDACTED PERSONAL DATA,REDACTED PERSONAL DATA,539221,Social Community Care,ADOPTION & FOSTERING          
IN HOUSE FOSTER PLACEMENT     ,9270,IN-HOUSE FOSTERING            ,04/04/2014,3626083,296922 20140403 45279    ,REDACTED PERSONAL DATA,REDACTED PERSONAL DATA,537564,Social Community Care,ADOPTION & FOSTERING          
SPECIAL GUARDIANSHIP          ,9270,RESIDENCE ORDERS              ,04/04/2014,3626084,297215 20140403 45279    ,REDACTED PERSONAL DATA,REDACTED PERSONAL DATA,539395,Social Community Care,HOME CARE SERVICES            
SPECIAL GUARDIANSHIP          ,9270,RESIDENCE ORDERS              ,04/04/2014,3626085,298645 20140403 45279    ,REDACTED PERSONAL DATA,REDACTED PERSONAL DATA,538802,Social Community Care,ADOPTION & FOSTERING          
IN HOUSE FOSTER PLACEMENT     ,9270,IN-HOUSE FOSTERING            ,04/04/2014,3626087,300505 20140403 45279    ,REDACTED PERSONAL DATA,REDACTED PERSONAL DATA,542947,Social Community Care,ADOPTION & FOSTERING          
SPECIAL GUARDIANSHIP          ,9270,RESIDENCE ORDERS              ,04/04/2014,3626088,300699 20140403 45279    ,REDACTED PERSONAL DATA,REDACTED PERSONAL DATA,527195,Social Community Care,ADOPTION & FOSTERING          
SPECIAL GUARDIANSHIP          ,9270,RESIDENCE ORDERS              ,04/04/2014,3626090,122743 20140403 45279    ,REDACTED PERSONAL DATA,REDACTED PERSONAL DATA,502731,Social Community Care,ADOPTION & FOSTERING          
IN HOUSE FOSTER PLACEMENT     ,9270,IN-HOUSE FOSTERING            ,04/04/2014,3626092,300994 20140403 45279    ,REDACTED PERSONAL DATA,REDACTED PERSONAL DATA,538414,Unclassified Non Trade,OUT OF SCOPE FOR SIC MONITORIN
RESIDENCE ORDERS              ,9270,RESIDENCE ORDERS              ,04/04/2014,3626094,301894 20140403 45279    ,REDACTED PERSONAL DATA,REDACTED PERSONAL DATA,532329,Social Community Care,HOME CARE SERVICES            
CARELEAVER IN HOUSE FOSTERING ,9270,IN-HOUSE FOSTERING            ,04/04/2014,3626096,302903 20140403 45279    ,REDACTED PERSONAL DATA,REDACTED PERSONAL DATA,587848,Unclassified Non Trade,OUT OF SCOPE FOR SIC MONITORIN
IN HOUSE FOSTER PLACEMENT     ,9270,IN-HOUSE FOSTERING            ,04/04/2014,3626098,305267 20140403 45279    ,REDACTED PERSONAL DATA,REDACTED PERSONAL DATA,586142,Unclassified Non Trade,OUT OF SCOPE FOR SIC MONITORIN
RESIDENCE ORDERS              ,9270,RESIDENCE ORDERS              ,04/04/2014,3626100,306248 20140403 45279    ,REDACTED PERSONAL DATA,REDACTED PERSONAL DATA,559051,Social Community Care,ADOPTION & FOSTERING          
SPECIAL GUARDIANSHIP          ,9270,RESIDENCE ORDERS              ,04/04/2014,3626105,314218 20140403 45279    ,REDACTED PERSONAL DATA,REDACTED PERSONAL DATA,556873,Social Community Care,ADOPTION & FOSTERING          
